Workbook

Sheet птм
A1: № | B1: Ф. И. О. | C1: разряд | D1: Таб. | E1: раб. | F1: ПТМ
D2: номер | E2: место
A3: 1 | B3: =IF(D3=0," ",VLOOKUP(D3,'Список рабочих'!A$1:B$162,2,0)) -> Абрамов Е. В. | C3: =IF(D3=0," ",VLOOKUP(D3,'Список рабочих'!A$1:C$202,3,0)) -> 3 | D3: 08278 | E3: эл.мон | F3: 2020-05-01
A4: =SUM(A3+1) -> 2 | B4: =IF(D4=0," ",VLOOKUP(D4,'Список рабочих'!A$1:B$162,2,0)) -> Бойков А. А. | C4: =IF(D4=0," ",VLOOKUP(D4,'Список рабочих'!A$1:C$202,3,0)) -> 5 | D4: 08009 | E4: эл.мон | F4: 2020-05-01
A5: =SUM(A4+1) -> 3 | B5: =IF(D5=0," ",VLOOKUP(D5,'Список рабочих'!A$1:B$162,2,0)) -> Буторина Т. М. | C5: =IF(D5=0," ",VLOOKUP(D5,'Список рабочих'!A$1:C$202,3,0)) -> 4 | D5: 08130 | E5: эл.мон | F5: 2020-12-01
A6: 4 | B6: =IF(D6=0," ",VLOOKUP(D6,'Список рабочих'!A$1:B$162,2,0)) -> Васильев А. Ю. | C6: =IF(D6=0," ",VLOOKUP(D6,'Список рабочих'!A$1:C$202,3,0)) -> 5 | D6: 08235 | E6: рег. | F6: 2020-05-01
A7: 5 | B7: =IF(D7=0," ",VLOOKUP(D7,'Список рабочих'!A$1:B$162,2,0)) -> Варшуков А.В. | C7: =IF(D7=0," ",VLOOKUP(D7,'Список рабочих'!A$1:C$202,3,0)) -> 3 | D7: 08258 | E7: эл.мон | F7: 2020-10-01
A8: 6 | B8: =IF(D8=0," ",VLOOKUP(D8,'Список рабочих'!A$1:B$162,2,0)) -> Вараксин П. А. | C8: =IF(D8=0," ",VLOOKUP(D8,'Список рабочих'!A$1:C$202,3,0)) -> 4 | D8: 08271 | E8: эл.мон | F8: 2020-10-01
A9: 7 | B9: =IF(D9=0," ",VLOOKUP(D9,'Список рабочих'!A$1:B$162,2,0)) -> Васьковский С. В. | C9: =IF(D9=0," ",VLOOKUP(D9,'Список рабочих'!A$1:C$202,3,0)) -> 3 | D9: 00669 | E9: эл.мон | F9: 2020-05-01
A10: 8 | B10: =IF(D10=0," ",VLOOKUP(D10,'Список рабочих'!A$1:B$162,2,0)) -> Вдовин А. А. | C10: =IF(D10=0," ",VLOOKUP(D10,'Список рабочих'!A$1:C$202,3,0)) -> 3 | D10: 08199 | E10: эл.мон | F10: 2020-05-01
A11: 9 | B11: =IF(D11=0," ",VLOOKUP(D11,'Список рабочих'!A$1:B$162,2,0)) -> Вирки И. И. | C11: =IF(D11=0," ",VLOOKUP(D11,'Список рабочих'!A$1:C$202,3,0)) -> 4 | D11: 08018 | E11: эл.мон | F11: 2020-12-01
A12: 10 | B12: =IF(D12=0," ",VLOOKUP(D12,'Список рабочих'!A$1:B$162,2,0)) ->  | C12: =IF(D12=0," ",VLOOKUP(D12,'Список рабочих'!A$1:C$202,3,0)) ->  | D12: 08248 | E12: залив. | F12: 2020-12-01
A13: 11 | B13: =IF(D13=0," ",VLOOKUP(D13,'Список рабочих'!A$1:B$162,2,0)) -> Галицкий А. В. | C13: =IF(D13=0," ",VLOOKUP(D13,'Список рабочих'!A$1:C$202,3,0)) -> 5 | D13: 08097 | E13: рег. | F13: 2020-05-01
A14: 12 | B14: =IF(D14=0," ",VLOOKUP(D14,'Список рабочих'!A$1:B$162,2,0)) -> Гребенюк И.А. | C14: =IF(D14=0," ",VLOOKUP(D14,'Список рабочих'!A$1:C$202,3,0)) -> 3 | D14: 08260 | E14: эл.мон | F14: 2020-10-01
A15: 13 | B15: =IF(D15=0," ",VLOOKUP(D15,'Список рабочих'!A$1:B$162,2,0)) -> Головкин А. В. | C15: =IF(D15=0," ",VLOOKUP(D15,'Список рабочих'!A$1:C$202,3,0)) -> 4 | D15: 08236 | E15: эл.мон | F15: 2020-05-01
A16: 14 | B16: =IF(D16=0," ",VLOOKUP(D16,'Список рабочих'!A$1:B$162,2,0)) -> Гуменный Д. В. | C16: =IF(D16=0," ",VLOOKUP(D16,'Список рабочих'!A$1:C$202,3,0)) -> 3 | D16: 09849 | E16: эл.мон | F16: 2020-05-01
A17: 15 | B17: =IF(D17=0," ",VLOOKUP(D17,'Список рабочих'!A$1:B$162,2,0)) -> Данилов В. Н. | C17: =IF(D17=0," ",VLOOKUP(D17,'Список рабочих'!A$1:C$202,3,0)) -> 3 | D17: 08296 | E17: эл.мон | F17: 2020-04-01
A18: 16 | B18: =IF(D18=0," ",VLOOKUP(D18,'Список рабочих'!A$1:B$162,2,0)) -> Евдокимов К. А. | C18: =IF(D18=0," ",VLOOKUP(D18,'Список рабочих'!A$1:C$202,3,0)) -> 3 | D18: 08211 | E18: эл.мон | F18: 2020-10-01
A19: 17 | B19: =IF(D19=0," ",VLOOKUP(D19,'Список рабочих'!A$1:B$162,2,0)) -> Ермаков В. В. | C19: =IF(D19=0," ",VLOOKUP(D19,'Список рабочих'!A$1:C$202,3,0)) -> 5 | D19: 08001 | E19: эл.мон | F19: 2020-05-01
A20: 18 | B20: =IF(D20=0," ",VLOOKUP(D20,'Список рабочих'!A$1:B$162,2,0)) -> Жуков С. А. | C20: =IF(D20=0," ",VLOOKUP(D20,'Список рабочих'!A$1:C$202,3,0)) -> 4 | D20: 08112 | E20: эл.мон | F20: 2020-05-01
A21: 19 | B21: =IF(D21=0," ",VLOOKUP(D21,'Список рабочих'!A$1:B$162,2,0)) -> Захаров А. Б. | C21: =IF(D21=0," ",VLOOKUP(D21,'Список рабочих'!A$1:C$202,3,0)) -> 4 | D21: 08246 | E21: эл.мон | F21: 2020-05-01
A22: 20 | B22: =IF(D22=0," ",VLOOKUP(D22,'Список рабочих'!A$1:B$162,2,0)) -> Захаров В. К. | C22: =IF(D22=0," ",VLOOKUP(D22,'Список рабочих'!A$1:C$202,3,0)) -> 4 | D22: 08287 | E22: рег. | F22: 2020-05-01
A23: 21 | B23: =IF(D23=0," ",VLOOKUP(D23,'Список рабочих'!A$1:B$162,2,0)) ->  | C23: =IF(D23=0," ",VLOOKUP(D23,'Список рабочих'!A$1:C$202,3,0)) ->  | D23: 08304 | E23: эл.мон | F23: 2020-05-01
A24: 22 | B24: =IF(D24=0," ",VLOOKUP(D24,'Список рабочих'!A$1:B$162,2,0)) -> Иванов А. В. | C24: =IF(D24=0," ",VLOOKUP(D24,'Список рабочих'!A$1:C$202,3,0)) -> 4 | D24: 08234 | E24: рег. | F24: 2020-10-01
A25: 23 | B25: =IF(D25=0," ",VLOOKUP(D25,'Список рабочих'!A$1:B$162,2,0)) ->  | C25: =IF(D25=0," ",VLOOKUP(D25,'Список рабочих'!A$1:C$202,3,0)) -> 
A26: 24 | B26: =IF(D26=0," ",VLOOKUP(D26,'Список рабочих'!A$1:B$162,2,0)) -> Иванов А. Ю. | C26: =IF(D26=0," ",VLOOKUP(D26,'Список рабочих'!A$1:C$202,3,0)) -> 3 | D26: 08300 | E26: эл.мон | F26: 2020-04-01
A27: 25 | B27: =IF(D27=0," ",VLOOKUP(D27,'Список рабочих'!A$1:B$162,2,0)) -> Ильин А. В. | C27: =IF(D27=0," ",VLOOKUP(D27,'Список рабочих'!A$1:C$202,3,0)) -> 4 | D27: 08221 | E27: эл.мон | F27: 2020-12-01
A28: 26 | B28: =IF(D28=0," ",VLOOKUP(D28,'Список рабочих'!A$1:B$162,2,0)) -> Исаков С. А. | C28: =IF(D28=0," ",VLOOKUP(D28,'Список рабочих'!A$1:C$202,3,0)) -> 3 | D28: 08195 | E28: эл.мон | F28: 2020-10-01
A29: 27 | B29: =IF(D29=0," ",VLOOKUP(D29,'Список рабочих'!A$1:B$162,2,0)) -> Кузьменков С. Д. | C29: =IF(D29=0," ",VLOOKUP(D29,'Список рабочих'!A$1:C$202,3,0)) -> 3 | D29: 08295 | E29: эл.мон | F29: 2020-05-01
A30: 28 | B30: =IF(D30=0," ",VLOOKUP(D30,'Список рабочих'!A$1:B$162,2,0)) -> Кондратюк И. М. | C30: =IF(D30=0," ",VLOOKUP(D30,'Список рабочих'!A$1:C$202,3,0)) -> 3 | D30: 08264 | E30: эл.мон | F30: 2020-05-01
A31: 29 | B31: =IF(D31=0," ",VLOOKUP(D31,'Список рабочих'!A$1:B$162,2,0)) -> Казак А. В. | C31: =IF(D31=0," ",VLOOKUP(D31,'Список рабочих'!A$1:C$202,3,0)) -> 4 | D31: 08227 | E31: рег. | F31: 2020-05-01
A32: 30 | B32: =IF(D32=0," ",VLOOKUP(D32,'Список рабочих'!A$1:B$162,2,0)) -> Килимник О. В. | C32: =IF(D32=0," ",VLOOKUP(D32,'Список рабочих'!A$1:C$202,3,0)) -> 4 | D32: 08238 | E32: эл.мон | F32: 2020-12-01
A33: 31 | B33: =IF(D33=0," ",VLOOKUP(D33,'Список рабочих'!A$1:B$162,2,0)) -> Клюев Л. И. | C33: =IF(D33=0," ",VLOOKUP(D33,'Список рабочих'!A$1:C$202,3,0)) -> 4 | D33: 08208 | E33: эл.мон | F33: 2020-12-01
A34: 32 | B34: =IF(D34=0," ",VLOOKUP(D34,'Список рабочих'!A$1:B$162,2,0)) -> Клюев Д. Л. | C34: =IF(D34=0," ",VLOOKUP(D34,'Список рабочих'!A$1:C$202,3,0)) -> 3 | D34: 08268 | E34: эл.мон | F34: 2020-10-01
A35: 33 | B35: =IF(D35=0," ",VLOOKUP(D35,'Список рабочих'!A$1:B$162,2,0)) -> Комиссаров Д. В. | C35: =IF(D35=0," ",VLOOKUP(D35,'Список рабочих'!A$1:C$202,3,0)) -> 2 | D35: 08280 | E35: эл.мон | F35: 2020-10-01
A36: 34 | B36: =IF(D36=0," ",VLOOKUP(D36,'Список рабочих'!A$1:B$162,2,0)) ->  | C36: =IF(D36=0," ",VLOOKUP(D36,'Список рабочих'!A$1:C$202,3,0)) ->  | D36: 08281 | E36: эл.мон | F36: 2020-12-01
A37: 35 | B37: =IF(D37=0," ",VLOOKUP(D37,'Список рабочих'!A$1:B$162,2,0)) -> Лукин С. В. | C37: =IF(D37=0," ",VLOOKUP(D37,'Список рабочих'!A$1:C$202,3,0)) -> 4 | D37: 08242 | E37: эл.мон | F37: 2020-10-01
A38: 36 | B38: =IF(D38=0," ",VLOOKUP(D38,'Список рабочих'!A$1:B$162,2,0)) -> Лозовский И. А. | C38: =IF(D38=0," ",VLOOKUP(D38,'Список рабочих'!A$1:C$202,3,0)) -> 4 | D38: 09850 | E38: эл.мон | F38: 2020-05-01
A39: 37 | B39: =IF(D39=0," ",VLOOKUP(D39,'Список рабочих'!A$1:B$162,2,0)) -> Марьянков И. В. | C39: =IF(D39=0," ",VLOOKUP(D39,'Список рабочих'!A$1:C$202,3,0)) -> 5 | D39: 08252 | E39: рег. | F39: 2020-05-01
A40: 38 | B40: =IF(D40=0," ",VLOOKUP(D40,'Список рабочих'!A$1:B$162,2,0)) -> Мельников А. В. | C40: =IF(D40=0," ",VLOOKUP(D40,'Список рабочих'!A$1:C$202,3,0)) -> 5 | D40: 08177 | E40: эл.мон
A41: 39 | B41: =IF(D41=0," ",VLOOKUP(D41,'Список рабочих'!A$1:B$162,2,0)) -> Мельников В. Ю. | C41: =IF(D41=0," ",VLOOKUP(D41,'Список рабочих'!A$1:C$202,3,0)) -> 4 | D41: 08269 | E41: эл.мон | F41: 2020-10-01
A42: 40 | B42: =IF(D42=0," ",VLOOKUP(D42,'Список рабочих'!A$1:B$162,2,0)) -> Медведев В. К. | C42: =IF(D42=0," ",VLOOKUP(D42,'Список рабочих'!A$1:C$202,3,0)) -> 4 | D42: 08306 | E42: эл.мон | F42: 2020-10-01
A43: 41 | B43: =IF(D43=0," ",VLOOKUP(D43,'Список рабочих'!A$1:B$162,2,0)) -> Митнев А. П. | C43: =IF(D43=0," ",VLOOKUP(D43,'Список рабочих'!A$1:C$202,3,0)) -> 3 | D43: 08291 | E43: эл.мон | F43: 2020-04-01
A44: 42 | B44: =IF(D44=0," ",VLOOKUP(D44,'Список рабочих'!A$1:B$162,2,0)) -> Мотовилин Э.В. | C44: =IF(D44=0," ",VLOOKUP(D44,'Список рабочих'!A$1:C$202,3,0)) -> 3 | D44: 08283 | E44: эл.мон | F44: 2020-05-01
A45: 43 | B45: =IF(D45=0," ",VLOOKUP(D45,'Список рабочих'!A$1:B$162,2,0)) -> Муковнин Д. В. | C45: =IF(D45=0," ",VLOOKUP(D45,'Список рабочих'!A$1:C$202,3,0)) -> 3 | D45: 08230 | E45: эл.мон | F45: 2020-05-01
A46: 44 | B46: =IF(D46=0," ",VLOOKUP(D46,'Список рабочих'!A$1:B$162,2,0)) -> Никаноров В. Е. | C46: =IF(D46=0," ",VLOOKUP(D46,'Список рабочих'!A$1:C$202,3,0)) -> 4 | D46: 08217 | E46: эл.мон | F46: 2020-05-01
A47: 45 | B47: =IF(D47=0," ",VLOOKUP(D47,'Список рабочих'!A$1:B$162,2,0)) ->  | C47: =IF(D47=0," ",VLOOKUP(D47,'Список рабочих'!A$1:C$202,3,0)) -> 
A48: 46 | B48: =IF(D48=0," ",VLOOKUP(D48,'Список рабочих'!A$1:B$162,2,0)) -> Парри А. В. | C48: =IF(D48=0," ",VLOOKUP(D48,'Список рабочих'!A$1:C$202,3,0)) -> 3 | D48: 08180 | E48: эл.мон | F48: 2020-05-01
A49: 47 | B49: =IF(D49=0," ",VLOOKUP(D49,'Список рабочих'!A$1:B$162,2,0)) -> Парри С. А. | C49: =IF(D49=0," ",VLOOKUP(D49,'Список рабочих'!A$1:C$202,3,0)) -> 3 | D49: 08266 | E49: эл.мон | F49: 2020-10-01
A50: 48 | B50: =IF(D50=0," ",VLOOKUP(D50,'Список рабочих'!A$1:B$162,2,0)) -> Пахомов В. С. | C50: =IF(D50=0," ",VLOOKUP(D50,'Список рабочих'!A$1:C$202,3,0)) -> 3 | D50: 08254 | E50: эл.мон | F50: 2020-10-01
A52: № | B52: Ф. И. О. | C52: разряд | D52: Таб. | E52: раб.
D53: номер | E53: место
A54: 49 | B54: =IF(D54=0," ",VLOOKUP(D54,'Список рабочих'!A$1:B$162,2,0)) -> Платонов Д. С. | C54: =IF(D54=0," ",VLOOKUP(D54,'Список рабочих'!A$1:C$202,3,0)) -> 3 | D54: 08290 | E54: эл.мон | F54: 2020-04-01
A55: =SUM(A54+1) -> 50 | B55: =IF(D55=0," ",VLOOKUP(D55,'Список рабочих'!A$1:B$162,2,0)) -> Поляков А. А. | C55: =IF(D55=0," ",VLOOKUP(D55,'Список рабочих'!A$1:C$202,3,0)) -> 3 | D55: 08274 | E55: эл.мон | F55: 2020-10-01
A56: =SUM(A55+1) -> 51 | B56: =IF(D56=0," ",VLOOKUP(D56,'Список рабочих'!A$1:B$162,2,0)) -> Петрунин А. Н. | C56: =IF(D56=0," ",VLOOKUP(D56,'Список рабочих'!A$1:C$202,3,0)) -> 5 | D56: 08132 | E56: эл.мон | F56: 2020-04-01
A57: 52 | B57: =IF(D57=0," ",VLOOKUP(D57,'Список рабочих'!A$1:B$162,2,0)) -> Приходько А. А. | C57: =IF(D57=0," ",VLOOKUP(D57,'Список рабочих'!A$1:C$202,3,0)) -> 5 | D57: 08218 | E57: эл.мон | F57: 2020-05-01
A58: 53 | B58: =IF(D58=0," ",VLOOKUP(D58,'Список рабочих'!A$1:B$162,2,0)) -> Разов Д. С. | C58: =IF(D58=0," ",VLOOKUP(D58,'Список рабочих'!A$1:C$202,3,0)) -> 3 | D58: 08286 | E58: эл.мон | F58: 2020-05-01
A59: 54 | B59: =IF(D59=0," ",VLOOKUP(D59,'Список рабочих'!A$1:B$162,2,0)) -> Речинский В. А. | C59: =IF(D59=0," ",VLOOKUP(D59,'Список рабочих'!A$1:C$202,3,0)) -> 4 | D59: 08229 | E59: эл.мон | F59: 2020-05-01
A60: 55 | B60: =IF(D60=0," ",VLOOKUP(D60,'Список рабочих'!A$1:B$162,2,0)) -> Рыжиков А. Н. | C60: =IF(D60=0," ",VLOOKUP(D60,'Список рабочих'!A$1:C$202,3,0)) -> 4 | D60: 08186 | E60: эл.мон | F60: 2020-05-01
A61: 56 | B61: =IF(D61=0," ",VLOOKUP(D61,'Список рабочих'!A$1:B$162,2,0)) -> Рыбалкина Е. Г. | C61: =IF(D61=0," ",VLOOKUP(D61,'Список рабочих'!A$1:C$202,3,0)) -> 4 | D61: 08095 | E61: эл.мон | F61: 2020-12-01
A62: 57 | B62: =IF(D62=0," ",VLOOKUP(D62,'Список рабочих'!A$1:B$162,2,0)) -> Саноян А. А. | C62: =IF(D62=0," ",VLOOKUP(D62,'Список рабочих'!A$1:C$202,3,0)) -> 3 | D62: 08289 | E62: эл.мон | F62: 2020-04-01
A63: 58 | B63: =IF(D63=0," ",VLOOKUP(D63,'Список рабочих'!A$1:B$162,2,0)) -> Самарец А. А. | C63: =IF(D63=0," ",VLOOKUP(D63,'Список рабочих'!A$1:C$202,3,0)) -> 4 | D63: 08194 | E63: эл.мон | F63: 2020-10-01
A64: 59 | B64: =IF(D64=0," ",VLOOKUP(D64,'Список рабочих'!A$1:B$162,2,0)) -> Сакс Д. С. | C64: =IF(D64=0," ",VLOOKUP(D64,'Список рабочих'!A$1:C$202,3,0)) -> 3 | D64: 08255 | E64: эл.мон | F64: 2020-10-01
A65: 60 | B65: =IF(D65=0," ",VLOOKUP(D65,'Список рабочих'!A$1:B$162,2,0)) -> Свояков Н. А. | C65: =IF(D65=0," ",VLOOKUP(D65,'Список рабочих'!A$1:C$202,3,0)) -> 4 | D65: 08222 | E65: эл.мон | F65: 2020-04-01
A66: 61 | B66: =IF(D66=0," ",VLOOKUP(D66,'Список рабочих'!A$1:B$162,2,0)) -> Семенов М. А. | C66: =IF(D66=0," ",VLOOKUP(D66,'Список рабочих'!A$1:C$202,3,0)) -> 3 | D66: 08276 | E66: эл.мон | F66: 2020-10-01
A67: 62 | B67: =IF(D67=0," ",VLOOKUP(D67,'Список рабочих'!A$1:B$162,2,0)) -> Соколов А. С. | C67: =IF(D67=0," ",VLOOKUP(D67,'Список рабочих'!A$1:C$202,3,0)) -> 3 | D67: 08303 | E67: эл.мон | F67: 2020-05-01
A68: 63 | B68: =IF(D68=0," ",VLOOKUP(D68,'Список рабочих'!A$1:B$162,2,0)) -> Сухопаров С. В. | C68: =IF(D68=0," ",VLOOKUP(D68,'Список рабочих'!A$1:C$202,3,0)) -> 4 | D68: 08299 | E68: эл.мон | F68: 2020-04-01
A69: 64 | B69: =IF(D69=0," ",VLOOKUP(D69,'Список рабочих'!A$1:B$162,2,0)) -> Соловьев В. В. | C69: =IF(D69=0," ",VLOOKUP(D69,'Список рабочих'!A$1:C$202,3,0)) -> 4 | D69: 93562 | E69: эл.мон | F69: 2020-10-01
A70: 65 | B70: =IF(D70=0," ",VLOOKUP(D70,'Список рабочих'!A$1:B$162,2,0)) -> Томилова В. И. | C70: =IF(D70=0," ",VLOOKUP(D70,'Список рабочих'!A$1:C$202,3,0)) -> 4 | D70: 08012 | E70: эл.мон | F70: 2020-12-01
A71: 66 | B71: =IF(D71=0," ",VLOOKUP(D71,'Список рабочих'!A$1:B$162,2,0)) -> Тулуш А. С. | C71: =IF(D71=0," ",VLOOKUP(D71,'Список рабочих'!A$1:C$202,3,0)) -> 5 | D71: 08237 | E71: рег. | F71: 2020-05-01
A72: 67 | B72: =IF(D72=0," ",VLOOKUP(D72,'Список рабочих'!A$1:B$162,2,0)) -> Тяпкин А. П. | C72: =IF(D72=0," ",VLOOKUP(D72,'Список рабочих'!A$1:C$202,3,0)) -> 4 | D72: 08241 | E72: залив. | F72: 2020-05-01
A73: 68 | B73: =IF(D73=0," ",VLOOKUP(D73,'Список рабочих'!A$1:B$162,2,0)) -> Ушаков А. В. | C73: =IF(D73=0," ",VLOOKUP(D73,'Список рабочих'!A$1:C$202,3,0)) -> 3 | D73: 08257 | E73: эл.мон | F73: 2020-10-01
A74: 69 | B74: =IF(D74=0," ",VLOOKUP(D74,'Список рабочих'!A$1:B$162,2,0)) -> Федорин А. В. | C74: =IF(D74=0," ",VLOOKUP(D74,'Список рабочих'!A$1:C$202,3,0)) -> 4 | D74: 08249 | E74: рег. | F74: 2020-05-01
A75: 70 | B75: =IF(D75=0," ",VLOOKUP(D75,'Список рабочих'!A$1:B$162,2,0)) -> Фещенко И. И. | C75: =IF(D75=0," ",VLOOKUP(D75,'Список рабочих'!A$1:C$202,3,0)) -> 6 | D75: 08245 | E75: рег. | F75: 2020-05-01
A76: 71 | B76: =IF(D76=0," ",VLOOKUP(D76,'Список рабочих'!A$1:B$162,2,0)) -> Филиппов В. В. | C76: =IF(D76=0," ",VLOOKUP(D76,'Список рабочих'!A$1:C$202,3,0)) -> 3 | D76: 08297 | E76: эл.мон | F76: 2020-04-01
A77: 72 | B77: =IF(D77=0," ",VLOOKUP(D77,'Список рабочих'!A$1:B$162,2,0)) -> Хробостова Т. Ю. | C77: =IF(D77=0," ",VLOOKUP(D77,'Список рабочих'!A$1:C$202,3,0)) -> 4 | D77: 08319 | E77: эл.мон | F77: 2020-12-01
A78: 73 | B78: =IF(D78=0," ",VLOOKUP(D78,'Список рабочих'!A$1:B$162,2,0)) -> Цыганец С. И. | C78: =IF(D78=0," ",VLOOKUP(D78,'Список рабочих'!A$1:C$202,3,0)) -> 2 | D78: 93510 | E78: эл.мон | F78: 2020-04-01
A79: 74 | B79: =IF(D79=0," ",VLOOKUP(D79,'Список рабочих'!A$1:B$162,2,0)) -> Шевчук А. В. | C79: =IF(D79=0," ",VLOOKUP(D79,'Список рабочих'!A$1:C$202,3,0)) -> 3 | D79: 08267 | E79: эл.мон | F79: 2020-10-01
A80: 75 | B80: =IF(D80=0," ",VLOOKUP(D80,'Список рабочих'!A$1:B$162,2,0)) ->  | C80: =IF(D80=0," ",VLOOKUP(D80,'Список рабочих'!A$1:C$202,3,0)) ->  | D80: 08198 | E80: эл.мон | F80: 2020-10-01
A81: 76 | B81: =IF(D81=0," ",VLOOKUP(D81,'Список рабочих'!A$1:B$162,2,0)) ->  | C81: =IF(D81=0," ",VLOOKUP(D81,'Список рабочих'!A$1:C$202,3,0)) ->  | D81: 08302 | E81: эл.мон | F81: 2020-04-01
A82: 77 | B82: =IF(D82=0," ",VLOOKUP(D82,'Список рабочих'!A$1:B$162,2,0)) -> Козлов Н. К. | D82: 08311 | E82: эл.мон
A83: 78 | B83: =IF(D83=0," ",VLOOKUP(D83,'Список рабочих'!A$1:B$162,2,0)) -> Осипов Е. В. | D83: 08312 | E83: эл.мон
A84: 79 | B84: =IF(D84=0," ",VLOOKUP(D84,'Список рабочих'!A$1:B$162,2,0)) -> Косимов Х.Г. | D84: 08313 | E84: эл.мон
A85: 80 | B85: =IF(D85=0," ",VLOOKUP(D85,'Список рабочих'!A$1:B$162,2,0)) -> 
A86: 81 | B86: =IF(D86=0," ",VLOOKUP(D86,'Список рабочих'!A$1:B$162,2,0)) -> 
A87: 82 | B87: =IF(D87=0," ",VLOOKUP(D87,'Список рабочих'!A$1:B$162,2,0)) -> 
A88: 83 | B88: =IF(D88=0," ",VLOOKUP(D88,'Список рабочих'!A$1:B$162,2,0)) -> 
A89: 84 | B89: =IF(D89=0," ",VLOOKUP(D89,'Список рабочих'!A$1:B$162,2,0)) -> 
A90: 85 | B90: =IF(D90=0," ",VLOOKUP(D90,'Список рабочих'!A$1:B$162,2,0)) -> 
A91: 86 | B91: =IF(D91=0," ",VLOOKUP(D91,'Список рабочих'!A$1:B$162,2,0)) -> 
A92: 87 | B92: =IF(D92=0," ",VLOOKUP(D92,'Список рабочих'!A$1:B$162,2,0)) -> 
A93: 88 | B93: =IF(D93=0," ",VLOOKUP(D93,'Список рабочих'!A$1:B$162,2,0)) -> Иваненков А. В. | D93: 08191 | F93: 2020-10-01
A94: 89 | B94: =IF(D94=0," ",VLOOKUP(D94,'Список рабочих'!A$1:B$162,2,0)) -> Токарь С. Е. | D94: 08273
A95: 90 | B95: =IF(D95=0," ",VLOOKUP(D95,'Список рабочих'!A$1:B$162,2,0)) -> Гавриш В. В. | D95: 08214 | F95: 2020-10-01
A96: 91 | B96: =IF(D96=0," ",VLOOKUP(D96,'Список рабочих'!A$1:B$162,2,0)) -> Новиков П. А. | D96: 08239
A97: 92 | B97: =IF(D97=0," ",VLOOKUP(D97,'Список рабочих'!A$1:B$162,2,0)) -> Волков А. А. | D97: 08240 | F97: 2020-10-01
A98: 93 | B98: =IF(D98=0," ",VLOOKUP(D98,'Список рабочих'!A$1:B$162,2,0)) -> 
A99: 94 | B99: =IF(D99=0," ",VLOOKUP(D99,'Список рабочих'!A$1:B$162,2,0)) -> Ермаков В. В. | D99: 08001
A100: 95 | B100: =IF(D100=0," ",VLOOKUP(D100,'Список рабочих'!A$1:B$162,2,0)) -> Кормачев К. В. | D100: 08309
A101: 96 | B101: =IF(D101=0," ",VLOOKUP(D101,'Список рабочих'!A$1:B$162,2,0)) -> 

Sheet Список рабочих
A1: 08251 | B1: Волков Я. В. | C1: 3
A2: 08258 | B2: Варшуков А.В. | C2: 3
A3: 08322 | B3: Федосеев А.А. | C3: 4
A4: 08182 | B4: Андрусенко А. В. | C4: 3
A5: 08348 | B5: Тихонов П.Н. | C5: 4
A6: 08212 | B6: Бажков А. А. | C6: 6
A7: 08009 | B7: Бойков А. А. | C7: 5
A8: 08244 | B8: Белоусов А. В. | C8: 4
A9: 08130 | B9: Буторина Т. М. | C9: 4
A10: 02648 | B10: Суворов В. П. | C10: 4
A11: 08235 | B11: Васильев А. Ю. | C11: 5
A12: 08260 | B12: Гребенюк И.А. | C12: 3
A13: 08199 | B13: Вдовин А. А. | C13: 3
A14: 08240 | B14: Волков А. А. | C14: 5
A15: 08018 | B15: Вирки И. И. | C15: 4
A16: 08243 | B16: Гаврилов А. Б. | C16: 3
A17: 08097 | B17: Галицкий А. В. | C17: 5
A18: 08252 | B18: Марьянков И. В. | C18: 5
A19: 08262 | B19: Турушев С. | C19: 3
A20: 08236 | B20: Головкин А. В. | C20: 4
A21: 08264 | B21: Кондратюк И. М. | C21: 3
A22: 08256 | B22: Бельтюков Д. | C22: 3
A23: 08211 | B23: Евдокимов К. А. | C23: 3
A24: 08001 | B24: Ермаков В. В. | C24: 5
A25: 08111 | B25: Ефимова Е. А. | C25: 4
A26: 08112 | B26: Жуков С. А. | C26: 4
A27: 08255 | B27: Сакс Д. С. | C27: 3
A28: 08246 | B28: Захаров А. Б. | C28: 4
A29: 08234 | B29: Иванов А. В. | C29: 4
A30: 08172 | B30: Иванов Д. В. | C30: 4
A31: 08254 | B31: Пахомов В. С. | C31: 3
A32: 08191 | B32: Иваненков А. В.
A33: 08221 | B33: Ильин А. В. | C33: 4
A34: 08195 | B34: Исаков С. А. | C34: 3
A35: 08227 | B35: Казак А. В. | C35: 4
A36: 08238 | B36: Килимник О. В. | C36: 4
A37: 93510 | B37: Цыганец С. И. | C37: 2
A38: 08208 | B38: Клюев Л. И. | C38: 4
A39: 08242 | B39: Лукин С. В. | C39: 4
A40: 08265 | B40: Иванов Д. С. | C40: 3
A41: 08177 | B41: Мельников А. В. | C41: 5
A42: 08230 | B42: Муковнин Д. В. | C42: 3
A43: 08217 | B43: Никаноров В. Е. | C43: 4
A44: 08152 | B44: Остапчук В. В. | C44: 5
A45: 08115 | B45: Панов А. Г. | C45: 4
A46: 08180 | B46: Парри А. В. | C46: 3
A47: 08132 | B47: Петрунин А. Н. | C47: 5
A48: 00294 | B48: Махров А. В. | C48: 4
A49: 08218 | B49: Приходько А. А. | C49: 5
A50: 00211 | B50: Петиков Г. Б. | C50: 5
A51: 08229 | B51: Речинский В. А. | C51: 4
A52: 08186 | B52: Рыжиков А. Н. | C52: 4
A53: 08095 | B53: Рыбалкина Е. Г. | C53: 4
A54: 08194 | B54: Самарец А. А. | C54: 4
A55: 08222 | B55: Свояков Н. А. | C55: 4
A56: 05661 | B56: Серов И. А. | C56: 5
A57: 08012 | B57: Томилова В. И. | C57: 4
A58: 08247 | B58: Тургаев Э. Т. | C58: 4
A59: 08237 | B59: Тулуш А. С. | C59: 5
A60: 08241 | B60: Тяпкин А. П. | C60: 4
A61: 08257 | B61: Ушаков А. В. | C61: 3
A62: 08249 | B62: Федорин А. В. | C62: 4
A63: 08245 | B63: Фещенко И. И. | C63: 6
A64: 08353 | B64: Шибаев Р. С. | C64: 4
A65: 08193 | B65: Шомполов В. А. | C65: 5
A66: 08190 | B66: Шаронов С. Н. | C66: 3
A67: 08319 | B67: Хробостова Т. Ю. | C67: 4
A68: 08266 | B68: Парри С. А. | C68: 3
A69: 08224 | B69: Ястребов С. М. | C69: 4
A70: 08279 | B70: Анищенко А. Г. | C70: 3
A71: 09849 | B71: Гуменный Д. В. | C71: 3
A72: 09850 | B72: Лозовский И. А. | C72: 4
A73: 02589 | B73: Толдонов Н. Н. | C73: 4
A74: 00227 | B74: Булаков С. А. | C74: 4
A75: 00337 | B75: Клепиков М. Ю. | C75: 4
A76: 00442 | B76: Сергеев Н. В. | C76: 4
A77: 00472 | B77: Крылов С. В. | C77: 5
A78: 00326 | B78: Макаров Г. Н. | C78: 5
A79: 02997 | B79: Азизова М. Д. | C79: 2
A80: 03029 | B80: Асташева Е. А. | C80: 3
A81: 03104 | B81: Маршанова Л. В. | C81: 2
A82: 02733 | B82: Диев | C82: 5
A83: 08267 | B83: Шевчук А. В. | C83: 3
A84: 08265 | B84: Иванов Д. С. | C84: 3
A85: 00049 | B85: Иванов В. В. | C85: 5
A86: 02856 | B86: Бельтюков Д. | C86: 3
A87: 00099 | B87: Егоров К. А. | C87: 4
A88: 0049 | B88: Иванов В. В. | C88: 5
A89: 00669 | B89: Васьковский С. В. | C89: 3
A90: 08271 | B90: Вараксин П. А. | C90: 4
A91: 08268 | B91: Клюев Д. Л. | C91: 3
A92: 09832 | B92: Лавренчук В.В. | C92: 4
A93: 08269 | B93: Мельников В. Ю. | C93: 4
A94: 00038 | B94: Родин Д. Б. | C94: 3
A95: 00278 | B95: Задиренко С. Н. | C95: 4
A96: 00770 | B96: Нуритдинова О. М. | C96: 4
A97: 9848 | B97: Доманова В. В. | C97: 4
A98: 08272 | B98: Гаврюшин Г. А. | C98: 3
A99: 08274 | B99: Поляков А. А. | C99: 3
A100: 08276 | B100: Семенов М. А. | C100: 3
A101: 08275 | B101: Хапов А. О. | C101: 3
A102: 08278 | B102: Абрамов Е. В. | C102: 3
A103: 08280 | B103: Комиссаров Д. В. | C103: 2
A104: 08323 | B104: Остапчук В. В. | C104: 5
A105: 08283 | B105: Мотовилин Э.В. | C105: 3
A106: 08324 | B106: Жегуров А.А. | C106: 3
A107: 08286 | B107: Разов Д. С. | C107: 3
A108: 08325 | B108: Сухарев А.А | C108: 3
A109: 555 | B109: Яшевичев И.И. | C109: север.
A110: 08287 | B110: Захаров В. К. | C110: 4
A111: 08291 | B111: Митнев А. П. | C111: 3
A112: 08289 | B112: Саноян А. А. | C112: 3
A113: 08290 | B113: Платонов Д. С. | C113: 3
A114: 08297 | B114: Филиппов В. В. | C114: 3
A115: 08326 | B115: Теселкин Д.В. | C115: 3
A116: 08299 | B116: Сухопаров С. В. | C116: 4
A117: 08300 | B117: Иванов А. Ю. | C117: 3
A118: 111 | B118: Клепиков М. Ю. | C118: север.
A119: 08295 | B119: Кузьменков С. Д. | C119: 3
A120: 222 | B120: Дыбов И.И. | C120: север.
A121: 08296 | B121: Данилов В. Н. | C121: 3
A122: 333 | B122: Мешков А.Б. | C122: север.
A123: 08303 | B123: Соколов А. С. | C123: 3
A124: 444 | B124: Макаров Г. Н. | C124: север.
A125: 08305 | B125: Виноградов Р. И. | C125: 3
A126: 93562 | B126: Соловьев В. В. | C126: 4
A127: 08306 | B127: Медведев В. К. | C127: 4
A128: 08273 | B128: Токарь С. Е.
A129: 08214 | B129: Гавриш В. В.
A130: 08239 | B130: Новиков П. А.
A131: 08308 | B131: Карпов С. Н.
A132: 08310 | B132: Елисеев А. В. | C132: 4
A133: 08309 | B133: Кормачев К. В.
A134: 08311 | B134: Козлов Н. К. | C134: 3
A135: 08312 | B135: Осипов Е. В. | C135: 2
A136: 08313 | B136: Косимов Х.Г. | C136: 3
A137: 08315 | B137: Виноградов А.А. | C137: 2
A138: 08346 | B138: Косимов С.Х. | C138: 2
A139: 08317 | B139: Герасимов В.А. | C139: 4
A140: 08318 | B140: Нормонтас Н.Ю. | C140: 2
A141: 08320 | B141: Кублов А.А. | C141: 3
A142: 08327 | B142: Реутов А. М. | C142: 3
A143: 6666 | B143: Акбердиев Ю.Т. | C143: 3
A144: 083091 | B144: Белоус А. А. | C144: 2
A145: 08331 | B145: Паршуков В. О. | C145: 3
A146: 08332 | B146: Иванов П. М. | C146: 2
A147: 08333 | B147: Кочнев А. М. | C147: 3
A148: 08334 | B148: Алексеев П. А. | C148: 3
A149: 08335 | B149: Черников Ф. А. | C149: 2
A150: 08336 | B150: Яруллин Р. Т. | C150: 3
A151: 08337 | B151: Михайлов В. В. | C151: 3
A152: 08338 | B152: Шишов Д. С. | C152: 3
A153: 08340 | B153: Мальцев А. Е. | C153: 2
A154: 08341 | B154: Родин Д. В. | C154: 3
A155: 08342 | B155: Тагальник Н. В. | C155: 2
A156: 08344 | B156: Румянцев К. Р. | C156: 2
A157: 9856 | B157: Кидяйкин Р.А. | C157: 2
A158: 1111 | B158: Бузицкий В. Д. | C158: 2
A159: 08350 | B159: Пушкин А. В.
A160: 08352 | B160: Скляренко С. В. | C160: 2
A161: 006167 | B161: Байдин А. А. | C161: 3
A162: 006169 | B162: Гареев М. И. | C162: 2
A163: 006170 | B163: Мамонтов Д. П. | C163: 4
A164: 006200 | B164: Остапчук Н. К. | C164: 4
A165: 006199 | B165: Ефремов В. В. | C165: 3
A166: 006225 | B166: Дроздов А. С. | C166: 2
A167: 006224 | B167: Румянцев К. А. | C167: 2
A168: 88888 | B168: Чернов Е. И. | C168: 4
A169: 006261 | B169: Юсупов Д. Х. | C169: 2
A170: 006293 | B170: Новицкий Р. П. | C170: 2

Sheet аванс
A1: Аванс июль 2022 г. | I1: Аванс июль 2022 г.
A3: № | B3: Ф.И.О. | C3: таб. № | D3: сумма | I3: № | J3: Ф.И.О. | K3: таб. № | L3: сумма
A5: 1 | B5: =IF(C5=0," ",VLOOKUP(C5,'Список рабочих'!A$1:B$162,2,0)) -> Абрамов Е. В. | C5: 08278 | D5: 15000 | E5: 15000 | I5: 47 | J5: =IF(K5=0," ",VLOOKUP(K5,'Список рабочих'!A$1:B$162,2,0)) -> Петрунин А. Н. | K5: 08132 | L5: 0 | M5: 15000
A6: 2 | B6: =IF(C6=0," ",VLOOKUP(C6,'Список рабочих'!A$1:B$162,2,0)) -> Алексеев П. А. | C6: 08334 | D6: 20000 | E6: 20000 | I6: 48 | J6: =IF(K6=0," ",VLOOKUP(K6,'Список рабочих'!A$1:B$162,2,0)) -> Приходько А. А. | K6: 08218 | L6: 0 | M6: 20000
A7: 3 | B7: =IF(C7=0," ",VLOOKUP(C7,'Список рабочих'!A$1:B$162,2,0)) -> Бойков А. А. | C7: 08009 | D7: 0 | E7: 10000 | I7: 49 | J7: =IF(K7=0," ",VLOOKUP(K7,'Список рабочих'!A$1:B$162,2,0)) -> Паршуков В. О. | K7: 08331 | L7: 0 | M7: 15000
A8: 4 | B8: =IF(C8=0," ",VLOOKUP(C8,'Список рабочих'!A$1:B$162,2,0)) -> Буторина Т. М. | C8: 08130 | D8: 5000 | E8: 15000 | I8: 50 | J8: =IF(K8=0," ",VLOOKUP(K8,'Список рабочих'!A$1:B$162,2,0)) -> Тихонов П.Н. | K8: 08348 | L8: 10000 | M8: 10000
A9: 5 | B9: =IF(C9=0," ",VLOOKUP(C9,'Список рабочих'!A$1:B$162,2,0)) -> Бузицкий В. Д. | C9: 1111 | D9: 15000 | E9: 15000 | I9: 51 | J9: =IF(K9=0," ",VLOOKUP(K9,'Список рабочих'!A$1:B$162,2,0)) -> Речинский В. А. | K9: 08229 | L9: 0 | M9: 20000
A10: 6 | B10: =IF(C10=0," ",VLOOKUP(C10,'Список рабочих'!A$1:B$162,2,0)) -> Васильев А. Ю. | C10: 08235 | D10: 5000 | E10: 20000 | I10: 52 | J10: =IF(K10=0," ",VLOOKUP(K10,'Список рабочих'!A$1:B$162,2,0)) -> Родин Д. В. | K10: 08341 | L10: 5000 | M10: 15000
A11: 7 | B11: =IF(C11=0," ",VLOOKUP(C11,'Список рабочих'!A$1:B$162,2,0)) -> Вараксин П. А. | C11: 08271 | D11: 15000 | E11: 15000 | I11: 53 | J11: =IF(K11=0," ",VLOOKUP(K11,'Список рабочих'!A$1:B$162,2,0)) -> Рыжиков А. Н. | K11: 08186 | L11: 10000 | M11: 10000
A12: 8 | B12: =IF(C12=0," ",VLOOKUP(C12,'Список рабочих'!A$1:B$162,2,0)) -> Васьковский С. В. | C12: 00669 | D12: 5000 | E12: 20000 | I12: 54 | J12: =IF(K12=0," ",VLOOKUP(K12,'Список рабочих'!A$1:B$162,2,0)) -> Рыбалкина Е. Г. | K12: 08095 | L12: 0 | M12: 10000
A13: 9 | B13: =IF(C13=0," ",VLOOKUP(C13,'Список рабочих'!A$1:B$162,2,0)) -> Вирки И. И. | C13: 08018 | D13: 0 | E13: 10000 | I13: 55 | J13: =IF(K13=0," ",VLOOKUP(K13,'Список рабочих'!A$1:B$162,2,0)) ->  | L13: 0
A14: 10 | B14: =IF(C14=0," ",VLOOKUP(C14,'Список рабочих'!A$1:B$162,2,0)) -> Вдовин А. А. | C14: 08199 | D14: 10000 | E14: 10000 | I14: 56 | J14: =IF(K14=0," ",VLOOKUP(K14,'Список рабочих'!A$1:B$162,2,0)) -> Самарец А. А. | K14: 08194 | L14: 5000 | M14: 15000
A15: 11 | B15: =IF(C15=0," ",VLOOKUP(C15,'Список рабочих'!A$1:B$162,2,0)) -> Гаврилов А. Б. | C15: 08243 | D15: 15000 | E15: 15000 | I15: 57 | J15: =IF(K15=0," ",VLOOKUP(K15,'Список рабочих'!A$1:B$162,2,0)) -> Сакс Д. С. | K15: 08255 | L15: 0 | M15: 20000
A16: 12 | B16: =IF(C16=0," ",VLOOKUP(C16,'Список рабочих'!A$1:B$162,2,0)) -> Галицкий А. В. | C16: 08097 | D16: 5000 | E16: 15000 | I16: 58 | J16: =IF(K16=0," ",VLOOKUP(K16,'Список рабочих'!A$1:B$162,2,0)) -> Свояков Н. А. | K16: 08222 | L16: 15000 | M16: 20000
A17: 13 | B17: =IF(C17=0," ",VLOOKUP(C17,'Список рабочих'!A$1:B$162,2,0)) -> Гребенюк И.А. | C17: 08260 | D17: 0 | E17: 10000 | I17: 59 | J17: =IF(K17=0," ",VLOOKUP(K17,'Список рабочих'!A$1:B$162,2,0)) -> Семенов М. А. | K17: 08276 | L17: 5000 | M17: 20000
A18: 14 | B18: =IF(C18=0," ",VLOOKUP(C18,'Список рабочих'!A$1:B$162,2,0)) -> Данилов В. Н. | C18: 08296 | D18: 0 | E18: 15000 | I18: 60 | J18: =IF(K18=0," ",VLOOKUP(K18,'Список рабочих'!A$1:B$162,2,0)) -> Соколов А. С. | K18: 08303 | L18: 0 | M18: 10000
A19: 15 | B19: =IF(C19=0," ",VLOOKUP(C19,'Список рабочих'!A$1:B$162,2,0)) -> Евдокимов К. А. | C19: 08211 | D19: 0 | E19: 20000 | I19: 61 | J19: =IF(K19=0," ",VLOOKUP(K19,'Список рабочих'!A$1:B$162,2,0)) -> Сухарев А.А | K19: 08325 | L19: 20000 | M19: 20000
A20: 16 | B20: =IF(C20=0," ",VLOOKUP(C20,'Список рабочих'!A$1:B$162,2,0)) -> Елисеев А. В. | C20: 08310 | D20: 20000 | E20: 20000 | I20: 62 | J20: =IF(K20=0," ",VLOOKUP(K20,'Список рабочих'!A$1:B$162,2,0)) -> Сухопаров С. В. | K20: 08299 | L20: 15000 | M20: 15000
A21: 17 | B21: =IF(C21=0," ",VLOOKUP(C21,'Список рабочих'!A$1:B$162,2,0)) -> Захаров А. Б. | C21: 08246 | D21: 0 | E21: 20000 | I21: 63 | J21: =IF(K21=0," ",VLOOKUP(K21,'Список рабочих'!A$1:B$162,2,0)) -> Соловьев В. В. | K21: 93562 | L21: 0 | M21: 10000
A22: 18 | B22: =IF(C22=0," ",VLOOKUP(C22,'Список рабочих'!A$1:B$162,2,0)) -> Иванов А. В. | C22: 08234 | D22: 0 | E22: 20000 | I22: 64 | J22: =IF(K22=0," ",VLOOKUP(K22,'Список рабочих'!A$1:B$162,2,0)) -> Тагальник Н. В. | K22: 08342 | L22: 0 | M22: 10000
A23: 19 | B23: =IF(C23=0," ",VLOOKUP(C23,'Список рабочих'!A$1:B$162,2,0)) -> Иванов А. Ю. | C23: 08300 | D23: 0 | E23: 20000 | I23: 65 | J23: =IF(K23=0," ",VLOOKUP(K23,'Список рабочих'!A$1:B$162,2,0)) -> Теселкин Д.В. | K23: 08326 | L23: 5000 | M23: 15000
A24: 20 | B24: =IF(C24=0," ",VLOOKUP(C24,'Список рабочих'!A$1:B$162,2,0)) -> Ильин А. В. | C24: 08221 | D24: 0 | I24: 66 | J24: =IF(K24=0," ",VLOOKUP(K24,'Список рабочих'!A$1:B$162,2,0)) -> Томилова В. И. | K24: 08012 | L24: 5000 | M24: 10000
A25: 21 | B25: =IF(C25=0," ",VLOOKUP(C25,'Список рабочих'!A$1:B$162,2,0)) -> Иванов П. М. | C25: 08332 | D25: 10000 | E25: 10000 | I25: 67 | L25: 0
A26: 22 | B26: =IF(C26=0," ",VLOOKUP(C26,'Список рабочих'!A$1:B$162,2,0)) -> Козлов Н. К. | C26: 08311 | D26: 0 | I26: 68 | J26: =IF(K26=0," ",VLOOKUP(K26,'Список рабочих'!A$1:B$162,2,0)) -> Тяпкин А. П. | K26: 08241 | L26: 10000 | M26: 10000
A27: 23 | B27: =IF(C27=0," ",VLOOKUP(C27,'Список рабочих'!A$1:B$162,2,0)) -> Кондратюк И. М. | C27: 08264 | D27: 0 | E27: 20000 | I27: 69 | J27: =IF(K27=0," ",VLOOKUP(K27,'Список рабочих'!A$1:B$162,2,0)) -> Ушаков А. В. | K27: 08257 | L27: 0 | M27: 15000
A28: 24 | B28: =IF(C28=0," ",VLOOKUP(C28,'Список рабочих'!A$1:B$162,2,0)) -> Казак А. В. | C28: 08227 | D28: 0 | E28: 10000 | I28: 70 | J28: =IF(K28=0," ",VLOOKUP(K28,'Список рабочих'!A$1:B$162,2,0)) -> Кидяйкин Р.А. | K28: 9856 | L28: 5000 | M28: 10000
A29: 25 | B29: =IF(C29=0," ",VLOOKUP(C29,'Список рабочих'!A$1:B$162,2,0)) -> Килимник О. В. | C29: 08238 | D29: 20000 | E29: 20000 | I29: 71 | J29: =IF(K29=0," ",VLOOKUP(K29,'Список рабочих'!A$1:B$162,2,0)) -> Фещенко И. И. | K29: 08245 | L29: 10000 | M29: 10000
A30: 26 | B30: =IF(C30=0," ",VLOOKUP(C30,'Список рабочих'!A$1:B$162,2,0)) -> Косимов Х.Г. | C30: 08313 | D30: 5000 | E30: 25000 | I30: 72 | J30: =IF(K30=0," ",VLOOKUP(K30,'Список рабочих'!A$1:B$162,2,0)) -> Хробостова Т. Ю. | K30: 08319 | L30: 0 | M30: 10000
A31: 27 | B31: =IF(C31=0," ",VLOOKUP(C31,'Список рабочих'!A$1:B$162,2,0)) -> Клюев Л. И. | C31: 08208 | D31: 0 | E31: 10000 | I31: 73 | J31: =IF(K31=0," ",VLOOKUP(K31,'Список рабочих'!A$1:B$162,2,0)) -> Шишов Д. С. | K31: 08338 | L31: 15000 | M31: 15000
A32: 28 | B32: =IF(C32=0," ",VLOOKUP(C32,'Список рабочих'!A$1:B$162,2,0)) -> Клюев Д. Л. | C32: 08268 | D32: 20000 | E32: 20000 | I32: 74 | J32: =IF(K32=0," ",VLOOKUP(K32,'Список рабочих'!A$1:B$162,2,0)) -> Яруллин Р. Т. | K32: 08336 | L32: 5000 | M32: 15000
A33: 29 | B33: =IF(C33=0," ",VLOOKUP(C33,'Список рабочих'!A$1:B$162,2,0)) -> Комиссаров Д. В. | C33: 08280 | D33: 0 | E33: 10000 | I33: 75 | J33: =IF(K33=0," ",VLOOKUP(K33,'Список рабочих'!A$1:B$200,2,0)) -> Митнев А. П. | K33: 08291 | L33: 20000 | M33: 20000
A34: 30 | B34: =IF(C34=0," ",VLOOKUP(C34,'Список рабочих'!A$1:B$162,2,0)) -> Кочнев А. М. | C34: 08333 | D34: 0 | E34: 15000 | I34: 76 | J34: =IF(K34=0," ",VLOOKUP(K34,'Список рабочих'!A$1:B$162,2,0)) -> Румянцев К. Р. | K34: 08344 | L34: 0 | M34: 10000
A35: 31 | B35: =IF(C35=0," ",VLOOKUP(C35,'Список рабочих'!A$1:B$162,2,0)) -> Лозовский И. А. | C35: 09850 | D35: 10000 | E35: 20000 | I35: 77 | J35: =IF(K35=0," ",VLOOKUP(K35,'Список рабочих'!A$1:B$162,2,0)) -> Иваненков А. В. | K35: 08191 | L35: 30000 | M35: 25000
A36: 32 | B36: =IF(C36=0," ",VLOOKUP(C36,'Список рабочих'!A$1:B$162,2,0)) -> Косимов С.Х. | C36: 08346 | D36: 10000 | E36: 10000 | I36: 78 | J36: =IF(K36=0," ",VLOOKUP(K36,'Список рабочих'!A$1:B$162,2,0)) -> Токарь С. Е. | K36: 08273 | L36: 20000 | M36: 20000
A37: 33 | B37: =IF(C37=0," ",VLOOKUP(C37,'Список рабочих'!A$1:B$162,2,0)) -> Мельников А. В. | C37: 08177 | D37: 10000 | E37: 10000 | I37: 79 | J37: =IF(K37=0," ",VLOOKUP(K37,'Список рабочих'!A$1:B$162,2,0)) -> Гавриш В. В. | K37: 08214 | L37: 20000 | M37: 20000
A38: 34 | B38: =IF(C38=0," ",VLOOKUP(C38,'Список рабочих'!A$1:B$162,2,0)) -> Мельников В. Ю. | C38: 08269 | D38: 0 | E38: 10000 | I38: 81 | J38: =IF(K38=0," ",VLOOKUP(K38,'Список рабочих'!A$1:B$162,2,0)) -> Кормачев К. В. | K38: 08309 | L38: 0 | M38: 10000
A39: 35 | B39: =IF(C39=0," ",VLOOKUP(C39,'Список рабочих'!A$1:B$162,2,0)) -> Медведев В. К. | C39: 08306 | D39: 20000 | E39: 20000 | I39: 81 | J39: =IF(K39=0," ",VLOOKUP(K39,'Список рабочих'!A$1:B$200,2,0)) -> Федорин А. В. | K39: 08249 | L39: 10000 | M39: 10000
A40: 36 | B40: =IF(C40=0," ",VLOOKUP(C40,'Список рабочих'!A$1:B$162,2,0)) -> Мотовилин Э.В. | C40: 08283 | D40: 0 | E40: 10000 | I40: 82 | J40: =IF(K40=0," ",VLOOKUP(K40,'Список рабочих'!A$1:B$162,2,0)) -> Ермаков В. В. | K40: 08001 | L40: 25000 | M40: 25000
A41: 37 | B41: =IF(C41=0," ",VLOOKUP(C41,'Список рабочих'!A$1:B$162,2,0)) -> Муковнин Д. В. | C41: 08230 | D41: 20000 | E41: 20000 | I41: 83 | J41: =IF(K41=0," ",VLOOKUP(K41,'Список рабочих'!A$1:B$162,2,0)) ->  | L41: 0
A42: 38 | B42: =IF(C42=0," ",VLOOKUP(C42,'Список рабочих'!A$1:B$162,2,0)) -> Михайлов В. В. | C42: 08337 | D42: 0 | E42: 15000 | I42: 84
A43: 39 | B43: =IF(C43=0," ",VLOOKUP(C43,'Список рабочих'!A$1:B$162,2,0)) -> Мальцев А. Е. | C43: 08340 | D43: 0 | E43: 15000 | I43: 85 | J43: =IF(K43=0," ",VLOOKUP(K43,'Список рабочих'!A$1:B$182,2,0)) -> 
A44: 40 | B44: =IF(C44=0," ",VLOOKUP(C44,'Список рабочих'!A$1:B$162,2,0)) -> Никаноров В. Е. | C44: 08217 | D44: 0 | E44: 15000 | I44: 86 | J44: =IF(K44=0," ",VLOOKUP(K44,'Список рабочих'!A$1:B$162,2,0)) -> 
A45: 41 | B45: =IF(C45=0," ",VLOOKUP(C45,'Список рабочих'!A$1:B$162,2,0)) -> Осипов Е. В. | C45: 08312 | D45: 15000 | E45: 15000 | I45: 87 | J45: =IF(K45=0," ",VLOOKUP(K45,'Список рабочих'!A$1:B$162,2,0)) -> 
A46: 42 | B46: =IF(C46=0," ",VLOOKUP(C46,'Список рабочих'!A$1:B$162,2,0)) -> Остапчук В. В. | C46: 08323 | D46: 0 | E46: 15000 | I46: 88 | J46: =IF(K46=0," ",VLOOKUP(K46,'Список рабочих'!A$1:B$162,2,0)) -> 
A47: 43 | B47: =IF(C47=0," ",VLOOKUP(C47,'Список рабочих'!A$1:B$162,2,0)) -> Парри А. В. | C47: 08180 | D47: 5000 | E47: 10000 | I47: 89 | J47: =IF(K47=0," ",VLOOKUP(K47,'Список рабочих'!A$1:B$162,2,0)) -> 
A48: 44 | B48: =IF(C48=0," ",VLOOKUP(C48,'Список рабочих'!A$1:B$162,2,0)) -> Парри С. А. | C48: 08266 | D48: 5000 | E48: 10000 | I48: 90 | J48: =IF(K48=0," ",VLOOKUP(K48,'Список рабочих'!A$1:B$162,2,0)) -> 
A49: 45 | B49: =IF(C49=0," ",VLOOKUP(C49,'Список рабочих'!A$1:B$162,2,0)) -> Пахомов В. С. | C49: 08254 | D49: 5000 | E49: 20000 | I49: 91 | J49: =IF(K49=0," ",VLOOKUP(K49,'Список рабочих'!A$1:B$162,2,0)) -> 
A50: 46 | B50: =IF(C50=0," ",VLOOKUP(C50,'Список рабочих'!A$1:B$162,2,0)) -> Поляков А. А. | C50: 08274 | D50: 0 | E50: 15000 | I50: 92 | J50: =IF(K50=0," ",VLOOKUP(K50,'Список рабочих'!A$1:B$162,2,0)) -> 

Sheet 1
A3: Табель учета рабочего времени по филиалу "САПФИР" АО "ЭРА" на заказе 12700 зав. №522 за август 2019 г..
A5: Ф. И. О. | C5: Таб. | D5: раб. | E5: отработанное время. АВГУСТ | AJ5: Итого | AK5: Итого
C6: номер | D6: место | E6: 1 | F6: 2 | G6: 3 | H6: 4 | I6: 5 | J6: 6 | K6: 7 | L6: 8 | M6: 9 | N6: 10 | O6: 11 | P6: 12 | Q6: 13 | R6: 14 | S6: 15 | T6: 16 | U6: 17 | V6: 18 | W6: 19 | X6: 20 | Y6: 21 | Z6: 22 | AA6: 23 | AB6: 24 | AC6: 25 | AD6: 26 | AE6: 27 | AF6: 28 | AG6: 29 | AH6: 30 | AI6: 31 | AJ6: часы | AK6: Дни
A7: =IF(C7=0," ",VLOOKUP(C7,'Список рабочих'!A$1:B$162,2,0)) -> Абрамов Е. В. | C7: 08278 | D7: 522 | E7: 7.2 | F7: 7.2 | AJ7: =SUM(E7:AI7) -> 14.4 | AK7: 2
A8: =IF(C8=0," ",VLOOKUP(C8,'Список рабочих'!A$1:B$162,2,0)) -> Бойков А. А. | C8: 08009 | D8: 522 | AD8: 7.2 | AE8: 7.2 | AF8: 7.2 | AG8: 7.2 | AH8: 7.2 | AJ8: =SUM(E8:AI8) -> 36 | AK8: 5
A9: =IF(C9=0," ",VLOOKUP(C9,'Список рабочих'!A$1:B$162,2,0)) -> Буторина Т. М. | C9: 08130 | D9: 522 | E9: 7.2 | F9: 4 | AJ9: 11.2 | AK9: 2
A10: =IF(C10=0," ",VLOOKUP(C10,'Список рабочих'!A$1:B$162,2,0)) -> Бельтюков Д. | C10: 08256 | D10: 522 | E10: 7.2 | F10: 7.2 | I10: 7.2 | J10: 7.2 | K10: 7.2 | L10: 7.2 | M10: 7.2 | AJ10: 50.4 | AK10: 7
A11: =IF(C11=0," ",VLOOKUP(C11,'Список рабочих'!A$1:B$162,2,0)) -> Варшуков А.В. | C11: 08258 | D11: 522 | E11: 7.2 | F11: 7.2 | AJ11: 14.4 | AK11: 2
A12: =IF(C12=0," ",VLOOKUP(C12,'Список рабочих'!A$1:B$162,2,0)) -> Вараксин П. А. | C12: 08271 | D12: 522 | E12: 7.2 | F12: 7.2 | I12: 7.2 | J12: 7.2 | K12: 7.2 | L12: 7.2 | M12: 7.2 | AJ12: 50.4 | AK12: 7
A13: =IF(C13=0," ",VLOOKUP(C13,'Список рабочих'!A$1:B$162,2,0)) -> Васьковский С. В. | C13: 00669 | D13: 522 | E13: 7.2 | F13: 7.2 | I13: 7.2 | J13: 7.2 | K13: 7.2 | L13: 7.2 | M13: 7.2 | P13: 7.2 | AJ13: 57.6 | AK13: 8
A14: =IF(C14=0," ",VLOOKUP(C14,'Список рабочих'!A$1:B$162,2,0)) -> Вдовин А. А. | C14: 08199 | D14: 522 | E14: 7.2 | F14: 7.2 | I14: 7.2 | J14: 7.2 | K14: 7.2 | L14: 7.2 | M14: 7.2 | AJ14: 50.4 | AK14: 7
A15: =IF(C15=0," ",VLOOKUP(C15,'Список рабочих'!A$1:B$162,2,0)) -> Гребенюк И.А. | C15: 08260 | D15: 522 | E15: 7.2 | F15: 7.2 | AJ15: 14.4 | AK15: 2
A16: =IF(C16=0," ",VLOOKUP(C16,'Список рабочих'!A$1:B$162,2,0)) -> Головкин А. В. | C16: 08236 | D16: 522 | E16: 7.2 | F16: 7.2 | I16: 7.2 | J16: 7.2 | K16: 7.2 | L16: 7.2 | M16: 7.2 | AJ16: 50.4 | AK16: 7
A17: =IF(C17=0," ",VLOOKUP(C17,'Список рабочих'!A$1:B$162,2,0)) -> Гуменный Д. В. | C17: 09849 | D17: 522 | E17: 7.2 | F17: 7.2 | I17: 7.2 | J17: 7.2 | AJ17: 28.8 | AK17: 4
A18: =IF(C18=0," ",VLOOKUP(C18,'Список рабочих'!A$1:B$162,2,0)) -> Жуков С. А. | C18: 08112 | D18: 522 | E18: 7.2 | F18: 7.2 | I18: 7.2 | J18: 7.2 | K18: 7.2 | L18: 7.2 | M18: 7.2 | AJ18: 50.4 | AK18: 7
A19: =IF(C19=0," ",VLOOKUP(C19,'Список рабочих'!A$1:B$162,2,0)) -> Иванов А. В. | C19: 08234 | D19: 522 | E19: 7.2 | F19: 7.2 | I19: 7.2 | J19: 7.2 | K19: 7.2 | L19: 7.2 | M19: 7.2 | P19: 7.2 | Q19: 7.2 | R19: 7.2 | S19: 7.2 | T19: 7.2 | W19: 7.2 | X19: 7.2 | Y19: 7.2 | Z19: 7.2 | AA19: 7.2 | AD19: 7.2 | AE19: 7.2 | AF19: 7.2 | AG19: 7.2 | AH19: 7.2 | AJ19: 158.4 | AK19: 22
A20: =IF(C20=0," ",VLOOKUP(C20,'Список рабочих'!A$1:B$162,2,0)) -> Иванов Д. В. | C20: 08172 | D20: 522 | E20: 7.2 | I20: 7.2 | J20: 7.2 | K20: 7.2 | L20: 7.2 | M20: 7.2 | P20: 7.2 | Q20: 7.2 | R20: 7.2 | S20: 7.2 | T20: 7.2 | W20: 7.2 | X20: 7.2 | Y20: 7.2 | Z20: 7.2 | AD20: 7.2 | AE20: 7.2 | AF20: 7.2 | AG20: 7.2 | AH20: 7.2 | AJ20: 144 | AK20: 21
A21: =IF(C21=0," ",VLOOKUP(C21,'Список рабочих'!A$1:B$162,2,0)) -> Исаков С. А. | C21: 08195 | D21: 522 | E21: 7.2 | F21: 7.2 | I21: 7.2 | J21: 7.2 | K21: 7.2 | L21: 7.2 | M21: 7.2 | AJ21: 50.4 | AK21: 7
A22: =IF(C22=0," ",VLOOKUP(C22,'Список рабочих'!A$1:B$162,2,0)) -> Кузьменков С. Д. | C22: 08295 | D22: 522 | E22: 7.2 | F22: 7.2 | I22: 7.2 | J22: 7.2 | AJ22: 28.8 | AK22: 4
A23: =IF(C23=0," ",VLOOKUP(C23,'Список рабочих'!A$1:B$162,2,0)) ->  | C23: 08294 | D23: 522 | E23: 7.2 | F23: 7.2 | I23: 7.2 | J23: 7.2 | AJ23: 28.8 | AK23: 4
A24: =IF(C24=0," ",VLOOKUP(C24,'Список рабочих'!A$1:B$162,2,0)) -> Кондратюк И. М. | C24: 08264 | D24: 522 | E24: 7.2 | F24: 7.2 | I24: 7.2 | J24: 7.2 | K24: 7.2 | L24: 7.2 | M24: 7.2 | AJ24: 50.4 | AK24: 7
A25: =IF(C25=0," ",VLOOKUP(C25,'Список рабочих'!A$1:B$162,2,0)) -> Казак А. В. | C25: 08227 | D25: 522 | E25: 7.2 | F25: 7.2 | AJ25: 14.4 | AK25: 2
A26: =IF(C26=0," ",VLOOKUP(C26,'Список рабочих'!A$1:B$162,2,0)) -> Комиссаров Д. В. | C26: 08280 | D26: 522 | P26: 7.2 | Q26: 7.2 | R26: 7.2 | S26: 7.2 | T26: 7.2 | W26: 7.2 | X26: 7.2 | Y26: 7.2 | Z26: 7.2 | AA26: 7.2 | AD26: 7.2 | AE26: 7.2 | AF26: 7.2 | AG26: 7.2 | AH26: 7.2 | AJ26: 108 | AK26: 15
A27: =IF(C27=0," ",VLOOKUP(C27,'Список рабочих'!A$1:B$162,2,0)) -> Митнев А. П. | C27: 08291 | D27: 522 | E27: 7.2 | F27: 7.2 | AJ27: 14.4 | AK27: 2
A28: =IF(C28=0," ",VLOOKUP(C28,'Список рабочих'!A$1:B$162,2,0)) -> Мотовилин Э.В. | C28: 08283 | D28: 522 | E28: 7.2 | F28: 7.2 | AJ28: 14.4 | AK28: 2
A29: =IF(C29=0," ",VLOOKUP(C29,'Список рабочих'!A$1:B$162,2,0)) -> Муковнин Д. В. | C29: 08230 | D29: 522 | E29: 7.2 | F29: 7.2 | I29: 7.2 | AJ29: 21.6 | AK29: 3
A30: =IF(C30=0," ",VLOOKUP(C30,'Список рабочих'!A$1:B$162,2,0)) -> Панов А. Г. | C30: 08115 | D30: 522 | E30: 7.2 | F30: 7.2 | AJ30: 14.4 | AK30: 2
A31: =IF(C31=0," ",VLOOKUP(C31,'Список рабочих'!A$1:B$162,2,0)) -> Парри А. В. | C31: 08180 | D31: 522 | E31: 7.2 | F31: 7.2 | I31: 7.2 | J31: 7.2 | K31: 7.2 | L31: 7.2 | M31: 7.2 | P31: 7.2 | Q31: 7.2 | R31: 7.2 | S31: 7.2 | T31: 7.2 | W31: 7.2 | X31: 7.2 | Y31: 7.2 | Z31: 7.2 | AJ31: 115.2 | AK31: 16
A32: =IF(C32=0," ",VLOOKUP(C32,'Список рабочих'!A$1:B$162,2,0)) -> Парри С. А. | C32: 08266 | D32: 522 | E32: 7.2 | F32: 7.2 | AJ32: 14.4 | AK32: 2
A33: =IF(C33=0," ",VLOOKUP(C33,'Список рабочих'!A$1:B$162,2,0)) -> Пахомов В. С. | C33: 08254 | D33: 522 | W33: 7.2 | X33: 7.2 | Y33: 7.2 | Z33: 7.2 | AA33: 7.2 | AD33: 7.2 | AE33: 7.2 | AF33: 7.2 | AG33: 7.2 | AH33: 7.2 | AJ33: 72 | AK33: 10
A34: =IF(C34=0," ",VLOOKUP(C34,'Список рабочих'!A$1:B$162,2,0)) -> Поляков А. А. | C34: 08274 | D34: 522 | E34: 7.2 | F34: 7.2 | AJ34: 14.4 | AK34: 2
A35: =IF(C35=0," ",VLOOKUP(C35,'Список рабочих'!A$1:B$162,2,0)) -> Разов Д. С. | C35: 08286 | D35: 522 | E35: 7.2 | F35: 7.2 | I35: 7.2 | J35: 7.2 | K35: 7.2 | L35: 7.2 | M35: 7.2 | P35: 7.2 | Q35: 7.2 | R35: 7.2 | S35: 7.2 | T35: 7.2 | W35: 7.2 | X35: 7.2 | Y35: 7.2 | Z35: 7.2 | AA35: 7.2 | AD35: 7.2 | AE35: 7.2 | AF35: 7.2 | AG35: 7.2 | AH35: 7.2 | AJ35: 158.4 | AK35: 22
A36: =IF(C36=0," ",VLOOKUP(C36,'Список рабочих'!A$1:B$162,2,0)) -> Рыжиков А. Н. | C36: 08186 | D36: 522 | E36: 7.2 | F36: 7.2 | I36: 7.2 | J36: 7.2 | K36: 7.2 | L36: 7.2 | M36: 7.2 | AJ36: 50.4 | AK36: 7
A37: =IF(C37=0," ",VLOOKUP(C37,'Список рабочих'!A$1:B$162,2,0)) -> Самарец А. А. | C37: 08194 | D37: 522 | E37: 7.2 | F37: 7.2 | AJ37: 14.4 | AK37: 2
A38: =IF(C38=0," ",VLOOKUP(C38,'Список рабочих'!A$1:B$162,2,0)) -> Сакс Д. С. | C38: 08255 | D38: 522 | E38: 7.2 | F38: 7.2 | I38: 7.2 | J38: 7.2 | AJ38: 28.8 | AK38: 4
A39: =IF(C39=0," ",VLOOKUP(C39,'Список рабочих'!A$1:B$162,2,0)) -> Семенов М. А. | C39: 08276 | D39: 522 | E39: 7.2 | F39: 7.2 | AJ39: 14.4 | AK39: 2
A40: =IF(C40=0," ",VLOOKUP(C40,'Список рабочих'!A$1:B$162,2,0)) -> Соколов А. С. | C40: 08303 | D40: 522 | E40: 7.2 | F40: 7.2 | I40: 7.2 | J40: 7.2 | AJ40: 28.8 | AK40: 4
A41: =IF(C41=0," ",VLOOKUP(C41,'Список рабочих'!A$1:B$162,2,0)) -> Ушаков А. В. | C41: 08257 | D41: 522 | I41: 7.2 | J41: 7.2 | AJ41: 14.4 | AK41: 2
A42: =IF(C42=0," ",VLOOKUP(C42,'Список рабочих'!A$1:B$162,2,0)) -> Филиппов В. В. | C42: 08297 | D42: 522 | E42: 7.2 | F42: 7.2 | Z42: 7.2 | AA42: 7.2 | AD42: 7.2 | AE42: 7.2 | AG42: 7.2 | AH42: 7.2 | AJ42: 57.6 | AK42: 8
A43: =IF(C43=0," ",VLOOKUP(C43,'Список рабочих'!A$1:B$162,2,0)) -> Шевчук А. В. | C43: 08267 | D43: 522 | E43: 7.2 | F43: 7.2 | I43: 7.2 | J43: 7.2 | K43: 7.2 | L43: 7.2 | M43: 7.2 | AJ43: 50.4 | AK43: 7
A44: =IF(C44=0," ",VLOOKUP(C44,'Список рабочих'!A$1:B$162,2,0)) ->  | C44: 08198 | D44: 522 | E44: 7.2 | F44: 7.2 | I44: 7.2 | J44: 7.2 | K44: 7.2 | L44: 7.2 | M44: 7.2 | AJ44: 50.4 | AK44: 7
A45: =IF(C45=0," ",VLOOKUP(C45,'Список рабочих'!A$1:B$162,2,0)) ->  | D45: 522 | AJ45: 0
A46: =IF(C46=0," ",VLOOKUP(C46,'Список рабочих'!A$1:B$162,2,0)) ->  | D46: 522 | AJ46: 0
A47: =IF(C47=0," ",VLOOKUP(C47,'Список рабочих'!A$1:B$162,2,0)) ->  | D47: 522 | AJ47: 0
A48: =IF(C48=0," ",VLOOKUP(C48,'Список рабочих'!A$1:B$162,2,0)) ->  | D48: 522 | AJ48: 0
A49: =IF(C49=0," ",VLOOKUP(C49,'Список рабочих'!A$1:B$162,2,0)) ->  | D49: 522 | AJ49: 0
A50: ИТОГО | AJ50: =SUM(AJ7:AJ49) -> 1760.8 | AK50: =SUM(AK7:AK49) -> 246
A53: Ф. И. О. | C53: Таб. | D53: раб. | E53: отработанное время. АВГУСТ | AJ53: Итого | AK53: Итого
C54: номер | D54: место | E54: 1 | F54: 2 | G54: 3 | H54: 4 | I54: 5 | J54: 6 | K54: 7 | L54: 8 | M54: 9 | N54: 10 | O54: 11 | P54: 12 | Q54: 13 | R54: 14 | S54: 15 | T54: 16 | U54: 17 | V54: 18 | W54: 19 | X54: 20 | Y54: 21 | Z54: 22 | AA54: 23 | AB54: 24 | AC54: 25 | AD54: 26 | AE54: 27 | AF54: 28 | AG54: 29 | AH54: 30 | AI54: 31 | AJ54: часы | AK54: Дни
A55: =IF(C55=0," ",VLOOKUP(C55,'Список рабочих'!A$1:B$162,2,0)) -> Вирки И. И. | C55: 08018 | D55: 522 | E55: 7.2 | F55: 7.2 | P55: 7.2 | AJ55: =SUM(E55:AI55) -> 21.6 | AK55: 3
A56: =IF(C56=0," ",VLOOKUP(C56,'Список рабочих'!A$1:B$162,2,0)) -> Данилов В. Н. | C56: 08296 | D56: 522 | E56: 7.2 | F56: 7.2 | I56: 7.2 | J56: 7.2 | K56: 7.2 | L56: 7.2 | M56: 7.2 | AD56: 7.2 | AJ56: =SUM(E56:AI56) -> 57.6 | AK56: 8
A57: =IF(C57=0," ",VLOOKUP(C57,'Список рабочих'!A$1:B$162,2,0)) -> Евдокимов К. А. | C57: 08211 | D57: 522 | E57: 7.2 | F57: 7.2 | I57: 7.2 | J57: 7.2 | K57: 7.2 | L57: 7.2 | M57: 7.2 | AJ57: 50.4 | AK57: 7
A58: =IF(C58=0," ",VLOOKUP(C58,'Список рабочих'!A$1:B$162,2,0)) -> Захаров А. Б. | C58: 08246 | D58: 522 | P58: 7.2 | Q58: 7.2 | R58: 7.2 | S58: 7.2 | T58: 7.2 | W58: 7.2 | X58: 7.2 | Y58: 7.2 | Z58: 4 | AJ58: 61.6 | AK58: 9
A59: =IF(C59=0," ",VLOOKUP(C59,'Список рабочих'!A$1:B$162,2,0)) ->  | C59: 08304 | D59: 522 | E59: 7.2 | F59: 7.2 | I59: 7.2 | J59: 7.2 | AJ59: 28.8 | AK59: 4
A60: =IF(C60=0," ",VLOOKUP(C60,'Список рабочих'!A$1:B$162,2,0)) -> Ильин А. В. | C60: 08221 | D60: 522 | E60: 7.2 | F60: 7.2 | I60: 7.2 | J60: 7.2 | K60: 7.2 | L60: 7.2 | M60: 7.2 | P60: 7.2 | Q60: 7.2 | R60: 7.2 | S60: 7.2 | T60: 7.2 | W60: 7.2 | X60: 7.2 | Y60: 7.2 | Z60: 7.2 | AA60: 7.2 | AD60: 7.2 | AE60: 7.2 | AF60: 7.2 | AG60: 7.2 | AH60: 7.2 | AJ60: 158.4 | AK60: 22
A61: =IF(C61=0," ",VLOOKUP(C61,'Список рабочих'!A$1:B$162,2,0)) -> Килимник О. В. | C61: 08238 | D61: 522 | E61: 7.2 | F61: 7.2 | AJ61: 14.4 | AK61: 2
A62: =IF(C62=0," ",VLOOKUP(C62,'Список рабочих'!A$1:B$162,2,0)) -> Клюев Л. И. | C62: 08208 | D62: 522 | AD62: 7.2 | AE62: 7.2 | AF62: 7.2 | AG62: 7.2 | AH62: 7.2 | AJ62: 36 | AK62: 5
A63: =IF(C63=0," ",VLOOKUP(C63,'Список рабочих'!A$1:B$162,2,0)) -> Клюев Д. Л. | C63: 08268 | D63: 522 | E63: 7.2 | F63: 7.2 | I63: 7.2 | J63: 7.2 | K63: 7.2 | L63: 7.2 | M63: 7.2 | AJ63: 50.4 | AK63: 7
A64: =IF(C64=0," ",VLOOKUP(C64,'Список рабочих'!A$1:B$162,2,0)) ->  | C64: 08281 | D64: 522 | E64: 7.2 | F64: 7.2 | I64: 7.2 | J64: 7.2 | K64: 7.2 | L64: 7.2 | M64: 7.2 | AJ64: 50.4 | AK64: 7
A65: =IF(C65=0," ",VLOOKUP(C65,'Список рабочих'!A$1:B$162,2,0)) -> Лозовский И. А. | C65: 09850 | D65: 522 | E65: 7.2 | F65: 7.2 | I65: 7.2 | J65: 7.2 | AJ65: 28.8 | AK65: 4
A66: =IF(C66=0," ",VLOOKUP(C66,'Список рабочих'!A$1:B$162,2,0)) ->  | C66: 08298 | D66: 522 | X66: 7.2 | AJ66: 7.2 | AK66: 2
A67: =IF(C67=0," ",VLOOKUP(C67,'Список рабочих'!A$1:B$162,2,0)) -> Мельников А. В. | C67: 08177 | D67: 522 | E67: 7.2 | F67: 7.2 | I67: 7.2 | J67: 7.2 | K67: 7.2 | L67: 7.2 | M67: 7.2 | P67: 7.2 | Q67: 7.2 | R67: 7.2 | S67: 7.2 | T67: 7.2 | AJ67: 86.4 | AK67: 12
A68: =IF(C68=0," ",VLOOKUP(C68,'Список рабочих'!A$1:B$162,2,0)) -> Мельников В. Ю. | C68: 08269 | D68: 522 | E68: 7.2 | F68: 7.2 | AJ68: 14.4 | AK68: 2
A69: =IF(C69=0," ",VLOOKUP(C69,'Список рабочих'!A$1:B$162,2,0)) -> Никаноров В. Е. | C69: 08217 | D69: 522 | AE69: 7.2 | AJ69: 7.2 | AK69: 1
A70: =IF(C70=0," ",VLOOKUP(C70,'Список рабочих'!A$1:B$162,2,0)) -> Остапчук В. В. | C70: 08152 | D70: 522 | I70: 7.2 | J70: 7.2 | K70: 7.2 | L70: 7.2 | M70: 7.2 | P70: 7.2 | Q70: 7.2 | R70: 7.2 | S70: 7.2 | T70: 7.2 | AJ70: 72 | AK70: 10
A71: =IF(C71=0," ",VLOOKUP(C71,'Список рабочих'!A$1:B$162,2,0)) -> Платонов Д. С. | C71: 08290 | D71: 522 | E71: 7.2 | F71: 7.2 | AJ71: 14.4 | AK71: 2
A72: =IF(C72=0," ",VLOOKUP(C72,'Список рабочих'!A$1:B$162,2,0)) -> Петрунин А. Н. | C72: 08132 | D72: 522 | E72: 7.2 | I72: 7.2 | J72: 7.2 | K72: 7.2 | L72: 7.2 | M72: 7.2 | P72: 7.2 | Q72: 7.2 | R72: 7.2 | S72: 7.2 | T72: 7.2 | W72: 7.2 | X72: 7.2 | Y72: 7.2 | Z72: 7.2 | AD72: 7.2 | AE72: 7.2 | AF72: 7.2 | AG72: 7.2 | AH72: 7.2 | AJ72: 144 | AK72: 20
A73: =IF(C73=0," ",VLOOKUP(C73,'Список рабочих'!A$1:B$162,2,0)) -> Приходько А. А. | C73: 08218 | D73: 522 | E73: 7.2 | F73: 7.2 | W73: 7.2 | X73: 7.2 | Y73: 7.2 | Z73: 7.2 | AA73: 7.2 | AD73: 7.2 | AE73: 7.2 | AF73: 7.2 | AG73: 7.2 | AH73: 7.2 | AJ73: 86.4 | AK73: 10
A74: =IF(C74=0," ",VLOOKUP(C74,'Список рабочих'!A$1:B$162,2,0)) -> Рыбалкина Е. Г. | C74: 08095 | D74: 522 | E74: 7.2 | F74: 7.2 | I74: 7.2 | J74: 7.2 | K74: 7.2 | L74: 7.2 | M74: 7.2 | AJ74: 50.4 | AK74: 7
A75: =IF(C75=0," ",VLOOKUP(C75,'Список рабочих'!A$1:B$162,2,0)) -> Саноян А. А. | C75: 08289 | D75: 522 | E75: 7.2 | F75: 7.2 | I75: 7.2 | J75: 7.2 | K75: 7.2 | L75: 7.2 | M75: 7.2 | P75: 7.2 | Q75: 7.2 | R75: 4 | AJ75: 68.8 | AK75: 10
A76: =IF(C76=0," ",VLOOKUP(C76,'Список рабочих'!A$1:B$162,2,0)) -> Свояков Н. А. | C76: 08222 | D76: 522 | E76: 7.2 | F76: 7.2 | I76: 7.2 | J76: 7.2 | K76: 7.2 | L76: 7.2 | M76: 7.2 | P76: 7.2 | Q76: 7.2 | R76: 7.2 | S76: 7.2 | T76: 7.2 | W76: 7.2 | X76: 7.2 | Y76: 7.2 | Z76: 7.2 | AA76: 7.2 | AD76: 7.2 | AE76: 7.2 | AF76: 7.2 | AG76: 7.2 | AH76: 7.2 | AJ76: 158.4 | AK76: 22
A77: =IF(C77=0," ",VLOOKUP(C77,'Список рабочих'!A$1:B$162,2,0)) -> Сухопаров С. В. | C77: 08299 | D77: 522 | E77: 7.2 | F77: 7.2 | I77: 7.2 | J77: 7.2 | K77: 7.2 | L77: 7.2 | M77: 7.2 | P77: 7.2 | Q77: 7.2 | R77: 4 | AJ77: 68.8 | AK77: 10
A78: =IF(C78=0," ",VLOOKUP(C78,'Список рабочих'!A$1:B$162,2,0)) -> Томилова В. И. | C78: 08012 | D78: 522 | E78: 7.2 | F78: 7.2 | I78: 7.2 | J78: 7.2 | K78: 7.2 | L78: 7.2 | M78: 7.2 | P78: 7.2 | Q78: 7.2 | R78: 7.2 | S78: 7.2 | T78: 7.2 | W78: 7.2 | X78: 7.2 | Y78: 7.2 | Z78: 7.2 | AA78: 7.2 | AD78: 7.2 | AE78: 7.2 | AF78: 7.2 | AG78: 7.2 | AH78: 7.2 | AJ78: 158.4 | AK78: 22
A79: =IF(C79=0," ",VLOOKUP(C79,'Список рабочих'!A$1:B$162,2,0)) -> Хробостова Т. Ю. | C79: 08319 | D79: 522 | E79: 7.2 | F79: 7.2 | P79: 7.2 | AJ79: 21.6 | AK79: 3
A80: =IF(C80=0," ",VLOOKUP(C80,'Список рабочих'!A$1:B$162,2,0)) -> Шомполов В. А. | C80: 08193 | D80: 522 | E80: 7.2 | F80: 7.2 | I80: 7.2 | J80: 7.2 | K80: 7.2 | L80: 7.2 | M80: 7.2 | Q80: 7.2 | R80: 7.2 | S80: 7.2 | T80: 7.2 | W80: 7.2 | X80: 7.2 | Y80: 7.2 | Z80: 7.2 | AA80: 7.2 | AJ80: 115.2 | AK80: 16
A81: =IF(C81=0," ",VLOOKUP(C81,'Список рабочих'!A$1:B$162,2,0)) ->  | D81: 522 | AJ81: 0
A82: =IF(C82=0," ",VLOOKUP(C82,'Список рабочих'!A$1:B$162,2,0)) ->  | D82: 522 | AJ82: 0
A83: =IF(C83=0," ",VLOOKUP(C83,'Список рабочих'!A$1:B$162,2,0)) ->  | D83: 522 | AJ83: 0
A84: =IF(C84=0," ",VLOOKUP(C84,'Список рабочих'!A$1:B$162,2,0)) ->  | D84: 522 | AJ84: 0
A85: =IF(C85=0," ",VLOOKUP(C85,'Список рабочих'!A$1:B$162,2,0)) ->  | D85: 522 | AJ85: 0
A86: =IF(C86=0," ",VLOOKUP(C86,'Список рабочих'!A$1:B$162,2,0)) ->  | D86: 522 | AJ86: 0
A87: =IF(C87=0," ",VLOOKUP(C87,'Список рабочих'!A$1:B$162,2,0)) ->  | D87: 522 | AJ87: 0
A88: =IF(C88=0," ",VLOOKUP(C88,'Список рабочих'!A$1:B$162,2,0)) ->  | D88: 522 | AJ88: 0
A89: =IF(C89=0," ",VLOOKUP(C89,'Список рабочих'!A$1:B$162,2,0)) ->  | D89: 522 | AJ89: 0
A90: =IF(C90=0," ",VLOOKUP(C90,'Список рабочих'!A$1:B$162,2,0)) ->  | D90: 522 | AJ90: 0
A91: =IF(C91=0," ",VLOOKUP(C91,'Список рабочих'!A$1:B$162,2,0)) ->  | D91: 522 | AJ91: 0
A92: =IF(C92=0," ",VLOOKUP(C92,'Список рабочих'!A$1:B$162,2,0)) ->  | D92: 522 | AJ92: 0
A93: =IF(C93=0," ",VLOOKUP(C93,'Список рабочих'!A$1:B$162,2,0)) ->  | D93: 522 | AJ93: 0
A94: =IF(C94=0," ",VLOOKUP(C94,'Список рабочих'!A$1:B$162,2,0)) ->  | D94: 522 | AJ94: 0
A95: =IF(C95=0," ",VLOOKUP(C95,'Список рабочих'!A$1:B$162,2,0)) ->  | D95: 522 | AJ95: 0
A96: =IF(C96=0," ",VLOOKUP(C96,'Список рабочих'!A$1:B$162,2,0)) ->  | D96: 522 | AJ96: 0
A97: =IF(C97=0," ",VLOOKUP(C97,'Список рабочих'!A$1:B$162,2,0)) ->  | D97: 522 | AJ97: 0
A98: ИТОГО | AJ98: =SUM(AJ55:AJ97) -> 1632 | AK98: =SUM(AK55:AK97) -> 227
A107: Табель учета рабочего времени по филиалу "САПФИР" АО "ЭРА" на заказе 12700 зав. №522 за сентябрь 2019 г..
A110: Ф. И. О. | C110: Таб. | D110: раб. | E110: отработанное время. СЕНТЯБРЬ | AJ110: Итого | AK110: Итого
C111: номер | D111: место | E111: 1 | F111: 2 | G111: 3 | H111: 4 | I111: 5 | J111: 6 | K111: 7 | L111: 8 | M111: 9 | N111: 10 | O111: 11 | P111: 12 | Q111: 13 | R111: 14 | S111: 15 | T111: 16 | U111: 17 | V111: 18 | W111: 19 | X111: 20 | Y111: 21 | Z111: 22 | AA111: 23 | AB111: 24 | AC111: 25 | AD111: 26 | AE111: 27 | AF111: 28 | AG111: 29 | AH111: 30 | AJ111: часы | AK111: Дни
A112: =IF(C112=0," ",VLOOKUP(C112,'Список рабочих'!A$1:B$162,2,0)) -> Головкин А. В. | C112: 08236 | D112: 522 | AE112: 7.2 | AH112: 7.2 | AJ112: =SUM(E112:AI112) -> 14.4 | AK112: 2
A113: =IF(C113=0," ",VLOOKUP(C113,'Список рабочих'!A$1:B$162,2,0)) -> Захаров В. К. | C113: 08287 | D113: 522 | AE113: 7.2 | AH113: 7.2 | AJ113: =SUM(E113:AI113) -> 14.4 | AK113: 2
A114: =IF(C114=0," ",VLOOKUP(C114,'Список рабочих'!A$1:B$162,2,0)) -> Иванов А. В. | C114: 08234 | D114: 522 | AE114: 7.2 | AJ114: 7.2 | AK114: 1
A115: =IF(C115=0," ",VLOOKUP(C115,'Список рабочих'!A$1:B$162,2,0)) -> Исаков С. А. | C115: 08195 | D115: 522 | AE115: 7.2 | AH115: 7.2 | AJ115: 14.4 | AK115: 2
A116: =IF(C116=0," ",VLOOKUP(C116,'Список рабочих'!A$1:B$162,2,0)) -> Казак А. В. | C116: 08227 | D116: 522 | AH116: 7.2 | AJ116: 7.2 | AK116: 1
A117: =IF(C117=0," ",VLOOKUP(C117,'Список рабочих'!A$1:B$162,2,0)) -> Клюев Л. И. | C117: 08208 | D117: 522 | AH117: 7.2 | AJ117: 7.2 | AK117: 1
A118: =IF(C118=0," ",VLOOKUP(C118,'Список рабочих'!A$1:B$162,2,0)) -> Комиссаров Д. В. | C118: 08280 | D118: 522 | AE118: 7.2 | AH118: 7.2 | AJ118: 14.4 | AK118: 2
A119: =IF(C119=0," ",VLOOKUP(C119,'Список рабочих'!A$1:B$162,2,0)) -> Никаноров В. Е. | C119: 08217 | D119: 522 | AE119: 7.2 | AH119: 7.2 | AJ119: 14.4 | AK119: 2
A120: =IF(C120=0," ",VLOOKUP(C120,'Список рабочих'!A$1:B$162,2,0)) -> Пахомов В. С. | C120: 08254 | D120: 522 | AE120: 7.2 | AH120: 7.2 | AJ120: 14.4 | AK120: 2
A121: =IF(C121=0," ",VLOOKUP(C121,'Список рабочих'!A$1:B$162,2,0)) -> Приходько А. А. | C121: 08218 | D121: 522 | AE121: 7.2 | AH121: 7.2 | AJ121: 14.4 | AK121: 2
A122: =IF(C122=0," ",VLOOKUP(C122,'Список рабочих'!A$1:B$162,2,0)) -> Разов Д. С. | C122: 08286 | D122: 522 | AE122: 7.2 | AJ122: 7.2 | AK122: 1
A123: =IF(C123=0," ",VLOOKUP(C123,'Список рабочих'!A$1:B$162,2,0)) -> Самарец А. А. | C123: 08194 | D123: 522 | AE123: 7.2 | AH123: 7.2 | AJ123: 14.4 | AK123: 2
A124: =IF(C124=0," ",VLOOKUP(C124,'Список рабочих'!A$1:B$162,2,0)) -> Сакс Д. С. | C124: 08255 | D124: 522 | AH124: 7.2 | AJ124: 7.2 | AK124: 1
A125: =IF(C125=0," ",VLOOKUP(C125,'Список рабочих'!A$1:B$162,2,0)) -> Филиппов В. В. | C125: 08297 | D125: 522 | AE125: 7.2 | AH125: 7.2 | AJ125: 14.4 | AK125: 2
A126: =IF(C126=0," ",VLOOKUP(C126,'Список рабочих'!A$1:B$162,2,0)) ->  | D126: 522 | AJ126: 0
A127: =IF(C127=0," ",VLOOKUP(C127,'Список рабочих'!A$1:B$162,2,0)) ->  | D127: 522 | AJ127: 0
A128: =IF(C128=0," ",VLOOKUP(C128,'Список рабочих'!A$1:B$162,2,0)) ->  | D128: 522 | AJ128: 0
A129: =IF(C129=0," ",VLOOKUP(C129,'Список рабочих'!A$1:B$162,2,0)) ->  | D129: 522 | AJ129: 0
A130: =IF(C130=0," ",VLOOKUP(C130,'Список рабочих'!A$1:B$162,2,0)) ->  | D130: 522 | AJ130: 0
A131: =IF(C131=0," ",VLOOKUP(C131,'Список рабочих'!A$1:B$162,2,0)) ->  | D131: 522 | AJ131: 0
A132: =IF(C132=0," ",VLOOKUP(C132,'Список рабочих'!A$1:B$162,2,0)) ->  | D132: 522 | AJ132: 0
A133: =IF(C133=0," ",VLOOKUP(C133,'Список рабочих'!A$1:B$162,2,0)) ->  | D133: 522 | AJ133: 0
A134: =IF(C134=0," ",VLOOKUP(C134,'Список рабочих'!A$1:B$162,2,0)) ->  | D134: 522 | AJ134: 0
A135: =IF(C135=0," ",VLOOKUP(C135,'Список рабочих'!A$1:B$162,2,0)) ->  | D135: 522 | AJ135: 0
A136: =IF(C136=0," ",VLOOKUP(C136,'Список рабочих'!A$1:B$162,2,0)) ->  | D136: 522 | AJ136: 0
A137: =IF(C137=0," ",VLOOKUP(C137,'Список рабочих'!A$1:B$162,2,0)) ->  | D137: 522 | AJ137: 0
A138: =IF(C138=0," ",VLOOKUP(C138,'Список рабочих'!A$1:B$162,2,0)) ->  | D138: 522 | AJ138: 0
A139: =IF(C139=0," ",VLOOKUP(C139,'Список рабочих'!A$1:B$162,2,0)) ->  | D139: 522 | AJ139: 0
A140: =IF(C140=0," ",VLOOKUP(C140,'Список рабочих'!A$1:B$162,2,0)) ->  | D140: 522 | AJ140: 0
A141: =IF(C141=0," ",VLOOKUP(C141,'Список рабочих'!A$1:B$162,2,0)) ->  | D141: 522 | AJ141: 0
A142: =IF(C142=0," ",VLOOKUP(C142,'Список рабочих'!A$1:B$162,2,0)) ->  | D142: 522 | AJ142: 0
A143: =IF(C143=0," ",VLOOKUP(C143,'Список рабочих'!A$1:B$162,2,0)) ->  | D143: 522 | AJ143: 0
A144: =IF(C144=0," ",VLOOKUP(C144,'Список рабочих'!A$1:B$162,2,0)) ->  | D144: 522 | AJ144: 0
A145: =IF(C145=0," ",VLOOKUP(C145,'Список рабочих'!A$1:B$162,2,0)) ->  | D145: 522 | AJ145: 0
A146: =IF(C146=0," ",VLOOKUP(C146,'Список рабочих'!A$1:B$162,2,0)) ->  | D146: 522 | AJ146: 0
A147: =IF(C147=0," ",VLOOKUP(C147,'Список рабочих'!A$1:B$162,2,0)) ->  | D147: 522 | AJ147: 0
A148: =IF(C148=0," ",VLOOKUP(C148,'Список рабочих'!A$1:B$162,2,0)) ->  | D148: 522 | AJ148: 0
A149: =IF(C149=0," ",VLOOKUP(C149,'Список рабочих'!A$1:B$162,2,0)) ->  | D149: 522 | AJ149: 0
A150: =IF(C150=0," ",VLOOKUP(C150,'Список рабочих'!A$1:B$162,2,0)) ->  | D150: 522 | AJ150: 0
A151: =IF(C151=0," ",VLOOKUP(C151,'Список рабочих'!A$1:B$162,2,0)) ->  | D151: 522 | AJ151: 0
A152: =IF(C152=0," ",VLOOKUP(C152,'Список рабочих'!A$1:B$162,2,0)) ->  | D152: 522 | AJ152: 0
A153: =IF(C153=0," ",VLOOKUP(C153,'Список рабочих'!A$1:B$162,2,0)) ->  | D153: 522 | AJ153: 0
A154: =IF(C154=0," ",VLOOKUP(C154,'Список рабочих'!A$1:B$162,2,0)) ->  | D154: 522 | AJ154: 0
A155: ИТОГО | AJ155: =SUM(AJ112:AJ154) -> 165.6 | AK155: =SUM(AK112:AK154) -> 23
A160: Табель учета рабочего времени по филиалу "САПФИР" АО "ЭРА" на заказе 12700 зав. №522 за октябрь 2019 г..
A163: Ф. И. О. | C163: Таб. | D163: раб. | E163: отработанное время. СЕНТЯБРЬ | AJ163: Итого | AK163: Итого
C164: номер | D164: место | E164: 1 | F164: 2 | G164: 3 | H164: 4 | I164: 5 | J164: 6 | K164: 7 | L164: 8 | M164: 9 | N164: 10 | O164: 11 | P164: 12 | Q164: 13 | R164: 14 | S164: 15 | T164: 16 | U164: 17 | V164: 18 | W164: 19 | X164: 20 | Y164: 21 | Z164: 22 | AA164: 23 | AB164: 24 | AC164: 25 | AD164: 26 | AE164: 27 | AF164: 28 | AG164: 29 | AH164: 30 | AI164: 31 | AJ164: часы | AK164: Дни
A165: =IF(C165=0," ",VLOOKUP(C165,'Список рабочих'!A$1:B$162,2,0)) -> Вдовин А. А. | C165: 08199 | D165: 522 | E165: 7.2 | G165: 7.2 | H165: 7.2 | K165: 7.2 | L165: 7.2 | M165: 7.2 | N165: 7.2 | O165: 7.2 | R165: 7.2 | S165: 7.2 | T165: 7.2 | U165: 7.2 | V165: 7.2 | Y165: 7.2 | Z165: 7.2 | AA165: 7.2 | AB165: 7.2 | AC165: 7.2 | AF165: 7.2 | AG165: 7.2 | AH165: 7.2 | AI165: 7.2 | AJ165: =SUM(E165:AI165) -> 158.4 | AK165: 22
A166: =IF(C166=0," ",VLOOKUP(C166,'Список рабочих'!A$1:B$162,2,0)) -> Головкин А. В. | C166: 08236 | D166: 522 | E166: 7.2 | F166: 7.2 | G166: 7.2 | H166: 7.2 | K166: 7.2 | L166: 7.2 | M166: 7.2 | N166: 7.2 | O166: 7.2 | R166: 7.2 | S166: 7.2 | T166: 7.2 | U166: 7.2 | V166: 7.2 | Y166: 7.2 | Z166: 7.2 | AA166: 7.2 | AB166: 7.2 | AC166: 7.2 | AG166: 7.2 | AH166: 7.2 | AI166: 7.2 | AJ166: =SUM(E166:AI166) -> 158.4 | AK166: 22
A167: =IF(C167=0," ",VLOOKUP(C167,'Список рабочих'!A$1:B$162,2,0)) -> Захаров В. К. | C167: 08287 | D167: 522 | E167: 7.2 | F167: 7.2 | G167: 7.2 | H167: 7.2 | K167: 7.2 | L167: 7.2 | AJ167: 43.2 | AK167: 6
A168: =IF(C168=0," ",VLOOKUP(C168,'Список рабочих'!A$1:B$162,2,0)) -> Иванов Д. В. | C168: 08172 | D168: 522 | K168: 4 | O168: 7.2 | R168: 7.2 | S168: 7.2 | T168: 7.2 | U168: 7.2 | V168: 7.2 | Y168: 7.2 | Z168: 7.2 | AA168: 7.2 | AB168: 7.2 | AC168: 7.2 | AF168: 7.2 | AG168: 7.2 | AH168: 7.2 | AI168: 7.2 | AJ168: 112 | AK168: 16
A169: =IF(C169=0," ",VLOOKUP(C169,'Список рабочих'!A$1:B$162,2,0)) -> Ильин А. В. | C169: 08221 | D169: 522 | T169: 4 | AB169: 7.2 | AC169: 7.2 | AJ169: 18.4 | AK169: 3
A170: =IF(C170=0," ",VLOOKUP(C170,'Список рабочих'!A$1:B$162,2,0)) -> Исаков С. А. | C170: 08195 | D170: 522 | E170: 7.2 | F170: 7.2 | G170: 7.2 | H170: 7.2 | K170: 4 | O170: 7.2 | R170: 7.2 | S170: 7.2 | T170: 7.2 | U170: 7.2 | V170: 7.2 | Y170: 7.2 | Z170: 7.2 | AA170: 7.2 | AB170: 7.2 | AC170: 7.2 | AF170: 7.2 | AG170: 7.2 | AH170: 7.2 | AI170: 7.2 | AJ170: 140.8 | AK170: 20
A171: =IF(C171=0," ",VLOOKUP(C171,'Список рабочих'!A$1:B$162,2,0)) -> Кондратюк И. М. | C171: 08264 | D171: 522 | E171: 7.2 | F171: 7.2 | G171: 7.2 | H171: 7.2 | K171: 7.2 | L171: 7.2 | M171: 7.2 | N171: 7.2 | O171: 7.2 | R171: 7.2 | S171: 7.2 | T171: 7.2 | U171: 7.2 | V171: 7.2 | Y171: 7.2 | Z171: 7.2 | AA171: 7.2 | AB171: 7.2 | AC171: 7.2 | AF171: 7.2 | AG171: 7.2 | AH171: 7.2 | AI171: 7.2 | AJ171: 165.6 | AK171: 23
A172: =IF(C172=0," ",VLOOKUP(C172,'Список рабочих'!A$1:B$162,2,0)) -> Казак А. В. | C172: 08227 | D172: 522 | E172: 7.2 | F172: 7.2 | G172: 7.2 | H172: 7.2 | K172: 7.2 | L172: 7.2 | M172: 7.2 | N172: 7.2 | O172: 7.2 | R172: 7.2 | S172: 7.2 | T172: 7.2 | U172: 4 | V172: 7.2 | Y172: 7.2 | Z172: 7.2 | AA172: 7.2 | AB172: 7.2 | AC172: 7.2 | AF172: 7.2 | AG172: 7.2 | AH172: 7.2 | AI172: 7.2 | AJ172: 162.4 | AK172: 23
A173: =IF(C173=0," ",VLOOKUP(C173,'Список рабочих'!A$1:B$162,2,0)) -> Клюев Л. И. | C173: 08208 | D173: 522 | E173: 7.2 | F173: 7.2 | G173: 7.2 | H173: 7.2 | K173: 7.2 | L173: 7.2 | M173: 7.2 | N173: 7.2 | O173: 7.2 | R173: 7.2 | S173: 7.2 | T173: 7.2 | U173: 7.2 | V173: 7.2 | Y173: 7.2 | Z173: 7.2 | AA173: 7.2 | AB173: 7.2 | AC173: 7.2 | AF173: 7.2 | AG173: 7.2 | AH173: 7.2 | AJ173: 158.4 | AK173: 22
A174: =IF(C174=0," ",VLOOKUP(C174,'Список рабочих'!A$1:B$162,2,0)) -> Комиссаров Д. В. | C174: 08280 | D174: 522 | E174: 7.2 | F174: 7.2 | G174: 7.2 | H174: 7.2 | K174: 7.2 | L174: 7.2 | M174: 7.2 | N174: 7.2 | O174: 7.2 | S174: 7.2 | T174: 7.2 | U174: 7.2 | V174: 7.2 | Y174: 7.2 | Z174: 7.2 | AA174: 7.2 | AB174: 7.2 | AC174: 7.2 | AF174: 4 | AG174: 7.2 | AH174: 7.2 | AI174: 7.2 | AJ174: 155.2 | AK174: 22
A175: =IF(C175=0," ",VLOOKUP(C175,'Список рабочих'!A$1:B$162,2,0)) ->  | C175: 08281 | D175: 522 | E175: 7.2 | F175: 7.2 | G175: 7.2 | H175: 7.2 | O175: 7.2 | AJ175: 36 | AK175: 5
A176: =IF(C176=0," ",VLOOKUP(C176,'Список рабочих'!A$1:B$162,2,0)) -> Никаноров В. Е. | C176: 08217 | D176: 522 | E176: 7.2 | F176: 7.2 | G176: 4 | R176: 7.2 | S176: 7.2 | T176: 7.2 | U176: 7.2 | V176: 7.2 | Y176: 7.2 | Z176: 7.2 | AA176: 7.2 | AB176: 7.2 | AC176: 7.2 | AF176: 7.2 | AG176: 7.2 | AH176: 7.2 | AI176: 7.2 | AJ176: 119.2 | AK176: 17
A177: =IF(C177=0," ",VLOOKUP(C177,'Список рабочих'!A$1:B$162,2,0)) -> Панов А. Г. | C177: 08115 | D177: 522 | E177: 7.2 | F177: 7.2 | G177: 7.2 | H177: 7.2 | K177: 7.2 | L177: 7.2 | M177: 7.2 | N177: 7.2 | O177: 7.2 | R177: 7.2 | S177: 7.2 | T177: 7.2 | U177: 7.2 | V177: 7.2 | Y177: 7.2 | Z177: 7.2 | AA177: 7.2 | AB177: 4 | AC177: 7.2 | AF177: 7.2 | AG177: 7.2 | AH177: 7.2 | AI177: 7.2 | AJ177: 162.4 | AK177: 23
A178: =IF(C178=0," ",VLOOKUP(C178,'Список рабочих'!A$1:B$162,2,0)) -> Пахомов В. С. | C178: 08254 | D178: 522 | E178: 7.2 | F178: 7.2 | G178: 7.2 | H178: 7.2 | K178: 7.2 | L178: 7.2 | M178: 7.2 | N178: 7.2 | O178: 7.2 | R178: 7.2 | S178: 7.2 | T178: 7.2 | U178: 7.2 | V178: 7.2 | Y178: 7.2 | Z178: 7.2 | AA178: 7.2 | AB178: 7.2 | AC178: 7.2 | AF178: 7.2 | AG178: 7.2 | AH178: 7.2 | AI178: 7.2 | AJ178: 165.6 | AK178: 23
A179: =IF(C179=0," ",VLOOKUP(C179,'Список рабочих'!A$1:B$162,2,0)) -> Петрунин А. Н. | C179: 08132 | D179: 522 | R179: 7.2 | S179: 7.2 | T179: 7.2 | U179: 7.2 | V179: 7.2 | Y179: 7.2 | AA179: 7.2 | AB179: 7.2 | AC179: 7.2 | AF179: 7.2 | AG179: 7.2 | AH179: 7.2 | AI179: 7.2 | AJ179: 93.6 | AK179: 13
A180: =IF(C180=0," ",VLOOKUP(C180,'Список рабочих'!A$1:B$162,2,0)) -> Приходько А. А. | C180: 08218 | D180: 522 | E180: 7.2 | F180: 7.2 | G180: 4 | R180: 7.2 | S180: 7.2 | T180: 7.2 | U180: 7.2 | V180: 7.2 | Y180: 7.2 | Z180: 7.2 | AA180: 7.2 | AB180: 7.2 | AC180: 7.2 | AF180: 7.2 | AG180: 7.2 | AH180: 7.2 | AI180: 7.2 | AJ180: 119.2 | AK180: 17
A181: =IF(C181=0," ",VLOOKUP(C181,'Список рабочих'!A$1:B$162,2,0)) -> Рыжиков А. Н. | C181: 08186 | D181: 522 | E181: 7.2 | F181: 7.2 | G181: 7.2 | H181: 7.2 | K181: 7.2 | L181: 7.2 | N181: 7.2 | O181: 7.2 | R181: 7.2 | S181: 7.2 | T181: 7.2 | U181: 7.2 | V181: 7.2 | Y181: 7.2 | Z181: 7.2 | AA181: 7.2 | AB181: 7.2 | AC181: 7.2 | AF181: 7.2 | AG181: 7.2 | AH181: 7.2 | AI181: 7.2 | AJ181: 158.4 | AK181: 22
A182: =IF(C182=0," ",VLOOKUP(C182,'Список рабочих'!A$1:B$162,2,0)) -> Самарец А. А. | C182: 08194 | D182: 522 | E182: 7.2 | F182: 7.2 | G182: 7.2 | H182: 7.2 | K182: 7.2 | L182: 7.2 | M182: 7.2 | N182: 7.2 | O182: 7.2 | R182: 7.2 | S182: 7.2 | T182: 7.2 | U182: 7.2 | V182: 7.2 | AJ182: 100.8 | AK182: 14
A183: =IF(C183=0," ",VLOOKUP(C183,'Список рабочих'!A$1:B$162,2,0)) -> Сакс Д. С. | C183: 08255 | D183: 522 | E183: 7.2 | F183: 6.2 | G183: 7.2 | H183: 7.2 | K183: 7.2 | L183: 7.2 | M183: 7.2 | N183: 7.2 | O183: 7.2 | R183: 7.2 | S183: 7.2 | T183: 7.2 | U183: 7.2 | V183: 7.2 | Y183: 7.2 | Z183: 7.2 | AA183: 7.2 | AB183: 7.2 | AC183: 7.2 | AF183: 4 | AG183: 7.2 | AH183: 7.2 | AI183: 7.2 | AJ183: 161.4 | AK183: 23
A184: =IF(C184=0," ",VLOOKUP(C184,'Список рабочих'!A$1:B$162,2,0)) -> Свояков Н. А. | C184: 08222 | D184: 522 | T184: 4 | AC184: 7.2 | AF184: 7.2 | AG184: 7.2 | AH184: 7.2 | AI184: 7.2 | AJ184: 40 | AK184: 6
A185: =IF(C185=0," ",VLOOKUP(C185,'Список рабочих'!A$1:B$162,2,0)) -> Томилова В. И. | C185: 08012 | D185: 522 | K185: 7.2 | L185: 7.2 | M185: 7.2 | N185: 7.2 | O185: 7.2 | AJ185: 36 | AK185: 5
A186: =IF(C186=0," ",VLOOKUP(C186,'Список рабочих'!A$1:B$162,2,0)) -> Филиппов В. В. | C186: 08297 | D186: 522 | E186: 7.2 | H186: 7.2 | R186: 7.2 | S186: 7.2 | T186: 7.2 | U186: 7.2 | V186: 7.2 | Y186: 7.2 | Z186: 7.2 | AA186: 7.2 | AB186: 7.2 | AC186: 7.2 | AF186: 7.2 | AG186: 7.2 | AH186: 7.2 | AI186: 7.2 | AJ186: 115.2 | AK186: 16
A187: =IF(C187=0," ",VLOOKUP(C187,'Список рабочих'!A$1:B$162,2,0)) -> Шомполов В. А. | C187: 08193 | D187: 522 | F187: 7.2 | G187: 4 | R187: 7.2 | T187: 7.2 | AJ187: 25.6 | AK187: 4
A188: =IF(C188=0," ",VLOOKUP(C188,'Список рабочих'!A$1:B$162,2,0)) -> Вдовин А. А. | C188: 08199 | D188: 522 | E188: 7.2 | G188: 7.2 | H188: 7.2 | K188: 7.2 | L188: 7.2 | M188: 7.2 | N188: 7.2 | O188: 7.2 | R188: 7.2 | S188: 7.2 | T188: 7.2 | U188: 7.2 | V188: 7.2 | Y188: 7.2 | Z188: 7.2 | AA188: 7.2 | AB188: 7.2 | AC188: 7.2 | AF188: 7.2 | AG188: 7.2 | AH188: 7.2 | AI188: 7.2 | AJ188: 158.4 | AK188: 22
A189: =IF(C189=0," ",VLOOKUP(C189,'Список рабочих'!A$1:B$162,2,0)) -> Головкин А. В. | C189: 08236 | D189: 522 | E189: 7.2 | F189: 7.2 | G189: 7.2 | H189: 7.2 | K189: 7.2 | L189: 7.2 | M189: 7.2 | N189: 7.2 | O189: 7.2 | R189: 7.2 | S189: 7.2 | T189: 7.2 | U189: 7.2 | V189: 7.2 | Y189: 7.2 | Z189: 7.2 | AA189: 7.2 | AB189: 7.2 | AC189: 7.2 | AG189: 7.2 | AH189: 7.2 | AI189: 7.2 | AJ189: 158.4 | AK189: 22
A190: =IF(C190=0," ",VLOOKUP(C190,'Список рабочих'!A$1:B$162,2,0)) -> Захаров В. К. | C190: 08287 | D190: 522 | E190: 7.2 | F190: 7.2 | G190: 7.2 | H190: 7.2 | K190: 7.2 | L190: 7.2 | AJ190: 43.2 | AK190: 6
A191: =IF(C191=0," ",VLOOKUP(C191,'Список рабочих'!A$1:B$162,2,0)) -> Иванов Д. В. | C191: 08172 | D191: 522 | K191: 4 | O191: 7.2 | R191: 7.2 | S191: 7.2 | T191: 7.2 | U191: 7.2 | V191: 7.2 | Y191: 7.2 | Z191: 7.2 | AA191: 7.2 | AB191: 7.2 | AC191: 7.2 | AF191: 7.2 | AG191: 7.2 | AH191: 7.2 | AI191: 7.2 | AJ191: 112 | AK191: 16
A192: =IF(C192=0," ",VLOOKUP(C192,'Список рабочих'!A$1:B$162,2,0)) -> Ильин А. В. | C192: 08221 | D192: 522 | T192: 4 | AB192: 7.2 | AC192: 7.2 | AJ192: 18.4 | AK192: 3
A193: =IF(C193=0," ",VLOOKUP(C193,'Список рабочих'!A$1:B$162,2,0)) -> Исаков С. А. | C193: 08195 | D193: 522 | E193: 7.2 | F193: 7.2 | G193: 7.2 | H193: 7.2 | K193: 4 | O193: 7.2 | R193: 7.2 | S193: 7.2 | T193: 7.2 | U193: 7.2 | V193: 7.2 | Y193: 7.2 | Z193: 7.2 | AA193: 7.2 | AB193: 7.2 | AC193: 7.2 | AF193: 7.2 | AG193: 7.2 | AH193: 7.2 | AI193: 7.2 | AJ193: 140.8 | AK193: 20
A194: =IF(C194=0," ",VLOOKUP(C194,'Список рабочих'!A$1:B$162,2,0)) -> Кондратюк И. М. | C194: 08264 | D194: 522 | E194: 7.2 | F194: 7.2 | G194: 7.2 | H194: 7.2 | K194: 7.2 | L194: 7.2 | M194: 7.2 | N194: 7.2 | O194: 7.2 | R194: 7.2 | S194: 7.2 | T194: 7.2 | U194: 7.2 | V194: 7.2 | Y194: 7.2 | Z194: 7.2 | AA194: 7.2 | AB194: 7.2 | AC194: 7.2 | AF194: 7.2 | AG194: 7.2 | AH194: 7.2 | AI194: 7.2 | AJ194: 165.6 | AK194: 23
A195: =IF(C195=0," ",VLOOKUP(C195,'Список рабочих'!A$1:B$162,2,0)) ->  | C195: 08248 | D195: 522 | E195: 8 | F195: 8 | G195: 8 | H195: 8 | K195: 8 | AJ195: 40 | AK195: 5
A196: =IF(C196=0," ",VLOOKUP(C196,'Список рабочих'!A$1:B$162,2,0)) -> Тяпкин А. П. | C196: 08241 | D196: 522 | E196: 8 | F196: 8 | G196: 8 | H196: 8 | K196: 8 | AJ196: 40 | AK196: 5
A197: =IF(C197=0," ",VLOOKUP(C197,'Список рабочих'!A$1:B$162,2,0)) -> Галицкий А. В. | C197: 08097 | D197: 522 | E197: 8 | F197: 8 | G197: 8 | H197: 8 | K197: 4 | O197: 8 | R197: 8 | S197: 8 | T197: 8 | U197: 8 | V197: 8 | Y197: 8 | Z197: 8 | AA197: 8 | AB197: 8 | AC197: 8 | AF197: 8 | AG197: 8 | AH197: 8 | AI197: 8 | AJ197: 156 | AK197: 20
A198: =IF(C198=0," ",VLOOKUP(C198,'Список рабочих'!A$1:B$162,2,0)) -> Парри А. В. | C198: 08180 | D198: 522 | S198: 8 | T198: 8 | U198: 8 | V198: 8 | Y198: 8 | Z198: 8 | AA198: 8 | AB198: 8 | AC198: 8 | AF198: 8 | AG198: 8 | AH198: 8 | AI198: 8 | AJ198: 104 | AK198: 13
A199: =IF(C199=0," ",VLOOKUP(C199,'Список рабочих'!A$1:B$162,2,0)) -> Медведев В. К. | C199: 08306 | D199: 522 | E199: 8 | F199: 8 | G199: 8 | H199: 8 | K199: 8 | L199: 8 | M199: 8 | N199: 8 | O199: 8 | R199: 8 | S199: 8 | T199: 8 | U199: 8 | V199: 8 | Y199: 8 | Z199: 8 | AA199: 8 | AB199: 8 | AC199: 8 | AF199: 8 | AG199: 8 | AH199: 8 | AI199: 8 | AJ199: 184 | AK199: 23
A200: =IF(C200=0," ",VLOOKUP(C200,'Список рабочих'!A$1:B$162,2,0)) -> Ермаков В. В. | C200: 08001 | D200: 522 | S200: 8 | T200: 8 | U200: 8 | V200: 8 | Y200: 8 | Z200: 8 | AA200: 8 | AB200: 8 | AC200: 8 | AF200: 8 | AG200: 8 | AH200: 8 | AI200: 8 | AJ200: 104 | AK200: 13
A201: =IF(C201=0," ",VLOOKUP(C201,'Список рабочих'!A$1:B$162,2,0)) ->  | D201: 522 | AJ201: 0
A202: =IF(C202=0," ",VLOOKUP(C202,'Список рабочих'!A$1:B$162,2,0)) ->  | D202: 522 | AJ202: 0
A203: =IF(C203=0," ",VLOOKUP(C203,'Список рабочих'!A$1:B$162,2,0)) ->  | D203: 522 | AJ203: 0
A204: =IF(C204=0," ",VLOOKUP(C204,'Список рабочих'!A$1:B$162,2,0)) ->  | D204: 522 | AJ204: 0
A205: =IF(C205=0," ",VLOOKUP(C205,'Список рабочих'!A$1:B$162,2,0)) ->  | D205: 522 | AJ205: 0
A206: =IF(C206=0," ",VLOOKUP(C206,'Список рабочих'!A$1:B$162,2,0)) ->  | D206: 522 | AJ206: 0
A207: =IF(C207=0," ",VLOOKUP(C207,'Список рабочих'!A$1:B$162,2,0)) ->  | D207: 522 | AJ207: 0
A208: ИТОГО | AJ208: =SUM(AJ165:AJ207) -> 4031 | AK208: =SUM(AK165:AK207) -> 558
A215: Табель учета рабочего времени по филиалу "САПФИР" АО "ЭРА" на заказе 12700 зав. №522 за ноябрь 2019 г..
A218: Ф. И. О. | C218: Таб. | D218: раб. | E218: отработанное время. НОЯБРЬ | AJ218: Итого | AK218: Итого
C219: номер | D219: место | E219: 1 | F219: 2 | G219: 3 | H219: 4 | I219: 5 | J219: 6 | K219: 7 | L219: 8 | M219: 9 | N219: 10 | O219: 11 | P219: 12 | Q219: 13 | R219: 14 | S219: 15 | T219: 16 | U219: 17 | V219: 18 | W219: 19 | X219: 20 | Y219: 21 | Z219: 22 | AA219: 23 | AB219: 24 | AC219: 25 | AD219: 26 | AE219: 27 | AF219: 28 | AG219: 29 | AH219: 30 | AJ219: часы | AK219: Дни
A220: =IF(C220=0," ",VLOOKUP(C220,'Список рабочих'!A$1:B$162,2,0)) -> Галицкий А. В. | C220: 08097 | D220: 522 | E220: 8 | I220: 8 | J220: 8 | K220: 8 | L220: 8 | O220: 8 | Q220: 8 | R220: 8 | S220: 8 | V220: 8 | W220: 8 | X220: 8 | Y220: 8 | Z220: 8 | AC220: 8 | AD220: 8 | AE220: 8 | AF220: 8 | AG220: 8 | AJ220: =SUM(E220:AI220) -> 152 | AK220: =COUNT(E220:AI220) -> 19
A221: =IF(C221=0," ",VLOOKUP(C221,'Список рабочих'!A$1:B$162,2,0)) -> Парри А. В. | C221: 08180 | D221: 522 | E221: 8 | I221: 8 | J221: 8 | K221: 8 | L221: 8 | O221: 8 | P221: 8 | Q221: 8 | R221: 8 | S221: 8 | V221: 8 | W221: 8 | X221: 8 | Y221: 8 | Z221: 8 | AC221: 8 | AD221: 8 | AE221: 8 | AF221: 8 | AJ221: =SUM(E221:AI221) -> 152 | AK221: 19
A222: =IF(C222=0," ",VLOOKUP(C222,'Список рабочих'!A$1:B$162,2,0)) -> Медведев В. К. | C222: 08306 | D222: 522 | E222: 8 | I222: 8 | J222: 8 | K222: 8 | L222: 8 | O222: 8 | P222: 8 | Q222: 8 | AJ222: 64 | AK222: 8
A223: =IF(C223=0," ",VLOOKUP(C223,'Список рабочих'!A$1:B$162,2,0)) -> Вдовин А. А. | C223: 08199 | D223: 522 | E223: 7.2 | I223: 7.2 | J223: 7.2 | K223: 7.2 | L223: 7.2 | O223: 7.2 | P223: 7.2 | Q223: 4 | R223: 7.2 | S223: 7.2 | V223: 7.2 | W223: 7.2 | X223: 7.2 | Y223: 7.2 | AC223: 7.2 | AD223: 7.2 | AE223: 7.2 | AF223: 7.2 | AG223: 7.2 | AJ223: 133.6 | AK223: 19
A224: =IF(C224=0," ",VLOOKUP(C224,'Список рабочих'!A$1:B$162,2,0)) -> Головкин А. В. | C224: 08236 | D224: 522 | E224: 7.2 | I224: 7.2 | J224: 7.2 | K224: 7.2 | L224: 7.2 | O224: 7.2 | P224: 7.2 | Q224: 7.2 | R224: 7.2 | S224: 7.2 | W224: 7.2 | X224: 7.2 | Y224: 7.2 | Z224: 7.2 | AC224: 7.2 | AD224: 7.2 | AE224: 7.2 | AF224: 7.2 | AG224: 7.2 | AJ224: 136.8 | AK224: 19
A225: =IF(C225=0," ",VLOOKUP(C225,'Список рабочих'!A$1:B$162,2,0)) -> Захаров В. К. | C225: 08287 | D225: 522 | AC225: 6 | AD225: 7.2 | AE225: 7.2 | AF225: 7.2 | AG225: 7.2 | AJ225: 34.8 | AK225: 5
A226: =IF(C226=0," ",VLOOKUP(C226,'Список рабочих'!A$1:B$162,2,0)) -> Иванов Д. В. | C226: 08172 | D226: 522 | E226: 7.2 | I226: 7.2 | J226: 7.2 | K226: 7.2 | L226: 7.2 | O226: 7.2 | P226: 7.2 | Q226: 7.2 | R226: 7.2 | S226: 4 | W226: 7.2 | X226: 6.2 | Y226: 7.2 | Z226: 4 | AC226: 7.2 | AD226: 4 | AE226: 7.2 | AF226: 6.5 | AG226: 7.2 | AJ226: 125.5 | AK226: 19
A227: =IF(C227=0," ",VLOOKUP(C227,'Список рабочих'!A$1:B$162,2,0)) -> Исаков С. А. | C227: 08195 | D227: 522 | E227: 7.2 | I227: 7.2 | J227: 6.2 | K227: 7.2 | L227: 7.2 | O227: 7.2 | P227: 7.2 | Q227: 7.2 | R227: 7.2 | S227: 7.2 | V227: 7.2 | W227: 7.2 | X227: 7.2 | Y227: 7.2 | Z227: 7.2 | AC227: 7.2 | AD227: 7.2 | AE227: 7.2 | AF227: 7.2 | AG227: 7.2 | AJ227: 143 | AK227: 20
A228: =IF(C228=0," ",VLOOKUP(C228,'Список рабочих'!A$1:B$162,2,0)) -> Кондратюк И. М. | C228: 08264 | D228: 522 | E228: 7.2 | I228: 7.2 | J228: 7.2 | K228: 7.2 | L228: 7.2 | O228: 7.2 | P228: 7.2 | Q228: 7.2 | R228: 7.2 | S228: 7.2 | V228: 7.2 | W228: 7.2 | X228: 7.2 | Y228: 7.2 | Z228: 7.2 | AC228: 7.2 | AD228: 7.2 | AE228: 7.2 | AF228: 7.2 | AG228: 7.2 | AJ228: 144 | AK228: 20
A229: =IF(C229=0," ",VLOOKUP(C229,'Список рабочих'!A$1:B$162,2,0)) -> Свояков Н. А. | C229: 08222 | D229: 522 | E229: 7.2 | I229: 7.2 | J229: 7.2 | K229: 7.2 | L229: 7.2 | O229: 7.2 | P229: 7.2 | Q229: 7.2 | R229: 7.2 | S229: 7.2 | V229: 7.2 | W229: 7.2 | X229: 7.2 | Y229: 7.2 | Z229: 7.2 | AC229: 7.2 | AD229: 7.2 | AE229: 7.2 | AF229: 7.2 | AG229: 7.2 | AJ229: 144 | AK229: 20
... 127 more rows

Sheet Январь
A1: № | B1: Ф. И. О. | C1: разряд | D1: Таб. | E1: отработанное время. Январь 2024 | AK1: вых. | AM1: Итого | AN1: итого
D2: номер | E2: 1 | F2: 2 | G2: 3 | H2: 4 | I2: 5 | J2: 6 | K2: 7 | L2: 8 | M2: 9 | N2: 10 | O2: 11 | P2: 12 | Q2: 13 | R2: 14 | S2: 15 | T2: 16 | U2: 17 | V2: 18 | W2: 19 | X2: 20 | Y2: 21 | Z2: 22 | AA2: 23 | AB2: 24 | AC2: 25 | AD2: 26 | AE2: 27 | AF2: 28 | AG2: 29 | AH2: 30 | AI2: 31 | AJ2: часы | AK2: Дни | AL2: Молоко | AM2: часы | AN2: дни | AV2: Заказ 526
A3: 1 | B3: =IF(D3=0," ",VLOOKUP(D3,'Список рабочих'!A$1:B$240,2,0)) -> Байдин А. А. | C3: =IF(D3=0," ",VLOOKUP(D3,'Список рабочих'!A$1:C$202,3,0)) -> 3 | D3: 006167 | M3: 7.2 | N3: 7.2 | O3: 7.2 | P3: 7.2 | S3: 7.2 | AJ3: =SUM(M3:P3,S3:W3,Z3:AD3,AG3:AI3) -> 36 | AK3: =SUM(E3:L3,Q3:R3,X3:Y3,AE3:AF3) -> 0 | AL3: =COUNT(M3:P3,S3:W3,Z3:AD3,AG3:AI3) -> 5 | AM3: =SUM(AK3,AJ3) -> 36 | AN3: =COUNT(E3:AI3) -> 5
A4: =SUM(A3+1) -> 2 | B4: =IF(D4=0," ",VLOOKUP(D4,'Список рабочих'!A$1:B$240,2,0)) -> Бойков А. А. | C4: =IF(D4=0," ",VLOOKUP(D4,'Список рабочих'!A$1:C$202,3,0)) -> 5 | D4: 08009 | AJ4: =SUM(M4:P4,S4:W4,Z4:AD4,AG4:AI4) -> 0 | AK4: =SUM(E4:L4,Q4:R4,X4:Y4,AE4:AF4) -> 0 | AL4: =COUNT(M4:P4,S4:W4,Z4:AD4,AG4:AI4) -> 0 | AM4: =SUM(AK4,AJ4) -> 0 | AN4: =COUNT(E4:AI4) -> 0 | AV4: № | AW4: Ф. И. О. | AX4: разряд | AY4: Таб. | AZ4: раб.
A5: =SUM(A4+1) -> 3 | B5: =IF(D5=0," ",VLOOKUP(D5,'Список рабочих'!A$1:B$240,2,0)) -> Вараксин П. А. | C5: =IF(D5=0," ",VLOOKUP(D5,'Список рабочих'!A$1:C$202,3,0)) -> 4 | D5: 08271 | M5: 7.2 | N5: 7.2 | O5: 7.2 | P5: 7.2 | AJ5: =SUM(M5:P5,S5:W5,Z5:AD5,AG5:AI5) -> 28.8 | AK5: 0 | AL5: 4 | AM5: 28.8 | AN5: 4 | AY5: номер | AZ5: место
A6: 4 | B6: =IF(D6=0," ",VLOOKUP(D6,'Список рабочих'!A$1:B$240,2,0)) -> Васильев А. Ю. | C6: =IF(D6=0," ",VLOOKUP(D6,'Список рабочих'!A$1:C$202,3,0)) -> 5 | D6: 08235 | AJ6: 0 | AK6: 0 | AL6: 0 | AM6: 0 | AN6: 0 | AV6: 1 | AW6: =IF(AY6=0," ",VLOOKUP(AY6,'Список рабочих'!A$1:B$162,2,0)) -> Вараксин П. А. | AX6: =IF(AY6=0," ",VLOOKUP(AY6,'Список рабочих'!A$1:C$202,3,0)) -> 4 | AY6: 08271 | AZ6: включение
A7: 5 | B7: =IF(D7=0," ",VLOOKUP(D7,'Список рабочих'!A$1:B$240,2,0)) -> Вдовин А. А. | C7: =IF(D7=0," ",VLOOKUP(D7,'Список рабочих'!A$1:C$202,3,0)) -> 3 | D7: 08199 | M7: 7.2 | N7: 7.2 | O7: 7.2 | P7: 7.2 | AJ7: 28.8 | AK7: 0 | AL7: 4 | AM7: 28.8 | AN7: 4 | AV7: =SUM(AV6+1) -> 2 | AW7: =IF(AY7=0," ",VLOOKUP(AY7,'Список рабочих'!A$1:B$162,2,0)) -> Галицкий А. В. | AX7: =IF(AY7=0," ",VLOOKUP(AY7,'Список рабочих'!A$1:C$202,3,0)) -> 5 | AY7: 08097 | AZ7: включение
A8: 6 | B8: =IF(D8=0," ",VLOOKUP(D8,'Список рабочих'!A$1:B$240,2,0)) -> Вирки И. И. | C8: =IF(D8=0," ",VLOOKUP(D8,'Список рабочих'!A$1:C$202,3,0)) -> 4 | D8: 08018 | AJ8: 0 | AK8: 0 | AL8: 0 | AM8: 0 | AN8: 0 | AV8: =SUM(AV7+1) -> 3 | AW8: =IF(AY8=0," ",VLOOKUP(AY8,'Список рабочих'!A$1:B$162,2,0)) -> Данилов В. Н. | AX8: =IF(AY8=0," ",VLOOKUP(AY8,'Список рабочих'!A$1:C$202,3,0)) -> 3 | AY8: 08296 | AZ8: пайка
A9: 7 | B9: =IF(D9=0," ",VLOOKUP(D9,'Список рабочих'!A$1:B$240,2,0)) -> Гаврилов А. Б. | C9: =IF(D9=0," ",VLOOKUP(D9,'Список рабочих'!A$1:C$202,3,0)) -> 3 | D9: 08243 | M9: 8 | N9: 8 | O9: 8 | P9: 8 | AJ9: 32 | AK9: 0 | AL9: 4 | AM9: 32 | AN9: 4 | AV9: 4 | AW9: =IF(AY9=0," ",VLOOKUP(AY9,'Список рабочих'!A$1:B$162,2,0)) -> Евдокимов К. А. | AX9: =IF(AY9=0," ",VLOOKUP(AY9,'Список рабочих'!A$1:C$202,3,0)) -> 3 | AY9: 08211 | AZ9: включение
A10: 8 | B10: =IF(D10=0," ",VLOOKUP(D10,'Список рабочих'!A$1:B$240,2,0)) -> Галицкий А. В. | C10: =IF(D10=0," ",VLOOKUP(D10,'Список рабочих'!A$1:C$202,3,0)) -> 5 | D10: 08097 | M10: 8 | N10: 8 | O10: 8 | P10: 8 | AJ10: 32 | AK10: 0 | AL10: 4 | AM10: =SUM(AK10,AJ10) -> 32 | AN10: 4 | AV10: 5 | AW10: =IF(AY10=0," ",VLOOKUP(AY10,'Список рабочих'!A$1:B$162,2,0)) -> Захаров А. Б. | AX10: =IF(AY10=0," ",VLOOKUP(AY10,'Список рабочих'!A$1:C$202,3,0)) -> 4 | AY10: 08246 | AZ10: включение
A11: 9 | B11: =IF(D11=0," ",VLOOKUP(D11,'Список рабочих'!A$1:B$240,2,0)) -> Гареев М. И. | C11: =IF(D11=0," ",VLOOKUP(D11,'Список рабочих'!A$1:C$202,3,0)) -> 2 | D11: 006169 | M11: 7.2 | N11: 7.2 | O11: 7.2 | P11: 7.2 | AJ11: 28.8 | AK11: 0 | AL11: 4 | AM11: 28.8 | AN11: 4 | AV11: 6 | AW11: =IF(AY11=0," ",VLOOKUP(AY11,'Список рабочих'!A$1:B$162,2,0)) -> Иванов А. Ю. | AX11: =IF(AY11=0," ",VLOOKUP(AY11,'Список рабочих'!A$1:C$202,3,0)) -> 3 | AY11: 08300 | AZ11: включение
A12: 10 | B12: =IF(D12=0," ",VLOOKUP(D12,'Список рабочих'!A$1:B$240,2,0)) -> Гребенюк И.А. | C12: =IF(D12=0," ",VLOOKUP(D12,'Список рабочих'!A$1:C$202,3,0)) -> 3 | D12: 08260 | M12: 7.2 | N12: Б | O12: Б | P12: Б | AJ12: 7.2 | AK12: 0 | AL12: 1 | AM12: 7.2 | AN12: 1 | AV12: 7 | AW12: =IF(AY12=0," ",VLOOKUP(AY12,'Список рабочих'!A$1:B$162,2,0)) -> Ильин А. В. | AX12: =IF(AY12=0," ",VLOOKUP(AY12,'Список рабочих'!A$1:C$202,3,0)) -> 4 | AY12: 08221 | AZ12: пайка
A13: 11 | B13: =IF(D13=0," ",VLOOKUP(D13,'Список рабочих'!A$1:B$240,2,0)) -> Данилов В. Н. | C13: =IF(D13=0," ",VLOOKUP(D13,'Список рабочих'!A$1:C$202,3,0)) -> 3 | D13: 08296 | M13: 7.2 | N13: 7.2 | O13: 7.2 | P13: 7.2 | AJ13: 28.8 | AK13: 0 | AL13: 4 | AM13: 28.8 | AN13: 4 | AV13: 8 | AW13: =IF(AY13=0," ",VLOOKUP(AY13,'Список рабочих'!A$1:B$162,2,0)) -> Козлов Н. К. | AX13: =IF(AY13=0," ",VLOOKUP(AY13,'Список рабочих'!A$1:C$202,3,0)) -> 3 | AY13: 08311 | AZ13: включение
A14: 12 | B14: =IF(D14=0," ",VLOOKUP(D14,'Список рабочих'!A$1:B$240,2,0)) -> Дроздов А. С. | C14: =IF(D14=0," ",VLOOKUP(D14,'Список рабочих'!A$1:C$202,3,0)) -> 2 | D14: 006225 | M14: 7.2 | N14: 7.2 | O14: 7.2 | P14: 7.2 | AJ14: 28.8 | AK14: 0 | AL14: 4 | AM14: 28.8 | AN14: 4 | AV14: 9 | AW14: =IF(AY14=0," ",VLOOKUP(AY14,'Список рабочих'!A$1:B$162,2,0)) -> Килимник О. В. | AX14: =IF(AY14=0," ",VLOOKUP(AY14,'Список рабочих'!A$1:C$202,3,0)) -> 4 | AY14: 08238 | AZ14: пайка
A15: 13 | B15: =IF(D15=0," ",VLOOKUP(D15,'Список рабочих'!A$1:B$240,2,0)) -> Ефремов В. В. | C15: =IF(D15=0," ",VLOOKUP(D15,'Список рабочих'!A$1:C$202,3,0)) -> 3 | D15: 006199 | AJ15: 0 | AK15: 0 | AL15: 0 | AM15: 0 | AN15: 0 | AV15: 10 | AW15: =IF(AY15=0," ",VLOOKUP(AY15,'Список рабочих'!A$1:B$162,2,0)) -> Клюев Л. И. | AX15: =IF(AY15=0," ",VLOOKUP(AY15,'Список рабочих'!A$1:C$202,3,0)) -> 4 | AY15: 08208 | AZ15: включение
A16: 14 | B16: =IF(D16=0," ",VLOOKUP(D16,'Список рабочих'!A$1:B$240,2,0)) -> Евдокимов К. А. | C16: =IF(D16=0," ",VLOOKUP(D16,'Список рабочих'!A$1:C$202,3,0)) -> 3 | D16: 08211 | AJ16: 0 | AK16: 0 | AL16: 0 | AM16: 0 | AN16: 0 | AV16: 11 | AW16: =IF(AY16=0," ",VLOOKUP(AY16,'Список рабочих'!A$1:B$162,2,0)) -> Клюев Д. Л. | AX16: =IF(AY16=0," ",VLOOKUP(AY16,'Список рабочих'!A$1:C$202,3,0)) -> 3 | AY16: 08268 | AZ16: включение
A17: 15 | B17: =IF(D17=0," ",VLOOKUP(D17,'Список рабочих'!A$1:B$240,2,0)) -> Елисеев А. В. | C17: =IF(D17=0," ",VLOOKUP(D17,'Список рабочих'!A$1:C$202,3,0)) -> 4 | D17: 08310 | M17: 7.2 | N17: 7.2 | O17: 7.2 | P17: 7.2 | AJ17: 28.8 | AK17: 0 | AL17: 4 | AM17: 28.8 | AN17: 4 | AV17: 12 | AW17: =IF(AY17=0," ",VLOOKUP(AY17,'Список рабочих'!A$1:B$162,2,0)) -> Мельников А. В. | AX17: =IF(AY17=0," ",VLOOKUP(AY17,'Список рабочих'!A$1:C$202,3,0)) -> 5 | AY17: 08177 | AZ17: пайка
A18: 16 | B18: =IF(D18=0," ",VLOOKUP(D18,'Список рабочих'!A$1:B$240,2,0)) -> Захаров А. Б. | C18: =IF(D18=0," ",VLOOKUP(D18,'Список рабочих'!A$1:C$202,3,0)) -> 4 | D18: 08246 | M18: 7.2 | N18: 7.2 | O18: 7.2 | P18: 7.2 | AJ18: 28.8 | AK18: 0 | AL18: 4 | AM18: 28.8 | AN18: 4 | AV18: 13 | AW18: =IF(AY18=0," ",VLOOKUP(AY18,'Список рабочих'!A$1:B$162,2,0)) -> Мельников В. Ю. | AX18: =IF(AY18=0," ",VLOOKUP(AY18,'Список рабочих'!A$1:C$202,3,0)) -> 4 | AY18: 08269 | AZ18: включение
A19: 17 | B19: =IF(D19=0," ",VLOOKUP(D19,'Список рабочих'!A$1:B$240,2,0)) -> Казак А. В. | C19: =IF(D19=0," ",VLOOKUP(D19,'Список рабочих'!A$1:C$202,3,0)) -> 4 | D19: 08227 | M19: С/С | N19: С/С | O19: С/С | P19: 7.2 | W19: С/С | AJ19: 7.2 | AK19: 0 | AL19: 1 | AM19: 7.2 | AN19: 1 | AV19: 14 | AW19: =IF(AY19=0," ",VLOOKUP(AY19,'Список рабочих'!A$1:B$162,2,0)) -> Никаноров В. Е. | AX19: =IF(AY19=0," ",VLOOKUP(AY19,'Список рабочих'!A$1:C$202,3,0)) -> 4 | AY19: 08217 | AZ19: включение
A20: 18 | B20: =IF(D20=0," ",VLOOKUP(D20,'Список рабочих'!A$1:B$240,2,0)) -> Килимник О. В. | C20: =IF(D20=0," ",VLOOKUP(D20,'Список рабочих'!A$1:C$202,3,0)) -> 4 | D20: 08238 | AJ20: 0 | AK20: 0 | AL20: 0 | AM20: 0 | AN20: 0 | AV20: 15 | AW20: =IF(AY20=0," ",VLOOKUP(AY20,'Список рабочих'!A$1:B$162,2,0)) -> Осипов Е. В. | AX20: =IF(AY20=0," ",VLOOKUP(AY20,'Список рабочих'!A$1:C$202,3,0)) -> 2 | AY20: 08312 | AZ20: включение
A21: 19 | B21: =IF(D21=0," ",VLOOKUP(D21,'Список рабочих'!A$1:B$240,2,0)) -> Кондратюк И. М. | C21: =IF(D21=0," ",VLOOKUP(D21,'Список рабочих'!A$1:C$202,3,0)) -> 3 | D21: 08264 | M21: 7.2 | N21: 7.2 | O21: 7.2 | P21: 7.2 | AJ21: 28.8 | AK21: 0 | AL21: 4 | AM21: 28.8 | AN21: 4 | AV21: 16 | AW21: =IF(AY21=0," ",VLOOKUP(AY21,'Список рабочих'!A$1:B$162,2,0)) -> Остапчук В. В. | AX21: =IF(AY21=0," ",VLOOKUP(AY21,'Список рабочих'!A$1:C$202,3,0)) -> 5 | AY21: 08323 | AZ21: пайка
A22: 20 | B22: =IF(D22=0," ",VLOOKUP(D22,'Список рабочих'!A$1:B$240,2,0)) -> Косимов Х.Г. | C22: =IF(D22=0," ",VLOOKUP(D22,'Список рабочих'!A$1:C$202,3,0)) -> 3 | D22: 08313 | M22: 7.2 | N22: 7.2 | O22: 7.2 | P22: 7.2 | AJ22: 28.8 | AK22: 0 | AL22: 4 | AM22: 28.8 | AN22: 4 | AV22: 17 | AW22: =IF(AY22=0," ",VLOOKUP(AY22,'Список рабочих'!A$1:B$162,2,0)) -> Платонов Д. С. | AX22: =IF(AY22=0," ",VLOOKUP(AY22,'Список рабочих'!A$1:C$202,3,0)) -> 3 | AY22: 08290 | AZ22: включение
A23: 21 | B23: =IF(D23=0," ",VLOOKUP(D23,'Список рабочих'!A$1:B$240,2,0)) -> Мамонтов Д. П. | C23: =IF(D23=0," ",VLOOKUP(D23,'Список рабочих'!A$1:C$202,3,0)) -> 4 | D23: 006170 | M23: 7.2 | N23: 7.2 | O23: 7.2 | P23: С/С | AJ23: 21.6 | AK23: 0 | AL23: 3 | AM23: 21.6 | AN23: 3 | AV23: 18 | AW23: =IF(AY23=0," ",VLOOKUP(AY23,'Список рабочих'!A$1:B$162,2,0)) -> Приходько А. А. | AX23: =IF(AY23=0," ",VLOOKUP(AY23,'Список рабочих'!A$1:C$202,3,0)) -> 5 | AY23: 08218 | AZ23: включение
A24: 22 | B24: =IF(D24=0," ",VLOOKUP(D24,'Список рабочих'!A$1:B$240,2,0)) -> Медведев В. К. | C24: =IF(D24=0," ",VLOOKUP(D24,'Список рабочих'!A$1:C$202,3,0)) -> 4 | D24: 08306 | AJ24: 0 | AK24: 0 | AL24: 0 | AM24: 0 | AN24: 0 | AV24: 19 | AW24: =IF(AY24=0," ",VLOOKUP(AY24,'Список рабочих'!A$1:B$162,2,0)) -> Рыбалкина Е. Г. | AX24: =IF(AY24=0," ",VLOOKUP(AY24,'Список рабочих'!A$1:C$202,3,0)) -> 4 | AY24: 08095 | AZ24: пайка
A25: 23 | B25: =IF(D25=0," ",VLOOKUP(D25,'Список рабочих'!A$1:B$240,2,0)) -> Мельников А. В. | C25: =IF(D25=0," ",VLOOKUP(D25,'Список рабочих'!A$1:C$202,3,0)) -> 5 | D25: 08177 | AJ25: 0 | AK25: 0 | AL25: 0 | AM25: 0 | AN25: 0 | AV25: 20 | AW25: =IF(AY25=0," ",VLOOKUP(AY25,'Список рабочих'!A$1:B$162,2,0)) -> Саноян А. А. | AX25: =IF(AY25=0," ",VLOOKUP(AY25,'Список рабочих'!A$1:C$202,3,0)) -> 3 | AY25: 08289 | AZ25: пайка
A26: 24 | B26: =IF(D26=0," ",VLOOKUP(D26,'Список рабочих'!A$1:B$240,2,0)) -> Митнев А. П. | C26: =IF(D26=0," ",VLOOKUP(D26,'Список рабочих'!A$1:C$202,3,0)) -> 3 | D26: 08291 | M26: 7.2 | N26: 7.2 | O26: 7.2 | P26: 7.2 | AJ26: 28.8 | AK26: 0 | AL26: 4 | AM26: 28.8 | AN26: 4 | AV26: 21 | AW26: =IF(AY26=0," ",VLOOKUP(AY26,'Список рабочих'!A$1:B$162,2,0)) -> Свояков Н. А. | AX26: =IF(AY26=0," ",VLOOKUP(AY26,'Список рабочих'!A$1:C$202,3,0)) -> 4 | AY26: 08222 | AZ26: пайка
A27: 25 | B27: =IF(D27=0," ",VLOOKUP(D27,'Список рабочих'!A$1:B$240,2,0)) -> Михайлов В. В. | C27: =IF(D27=0," ",VLOOKUP(D27,'Список рабочих'!A$1:C$202,3,0)) -> 3 | D27: 08337 | M27: 7.2 | N27: 7.2 | O27: 7.2 | P27: 7.2 | AJ27: 28.8 | AK27: 0 | AL27: 4 | AM27: 28.8 | AN27: 4 | AV27: 22 | AW27: =IF(AY27=0," ",VLOOKUP(AY27,'Список рабочих'!A$1:B$162,2,0)) -> Сухарев А.А | AX27: =IF(AY27=0," ",VLOOKUP(AY27,'Список рабочих'!A$1:C$202,3,0)) -> 3 | AY27: 08325 | AZ27: включение
A28: 26 | B28: =IF(D28=0," ",VLOOKUP(D28,'Список рабочих'!A$1:B$240,2,0)) -> Мотовилин Э.В. | C28: =IF(D28=0," ",VLOOKUP(D28,'Список рабочих'!A$1:C$202,3,0)) -> 3 | D28: 08283 | M28: 7.2 | N28: 7.2 | O28: 7.2 | P28: 7.2 | AJ28: 28.8 | AK28: 0 | AL28: 4 | AM28: 28.8 | AN28: 4 | AV28: 23 | AW28: =IF(AY28=0," ",VLOOKUP(AY28,'Список рабочих'!A$1:B$162,2,0)) -> Сухопаров С. В. | AX28: =IF(AY28=0," ",VLOOKUP(AY28,'Список рабочих'!A$1:C$202,3,0)) -> 4 | AY28: 08299 | AZ28: пайка
A29: 27 | B29: =IF(D29=0," ",VLOOKUP(D29,'Список рабочих'!A$1:B$240,2,0)) -> Новицкий Р. П. | C29: =IF(D29=0," ",VLOOKUP(D29,'Список рабочих'!A$1:C$202,3,0)) -> 2 | D29: 006293 | M29: 7.2 | N29: 4 | O29: 7.2 | P29: 7.2 | AJ29: 25.6 | AK29: 0 | AL29: 4 | AM29: 25.6 | AN29: 4 | AV29: 24 | AW29: =IF(AY29=0," ",VLOOKUP(AY29,'Список рабочих'!A$1:B$162,2,0)) -> Томилова В. И. | AX29: =IF(AY29=0," ",VLOOKUP(AY29,'Список рабочих'!A$1:C$202,3,0)) -> 4 | AY29: 08012 | AZ29: пайка
A30: 28 | B30: =IF(D30=0," ",VLOOKUP(D30,'Список рабочих'!A$1:B$240,2,0)) -> Остапчук В. В. | C30: =IF(D30=0," ",VLOOKUP(D30,'Список рабочих'!A$1:C$202,3,0)) -> 5 | D30: 08323 | AJ30: 0 | AK30: 0 | AL30: 0 | AM30: 0 | AN30: 0 | AV30: 25 | AW30: =IF(AY30=0," ",VLOOKUP(AY30,'Список рабочих'!A$1:B$162,2,0)) -> Хробостова Т. Ю. | AX30: =IF(AY30=0," ",VLOOKUP(AY30,'Список рабочих'!A$1:C$202,3,0)) -> 4 | AY30: 08319 | AZ30: пайка
A31: 29 | B31: =IF(D31=0," ",VLOOKUP(D31,'Список рабочих'!A$1:B$240,2,0)) -> Остапчук Н. К. | C31: =IF(D31=0," ",VLOOKUP(D31,'Список рабочих'!A$1:C$202,3,0)) -> 4 | D31: 006200 | AJ31: 0 | AK31: 0 | AL31: 0 | AM31: 0 | AN31: 0 | AV31: 26 | AW31: =IF(AY31=0," ",VLOOKUP(AY31,'Список рабочих'!A$1:B$162,2,0)) -> Яруллин Р. Т. | AX31: =IF(AY31=0," ",VLOOKUP(AY31,'Список рабочих'!A$1:C$202,3,0)) -> 3 | AY31: 08336 | AZ31: включение
A32: 30 | B32: =IF(D32=0," ",VLOOKUP(D32,'Список рабочих'!A$1:B$240,2,0)) -> Парри А. В. | C32: =IF(D32=0," ",VLOOKUP(D32,'Список рабочих'!A$1:C$202,3,0)) -> 3 | D32: 08180 | M32: С/С | N32: 7.2 | O32: 7.2 | P32: 7.2 | AJ32: 21.6 | AK32: 0 | AL32: 3 | AM32: 21.6 | AN32: 3 | AV32: 27 | AW32: =IF(AY32=0," ",VLOOKUP(AY32,'Список рабочих'!A$1:B$162,2,0)) -> Васильев А. Ю. | AX32: =IF(AY32=0," ",VLOOKUP(AY32,'Список рабочих'!A$1:C$202,3,0)) -> 5 | AY32: 08235 | AZ32: регулировщик
A33: 31 | B33: =IF(D33=0," ",VLOOKUP(D33,'Список рабочих'!A$1:B$240,2,0)) -> Парри С. А. | C33: =IF(D33=0," ",VLOOKUP(D33,'Список рабочих'!A$1:C$202,3,0)) -> 3 | D33: 08266 | M33: 7.2 | N33: 7.2 | O33: 7.2 | P33: 7.2 | AJ33: 28.8 | AK33: 0 | AL33: 4 | AM33: =SUM(AK33,AJ33) -> 28.8 | AN33: 4 | AV33: 28 | AW33: =IF(AY33=0," ",VLOOKUP(AY33,'Список рабочих'!A$1:B$162,2,0)) -> Казак А. В. | AX33: =IF(AY33=0," ",VLOOKUP(AY33,'Список рабочих'!A$1:C$202,3,0)) -> 4 | AY33: 08227 | AZ33: регулировщик
A34: 32 | B34: =IF(D34=0," ",VLOOKUP(D34,'Список рабочих'!A$1:B$240,2,0)) -> Паршуков В. О. | C34: =IF(D34=0," ",VLOOKUP(D34,'Список рабочих'!A$1:C$202,3,0)) -> 3 | D34: 08331 | M34: 7.2 | N34: 7.2 | O34: 7.2 | P34: С/С | AJ34: 21.6 | AK34: 0 | AL34: 3 | AM34: 21.6 | AN34: 3 | AV34: 29 | AW34: =IF(AY34=0," ",VLOOKUP(AY34,'Список рабочих'!A$1:B$162,2,0)) -> Марьянков И. В. | AX34: =IF(AY34=0," ",VLOOKUP(AY34,'Список рабочих'!A$1:C$202,3,0)) -> 5 | AY34: 08252 | AZ34: регулировщик
A35: 33 | B35: =IF(D35=0," ",VLOOKUP(D35,'Список рабочих'!A$1:B$240,2,0)) -> Пахомов В. С. | C35: =IF(D35=0," ",VLOOKUP(D35,'Список рабочих'!A$1:C$202,3,0)) -> 3 | D35: 08254 | M35: 7.2 | N35: 7.2 | O35: 8 | P35: 8 | AJ35: 30.4 | AK35: 0 | AL35: 4 | AM35: 30.4 | AN35: 4 | AV35: 30 | AW35: =IF(AY35=0," ",VLOOKUP(AY35,'Список рабочих'!A$1:B$162,2,0)) -> Медведев В. К. | AX35: =IF(AY35=0," ",VLOOKUP(AY35,'Список рабочих'!A$1:C$202,3,0)) -> 4 | AY35: 08306 | AZ35: регулировщик
A36: 34 | B36: =IF(D36=0," ",VLOOKUP(D36,'Список рабочих'!A$1:B$240,2,0)) -> Петрунин А. Н. | C36: =IF(D36=0," ",VLOOKUP(D36,'Список рабочих'!A$1:C$202,3,0)) -> 5 | D36: 08132 | M36: 7.2 | N36: 7.2 | O36: 7.2 | P36: 7.2 | AJ36: 28.8 | AK36: 0 | AL36: 4 | AM36: 28.8 | AN36: 4 | AV36: 31 | AW36: =IF(AY36=0," ",VLOOKUP(AY36,'Список рабочих'!A$1:B$162,2,0)) -> Соловьев В. В. | AX36: =IF(AY36=0," ",VLOOKUP(AY36,'Список рабочих'!A$1:C$202,3,0)) -> 4 | AY36: 93562 | AZ36: включение
A37: 35 | B37: =IF(D37=0," ",VLOOKUP(D37,'Список рабочих'!A$1:B$240,2,0)) -> Приходько А. А. | C37: =IF(D37=0," ",VLOOKUP(D37,'Список рабочих'!A$1:C$202,3,0)) -> 5 | D37: 08218 | M37: 7.2 | N37: 7.2 | O37: 7.2 | P37: 7.2 | AJ37: 28.8 | AK37: 0 | AL37: 4 | AM37: 28.8 | AN37: 4 | AV37: 32 | AW37: =IF(AY37=0," ",VLOOKUP(AY37,'Список рабочих'!A$1:B$162,2,0)) -> Тулуш А. С. | AX37: =IF(AY37=0," ",VLOOKUP(AY37,'Список рабочих'!A$1:C$202,3,0)) -> 5 | AY37: 08237 | AZ37: регулировщик
A38: 36 | B38: =IF(D38=0," ",VLOOKUP(D38,'Список рабочих'!A$1:B$240,2,0)) -> Речинский В. А. | C38: =IF(D38=0," ",VLOOKUP(D38,'Список рабочих'!A$1:C$202,3,0)) -> 4 | D38: 08229 | M38: 7.2 | N38: 7.2 | O38: 8 | P38: 8 | AJ38: 30.4 | AK38: 0 | AL38: 4 | AM38: 30.4 | AN38: 4 | AV38: 33 | AW38: =IF(AY38=0," ",VLOOKUP(AY38,'Список рабочих'!A$1:B$162,2,0)) -> Федосеев А.А. | AX38: =IF(AY38=0," ",VLOOKUP(AY38,'Список рабочих'!A$1:C$202,3,0)) -> 4 | AY38: 08322 | AZ38: регулировщик
A39: 37 | B39: =IF(D39=0," ",VLOOKUP(D39,'Список рабочих'!A$1:B$240,2,0)) -> Родин Д. В. | C39: =IF(D39=0," ",VLOOKUP(D39,'Список рабочих'!A$1:C$202,3,0)) -> 3 | D39: 08341 | M39: 7.2 | N39: 7.2 | O39: 7.2 | P39: 7.2 | AJ39: 28.8 | AK39: 0 | AL39: 4 | AM39: 28.8 | AN39: 4 | AV39: 34 | AW39: =IF(AY39=0," ",VLOOKUP(AY39,'Список рабочих'!A$1:B$162,2,0)) -> Фещенко И. И. | AX39: =IF(AY39=0," ",VLOOKUP(AY39,'Список рабочих'!A$1:C$202,3,0)) -> 6 | AY39: 08245 | AZ39: регулировщик
A40: 38 | B40: =IF(D40=0," ",VLOOKUP(D40,'Список рабочих'!A$1:B$240,2,0)) -> Румянцев К. А. | C40: =IF(D40=0," ",VLOOKUP(D40,'Список рабочих'!A$1:C$202,3,0)) -> 2 | D40: 006224 | M40: 7.2 | N40: 7.2 | O40: 7.2 | P40: 7.2 | AJ40: 28.8 | AK40: 0 | AL40: 4 | AM40: 28.8 | AN40: 4
A41: 39 | B41: =IF(D41=0," ",VLOOKUP(D41,'Список рабочих'!A$1:B$240,2,0)) -> Рыбалкина Е. Г. | C41: =IF(D41=0," ",VLOOKUP(D41,'Список рабочих'!A$1:C$202,3,0)) -> 4 | D41: 08095 | AJ41: 0 | AK41: 0 | AL41: 0 | AM41: 0 | AN41: 0
A42: 40 | B42: =IF(D42=0," ",VLOOKUP(D42,'Список рабочих'!A$1:B$240,2,0)) -> Сакс Д. С. | C42: =IF(D42=0," ",VLOOKUP(D42,'Список рабочих'!A$1:C$202,3,0)) -> 3 | D42: 08255 | M42: 7.2 | N42: 7.2 | O42: 7.2 | P42: 7.2 | AJ42: 28.8 | AK42: 0 | AL42: 4 | AM42: 28.8 | AN42: 4
A43: 41 | B43: =IF(D43=0," ",VLOOKUP(D43,'Список рабочих'!A$1:B$240,2,0)) -> Самарец А. А. | C43: =IF(D43=0," ",VLOOKUP(D43,'Список рабочих'!A$1:C$202,3,0)) -> 4 | D43: 08194 | M43: С/С | N43: 7.2 | O43: 7.2 | AJ43: 14.4 | AK43: 0 | AL43: 2 | AM43: 14.4 | AN43: 2
A44: 42 | B44: =IF(D44=0," ",VLOOKUP(D44,'Список рабочих'!A$1:B$240,2,0)) -> Свояков Н. А. | C44: =IF(D44=0," ",VLOOKUP(D44,'Список рабочих'!A$1:C$202,3,0)) -> 4 | D44: 08222 | AJ44: 0 | AK44: 0 | AL44: 0 | AM44: 0 | AN44: 0
A45: 43 | B45: =IF(D45=0," ",VLOOKUP(D45,'Список рабочих'!A$1:B$240,2,0)) -> Семенов М. А. | C45: =IF(D45=0," ",VLOOKUP(D45,'Список рабочих'!A$1:C$202,3,0)) -> 3 | D45: 08276 | M45: 7.2 | N45: 7.2 | O45: 7.2 | P45: 7.2 | AJ45: 28.8 | AK45: 0 | AL45: 4 | AM45: 28.8 | AN45: 4
A46: 44 | B46: =IF(D46=0," ",VLOOKUP(D46,'Список рабочих'!A$1:B$240,2,0)) -> Скляренко С. В. | C46: =IF(D46=0," ",VLOOKUP(D46,'Список рабочих'!A$1:C$202,3,0)) -> 2 | D46: 08352 | AJ46: 0 | AK46: 0 | AL46: 0 | AM46: 0 | AN46: 0
A47: 45 | B47: =IF(D47=0," ",VLOOKUP(D47,'Список рабочих'!A$1:B$240,2,0)) -> Соловьев В. В. | C47: =IF(D47=0," ",VLOOKUP(D47,'Список рабочих'!A$1:C$202,3,0)) -> 4 | D47: 93562 | M47: 7.2 | N47: 7.2 | O47: 7.2 | P47: 7.2 | AJ47: 28.8 | AK47: 0 | AL47: 4 | AM47: 28.8 | AN47: 4
A48: 46 | B48: =IF(D48=0," ",VLOOKUP(D48,'Список рабочих'!A$1:B$240,2,0)) -> Сухарев А.А | C48: =IF(D48=0," ",VLOOKUP(D48,'Список рабочих'!A$1:C$202,3,0)) -> 3 | D48: 08325 | M48: 7.2 | N48: 7.2 | O48: Г | P48: Г | AJ48: 14.4 | AK48: 0 | AL48: 2 | AM48: 14.4 | AN48: 2
A49: 47 | B49: =IF(D49=0," ",VLOOKUP(D49,'Список рабочих'!A$1:B$240,2,0)) -> Сухопаров С. В. | C49: =IF(D49=0," ",VLOOKUP(D49,'Список рабочих'!A$1:C$202,3,0)) -> 4 | D49: 08299 | AJ49: 0 | AK49: 0 | AL49: 0 | AM49: 0 | AN49: 0
A50: 48 | B50: =IF(D50=0," ",VLOOKUP(D50,'Список рабочих'!A$1:B$240,2,0)) -> Тагальник Н. В. | C50: =IF(D50=0," ",VLOOKUP(D50,'Список рабочих'!A$1:C$202,3,0)) -> 2 | D50: 08342 | M50: 7.2 | N50: 7.2 | O50: 7.2 | P50: 7.2 | AJ50: 28.8 | AK50: 0 | AL50: 4 | AM50: 28.8 | AN50: 4
A51: 49 | B51: =IF(D51=0," ",VLOOKUP(D51,'Список рабочих'!A$1:B$240,2,0)) -> Теселкин Д.В. | C51: =IF(D51=0," ",VLOOKUP(D51,'Список рабочих'!A$1:C$202,3,0)) -> 3 | D51: 08326 | M51: 7.2 | N51: 7.2 | O51: 7.2 | P51: 7.2 | AJ51: 28.8 | AK51: 0 | AL51: 4 | AM51: 28.8 | AN51: 4
A53: № | B53: Ф. И. О. | C53: разряд | D53: Таб. | E53: отработанное время. Январь 2024 | AK53: вых. | AM53: Итого | AN53: итого
D54: номер | E54: 1 | F54: 2 | G54: 3 | H54: 4 | I54: 5 | J54: 6 | K54: 7 | L54: 8 | M54: 9 | N54: 10 | O54: 11 | P54: 12 | Q54: 13 | R54: 14 | S54: 15 | T54: 16 | U54: 17 | V54: 18 | W54: 19 | X54: 20 | Y54: 21 | Z54: 22 | AA54: 23 | AB54: 24 | AC54: 25 | AD54: 26 | AE54: 27 | AF54: 28 | AG54: 29 | AH54: 30 | AI54: 31 | AJ54: часы | AK54: Дни | AL54: Молоко | AM54: часы | AN54: дни
A55: 50 | B55: =IF(D55=0," ",VLOOKUP(D55,'Список рабочих'!A$1:B$240,2,0)) -> Тихонов П.Н. | C55: =IF(D55=0," ",VLOOKUP(D55,'Список рабочих'!A$1:C$202,3,0)) -> 4 | D55: 08348 | M55: 7.2 | N55: 7.2 | O55: 7.2 | P55: 7.2 | AJ55: =SUM(M55:P55,S55:W55,Z55:AD55,AG55:AI55) -> 28.8 | AK55: =SUM(E55:L55,Q55:R55,X55:Y55,AE55:AF55) -> 0 | AL55: =COUNT(M55:P55,S55:W55,Z55:AD55,AG55:AI55) -> 4 | AM55: =SUM(AK55,AJ55) -> 28.8 | AN55: =COUNT(E55:AI55) -> 4
A56: =SUM(A55+1) -> 51 | B56: =IF(D56=0," ",VLOOKUP(D56,'Список рабочих'!A$1:B$240,2,0)) -> Томилова В. И. | C56: =IF(D56=0," ",VLOOKUP(D56,'Список рабочих'!A$1:C$202,3,0)) -> 4 | D56: 08012 | AJ56: 0 | AK56: 0 | AL56: 0 | AM56: 0 | AN56: 0
A57: =SUM(A56+1) -> 52 | B57: =IF(D57=0," ",VLOOKUP(D57,'Список рабочих'!A$1:B$240,2,0)) -> Тяпкин А. П. | C57: =IF(D57=0," ",VLOOKUP(D57,'Список рабочих'!A$1:C$202,3,0)) -> 4 | D57: 08241 | M57: 8 | N57: 8 | O57: 8 | P57: 8 | AJ57: 32 | AK57: 0 | AL57: 4 | AM57: 32 | AN57: 4
A58: 53 | B58: =IF(D58=0," ",VLOOKUP(D58,'Список рабочих'!A$1:B$240,2,0)) -> Ушаков А. В. | C58: =IF(D58=0," ",VLOOKUP(D58,'Список рабочих'!A$1:C$300,3,0)) -> 3 | D58: 08257 | M58: 7.2 | N58: 7.2 | O58: 7.2 | P58: 7.2 | AJ58: 28.8 | AK58: 0 | AL58: 4 | AM58: 28.8 | AN58: 4
A59: 54 | B59: =IF(D59=0," ",VLOOKUP(D59,'Список рабочих'!A$1:B$240,2,0)) -> Фещенко И. И. | C59: =IF(D59=0," ",VLOOKUP(D59,'Список рабочих'!A$1:C$202,3,0)) -> 6 | D59: 08245 | M59: 7.2 | N59: 7.2 | O59: 7.2 | P59: 7.2 | AJ59: 28.8 | AK59: 0 | AL59: 4 | AM59: 28.8 | AN59: 4
A60: 55 | B60: =IF(D60=0," ",VLOOKUP(D60,'Список рабочих'!A$1:B$240,2,0)) -> Хробостова Т. Ю. | C60: =IF(D60=0," ",VLOOKUP(D60,'Список рабочих'!A$1:C$202,3,0)) -> 4 | D60: 08319 | AJ60: 0 | AK60: 0 | AL60: 0 | AM60: 0 | AN60: 0
A61: 56 | B61: =IF(D61=0," ",VLOOKUP(D61,'Список рабочих'!A$1:B$240,2,0)) -> Шишов Д. С. | C61: =IF(D61=0," ",VLOOKUP(D61,'Список рабочих'!A$1:C$202,3,0)) -> 3 | D61: 08338 | AJ61: 0 | AK61: 0 | AL61: 0 | AM61: 0 | AN61: 0
A62: 57 | B62: =IF(D62=0," ",VLOOKUP(D62,'Список рабочих'!A$1:B$240,2,0)) -> Чернов Е. И. | C62: =IF(D62=0," ",VLOOKUP(D62,'Список рабочих'!A$1:C$202,3,0)) -> 4 | D62: 88888 | M62: 7.2 | N62: 7.2 | O62: 7.2 | P62: 7.2 | AJ62: 28.8 | AK62: 0 | AL62: 4 | AM62: 28.8 | AN62: 4
A63: 58 | B63: =IF(D63=0," ",VLOOKUP(D63,'Список рабочих'!A$1:B$240,2,0)) -> Юсупов Д. Х. | C63: =IF(D63=0," ",VLOOKUP(D63,'Список рабочих'!A$1:C$202,3,0)) -> 2 | D63: 006261 | M63: 7.2 | N63: 7.2 | O63: 7.2 | P63: 7.2 | AJ63: 28.8 | AK63: 0 | AL63: 4 | AM63: 28.8 | AN63: 4
A64: 59 | B64: =IF(D64=0," ",VLOOKUP(D64,'Список рабочих'!A$1:B$240,2,0)) -> Яруллин Р. Т. | C64: =IF(D64=0," ",VLOOKUP(D64,'Список рабочих'!A$1:C$202,3,0)) -> 3 | D64: 08336 | AJ64: 0 | AK64: 0 | AL64: 0 | AM64: 0 | AN64: 0
A65: 60 | B65: =IF(D65=0," ",VLOOKUP(D65,'Список рабочих'!A$1:B$240,2,0)) ->  | C65: =IF(D65=0," ",VLOOKUP(D65,'Список рабочих'!A$1:C$202,3,0)) ->  | AJ65: 0 | AK65: 0 | AL65: 0 | AM65: 0 | AN65: 0
A66: 61 | B66: =IF(D66=0," ",VLOOKUP(D66,'Список рабочих'!A$1:B$240,2,0)) ->  | C66: =IF(D66=0," ",VLOOKUP(D66,'Список рабочих'!A$1:C$202,3,0)) ->  | AJ66: 0 | AK66: 0 | AL66: 0 | AM66: 0 | AN66: 0
A67: 62 | B67: =IF(D67=0," ",VLOOKUP(D67,'Список рабочих'!A$1:B$240,2,0)) ->  | C67: =IF(D67=0," ",VLOOKUP(D67,'Список рабочих'!A$1:C$202,3,0)) ->  | AJ67: 0 | AK67: 0 | AL67: 0 | AM67: 0 | AN67: 0
A68: =SUM(A67+1) -> 63 | B68: =IF(D68=0," ",VLOOKUP(D68,'Список рабочих'!A$1:B$240,2,0)) ->  | C68: =IF(D68=0," ",VLOOKUP(D68,'Список рабочих'!A$1:C$202,3,0)) ->  | AJ68: 0 | AK68: 0 | AL68: 0 | AM68: 0 | AN68: 0
A69: 64 | B69: =IF(D69=0," ",VLOOKUP(D69,'Список рабочих'!A$1:B$240,2,0)) ->  | C69: =IF(D69=0," ",VLOOKUP(D69,'Список рабочих'!A$1:C$202,3,0)) ->  | AJ69: 0 | AK69: 0 | AL69: 0 | AM69: 0 | AN69: 0
A70: 65 | B70: =IF(D70=0," ",VLOOKUP(D70,'Список рабочих'!A$1:B$240,2,0)) ->  | C70: =IF(D70=0," ",VLOOKUP(D70,'Список рабочих'!A$1:C$202,3,0)) ->  | AJ70: 0 | AK70: 0 | AL70: 0 | AM70: 0 | AN70: 0
A71: 66 | B71: =IF(D71=0," ",VLOOKUP(D71,'Список рабочих'!A$1:B$240,2,0)) ->  | C71: =IF(D71=0," ",VLOOKUP(D71,'Список рабочих'!A$1:C$202,3,0)) ->  | AJ71: 0 | AK71: 0 | AL71: 0 | AM71: 0 | AN71: 0
A72: 67 | B72: =IF(D72=0," ",VLOOKUP(D72,'Список рабочих'!A$1:B$240,2,0)) ->  | C72: =IF(D72=0," ",VLOOKUP(D72,'Список рабочих'!A$1:C$202,3,0)) ->  | AJ72: 0 | AK72: 0 | AL72: 0 | AM72: 0 | AN72: 0
A73: 68 | B73: =IF(D73=0," ",VLOOKUP(D73,'Список рабочих'!A$1:B$240,2,0)) ->  | C73: =IF(D73=0," ",VLOOKUP(D73,'Список рабочих'!A$1:C$202,3,0)) ->  | AJ73: 0 | AK73: 0 | AL73: 0 | AM73: 0 | AN73: 0
A74: 69 | B74: =IF(D74=0," ",VLOOKUP(D74,'Список рабочих'!A$1:B$240,2,0)) ->  | C74: =IF(D74=0," ",VLOOKUP(D74,'Список рабочих'!A$1:C$202,3,0)) ->  | AJ74: 0 | AK74: 0 | AL74: 0 | AM74: 0 | AN74: 0
A75: 70 | B75: =IF(D75=0," ",VLOOKUP(D75,'Список рабочих'!A$1:B$240,2,0)) ->  | C75: =IF(D75=0," ",VLOOKUP(D75,'Список рабочих'!A$1:C$202,3,0)) ->  | AJ75: 0 | AK75: 0 | AL75: 0 | AM75: 0 | AN75: 0
A76: 71 | B76: =IF(D76=0," ",VLOOKUP(D76,'Список рабочих'!A$1:B$240,2,0)) ->  | C76: =IF(D76=0," ",VLOOKUP(D76,'Список рабочих'!A$1:C$202,3,0)) ->  | AJ76: 0 | AK76: 0 | AL76: 0 | AM76: 0 | AN76: 0
A77: 72 | B77: =IF(D77=0," ",VLOOKUP(D77,'Список рабочих'!A$1:B$240,2,0)) ->  | C77: =IF(D77=0," ",VLOOKUP(D77,'Список рабочих'!A$1:C$202,3,0)) ->  | AJ77: 0 | AK77: 0 | AL77: 0 | AM77: 0 | AN77: 0
A78: 73 | B78: =IF(D78=0," ",VLOOKUP(D78,'Список рабочих'!A$1:B$240,2,0)) ->  | C78: =IF(D78=0," ",VLOOKUP(D78,'Список рабочих'!A$1:C$202,3,0)) ->  | AJ78: 0 | AK78: 0 | AL78: 0 | AM78: 0 | AN78: 0
A79: 74 | B79: =IF(D79=0," ",VLOOKUP(D79,'Список рабочих'!A$1:B$240,2,0)) ->  | C79: =IF(D79=0," ",VLOOKUP(D79,'Список рабочих'!A$1:C$202,3,0)) ->  | AJ79: 0 | AK79: 0 | AL79: 0 | AM79: 0 | AN79: 0
A80: 75 | B80: =IF(D80=0," ",VLOOKUP(D80,'Список рабочих'!A$1:B$240,2,0)) ->  | C80: =IF(D80=0," ",VLOOKUP(D80,'Список рабочих'!A$1:C$202,3,0)) ->  | AJ80: 0 | AK80: 0 | AL80: 0 | AM80: 0 | AN80: 0
A81: 76 | B81: =IF(D81=0," ",VLOOKUP(D81,'Список рабочих'!A$1:B$240,2,0)) ->  | C81: =IF(D81=0," ",VLOOKUP(D81,'Список рабочих'!A$1:C$202,3,0)) ->  | AJ81: 0 | AK81: 0 | AL81: 0 | AM81: 0 | AN81: 0
A82: 77 | B82: =IF(D82=0," ",VLOOKUP(D82,'Список рабочих'!A$1:B$240,2,0)) ->  | C82: =IF(D82=0," ",VLOOKUP(D82,'Список рабочих'!A$1:C$202,3,0)) ->  | AJ82: 0 | AK82: 0 | AL82: 0 | AM82: 0 | AN82: 0
A83: 78 | B83: =IF(D83=0," ",VLOOKUP(D83,'Список рабочих'!A$1:B$240,2,0)) ->  | C83: =IF(D83=0," ",VLOOKUP(D83,'Список рабочих'!A$1:C$202,3,0)) ->  | AJ83: 0 | AK83: 0 | AL83: 0 | AM83: 0 | AN83: 0
B84: =IF(D84=0," ",VLOOKUP(D84,'Список рабочих'!A$1:B$240,2,0)) ->  | C84: =IF(D84=0," ",VLOOKUP(D84,'Список рабочих'!A$1:C$202,3,0)) ->  | AJ84: 0 | AK84: 0 | AL84: 0 | AM84: 0 | AN84: 0
B85: =IF(D85=0," ",VLOOKUP(D85,'Список рабочих'!A$1:B$240,2,0)) ->  | C85: =IF(D85=0," ",VLOOKUP(D85,'Список рабочих'!A$1:C$202,3,0)) ->  | AJ85: 0 | AK85: 0 | AL85: 0 | AM85: 0 | AN85: 0
B86: =IF(D86=0," ",VLOOKUP(D86,'Список рабочих'!A$1:B$240,2,0)) ->  | C86: =IF(D86=0," ",VLOOKUP(D86,'Список рабочих'!A$1:C$202,3,0)) ->  | AJ86: 0 | AK86: 0 | AL86: 0 | AM86: 0 | AN86: 0
B87: =IF(D87=0," ",VLOOKUP(D87,'Список рабочих'!A$1:B$240,2,0)) ->  | C87: =IF(D87=0," ",VLOOKUP(D87,'Список рабочих'!A$1:C$202,3,0)) ->  | AJ87: 0 | AK87: 0 | AL87: 0 | AM87: 0 | AN87: 0
B88: =IF(D88=0," ",VLOOKUP(D88,'Список рабочих'!A$1:B$240,2,0)) ->  | C88: =IF(D88=0," ",VLOOKUP(D88,'Список рабочих'!A$1:C$202,3,0)) ->  | AJ88: 0 | AK88: 0 | AL88: 0 | AM88: 0 | AN88: 0
B89: =IF(D89=0," ",VLOOKUP(D89,'Список рабочих'!A$1:B$240,2,0)) ->  | C89: =IF(D89=0," ",VLOOKUP(D89,'Список рабочих'!A$1:C$202,3,0)) ->  | AJ89: 0 | AK89: 0 | AL89: 0 | AM89: 0 | AN89: 0
B90: =IF(D90=0," ",VLOOKUP(D90,'Список рабочих'!A$1:B$240,2,0)) ->  | C90: =IF(D90=0," ",VLOOKUP(D90,'Список рабочих'!A$1:C$202,3,0)) ->  | AJ90: 0 | AK90: 0 | AL90: 0 | AM90: 0 | AN90: 0
B91: =IF(D91=0," ",VLOOKUP(D91,'Список рабочих'!A$1:B$240,2,0)) ->  | C91: =IF(D91=0," ",VLOOKUP(D91,'Список рабочих'!A$1:C$202,3,0)) ->  | AJ91: 0 | AK91: 0 | AL91: 0 | AM91: 0 | AN91: 0
B92: =IF(D92=0," ",VLOOKUP(D92,'Список рабочих'!A$1:B$240,2,0)) ->  | C92: =IF(D92=0," ",VLOOKUP(D92,'Список рабочих'!A$1:C$202,3,0)) ->  | AJ92: 0 | AK92: 0 | AL92: 0 | AM92: 0 | AN92: 0
B93: =IF(D93=0," ",VLOOKUP(D93,'Список рабочих'!A$1:B$240,2,0)) ->  | C93: =IF(D93=0," ",VLOOKUP(D93,'Список рабочих'!A$1:C$202,3,0)) ->  | AJ93: 0 | AK93: 0 | AL93: 0 | AM93: 0 | AN93: 0
B94: =IF(D94=0," ",VLOOKUP(D94,'Список рабочих'!A$1:B$240,2,0)) -> Токарь С. Е. | D94: 08273 | M94: 8 | N94: 8 | O94: 8 | P94: 8 | AJ94: 32 | AK94: 0 | AL94: 4 | AM94: 32 | AN94: 4
A95: 1 | B95: =IF(D95=0," ",VLOOKUP(D95,'Список рабочих'!A$1:B$240,2,0)) -> Гавриш В. В. | D95: 08214 | M95: 8 | N95: 8 | O95: 8 | P95: 8 | AJ95: 32 | AK95: 0 | AL95: 4 | AM95: 32 | AN95: 4
A96: 2 | B96: =IF(D96=0," ",VLOOKUP(D96,'Список рабочих'!A$1:B$240,2,0)) -> Кормачев К. В. | D96: 08309 | M96: 8 | N96: 8 | O96: 8 | P96: 8 | AJ96: 32 | AK96: 0 | AL96: 4 | AM96: 32 | AN96: 4
A97: 3 | B97: =IF(D97=0," ",VLOOKUP(D97,'Список рабочих'!A$1:B$240,2,0)) -> Федорин А. В. | D97: 08249 | AJ97: 0 | AK97: 0 | AL97: 0 | AM97: 0 | AN97: 0
A98: 4 | B98: =IF(D98=0," ",VLOOKUP(D98,'Список рабочих'!A$1:B$240,2,0)) -> Ермаков В. В. | D98: 08001 | AJ98: 0 | AK98: 0 | AL98: 0 | AM98: 0 | AN98: 0
A99: 5 | B99: =IF(D99=0," ",VLOOKUP(D99,'Список рабочих'!A$1:B$240,2,0)) ->  | AJ99: 0 | AK99: 0 | AL99: 0 | AM99: 0 | AN99: 0
A100: 6 | B100: =IF(D100=0," ",VLOOKUP(D100,'Список рабочих'!A$1:B$240,2,0)) ->  | AJ100: 0 | AK100: 0 | AL100: 0 | AM100: 0 | AN100: 0
A101: 7 | B101: =IF(D101=0," ",VLOOKUP(D101,'Список рабочих'!A$1:B$240,2,0)) ->  | AJ101: 0 | AK101: 0 | AL101: 0 | AM101: 0 | AN101: 0
A102: 8 | B102: =IF(D102=0," ",VLOOKUP(D102,'Список рабочих'!A$1:B$240,2,0)) ->  | AJ102: 0 | AK102: 0 | AL102: 0 | AM102: 0 | AN102: 0 | AO102: =IF(AQ102=0," ",VLOOKUP(AQ102,'Список рабочих'!A$1:B$162,2,0)) ->  | AP102: =IF(AQ102=0," ",VLOOKUP(AQ102,'Список рабочих'!A$1:C$202,3,0)) ->  | AR102: =IF(AQ102=0," ",VLOOKUP(AQ102,#REF!,36,0)) -> 
AO103: =IF(AQ103=0," ",VLOOKUP(AQ103,'Список рабочих'!A$1:B$162,2,0)) ->  | AP103: =IF(AQ103=0," ",VLOOKUP(AQ103,'Список рабочих'!A$1:C$202,3,0)) ->  | AR103: =IF(AQ103=0," ",VLOOKUP(AQ103,#REF!,36,0)) -> 
A104: 1 | B104: 2 | C104: 3 | D104: 4 | E104: 5 | F104: 6 | G104: 7 | H104: 8 | I104: 9 | J104: 10 | K104: 11 | L104: 12 | M104: 13 | N104: 14 | O104: 15 | P104: 16 | Q104: 17 | R104: 18 | S104: 19 | T104: 20 | U104: 21 | V104: 22 | W104: 23 | X104: 24 | Y104: 25 | Z104: 26 | AA104: 27 | AB104: 28 | AC104: 29 | AD104: 30 | AE104: 31 | AF104: 32 | AG104: 33 | AH104: 34 | AI104: 35 | AJ104: 36 | AK104: 37 | AL104: 38 | AM104: 39 | AN104: 40 | AO104: =IF(AQ104=0," ",VLOOKUP(AQ104,'Список рабочих'!A$1:B$162,2,0)) ->  | AP104: =IF(AQ104=0," ",VLOOKUP(AQ104,'Список рабочих'!A$1:C$202,3,0)) ->  | AR104: =IF(AQ104=0," ",VLOOKUP(AQ104,#REF!,36,0)) -> 
AO105: =IF(AQ105=0," ",VLOOKUP(AQ105,'Список рабочих'!A$1:B$162,2,0)) ->  | AP105: =IF(AQ105=0," ",VLOOKUP(AQ105,'Список рабочих'!A$1:C$202,3,0)) ->  | AR105: =IF(AQ105=0," ",VLOOKUP(AQ105,#REF!,36,0)) -> 
A196: Табель отработанного времени студентов на заказе 529 за ЯНВАРЬ 2024г.
A198: № | B198: Ф. И. О. | C198: разряд | D198: Таб. | E198: отработанное время. Январь | AK198: вых. | AM198: Итого | AN198: итого
D199: номер | E199: 1 | F199: 2 | G199: 3 | H199: 4 | I199: 5 | J199: 6 | K199: 7 | L199: 8 | M199: 9 | N199: 10 | O199: 11 | P199: 12 | Q199: 13 | R199: 14 | S199: 15 | T199: 16 | U199: 17 | V199: 18 | W199: 19 | X199: 20 | Y199: 21 | Z199: 22 | AA199: 23 | AB199: 24 | AC199: 25 | AD199: 26 | AE199: 27 | AF199: 28 | AG199: 29 | AH199: 30 | AI199: 31 | AJ199: часы | AK199: Дни | AL199: Молоко | AM199: часы | AN199: дни
A200: 1 | B200: Коннов | M200: 7.2 | N200: 7.2 | O200: 7.2 | P200: 7.2 | AJ200: =SUM(M200:P200,S200:W200,Z200:AD200,AG200:AI200) -> 28.8 | AK200: =SUM(E200:L200,Q200:R200,X200:Y200,AE200:AF200) -> 0 | AL200: =COUNT(M200:P200,S200:W200,Z200:AD200,AG200:AI200) -> 4 | AM200: =SUM(AK200,AJ200) -> 28.8 | AN200: =COUNT(E200:AI200) -> 4
A201: 2 | B201: Антипов | M201: 7.2 | N201: 7.2 | O201: 7.2 | P201: 7.2 | AJ201: =SUM(M201:P201,S201:W201,Z201:AD201,AG201:AI201) -> 28.8 | AK201: =SUM(E201:L201,Q201:R201,X201:Y201,AE201:AF201) -> 0 | AL201: =COUNT(M201:P201,S201:W201,Z201:AD201,AG201:AI201) -> 4 | AM201: 28.8 | AN201: =COUNT(E201:AI201) -> 4
A202: 3 | B202: Садков | M202: с/с | N202: 7.2 | O202: 7.2 | P202: с/с | S202: с/с | AJ202: 14.4 | AK202: 0 | AL202: 2 | AM202: =SUM(AK202,AJ202) -> 14.4 | AN202: 2
A203: 4 | B203: Таразевич | M203: 7.2 | N203: 7.2 | O203: 7.2 | P203: 7.2 | AJ203: 28.8 | AK203: 0 | AL203: 4 | AM203: =SUM(AK203,AJ203) -> 28.8 | AN203: 4
A204: 5 | B204: Бондаренко | M204: 7.2 | N204: 7.2 | O204: 7.2 | P204: 7.2 | AJ204: 28.8 | AK204: 0 | AL204: 4 | AM204: 28.8 | AN204: 4
A205: 6 | B205: Ковалев | M205: 7.2 | N205: 7.2 | O205: 7.2 | P205: 7.2 | AJ205: 28.8 | AK205: 0 | AL205: 4 | AM205: 28.8 | AN205: 4
A206: 7 | B206: Щелчков | AJ206: 0 | AK206: 0 | AL206: 0 | AM206: 0 | AN206: 0
A207: 8 | B207: Лобадюк | M207: 7.2 | N207: 7.2 | O207: 7.2 | P207: 7.2 | AJ207: 28.8 | AK207: 0 | AL207: 4 | AM207: 28.8 | AN207: 4
A208: 9 | B208: Веселов | M208: 7.2 | N208: 7.2 | O208: 7.2 | P208: 7.2 | AJ208: 28.8 | AK208: 0 | AL208: 4 | AM208: 28.8 | AN208: 4
A209: 10 | AJ209: 0 | AK209: 0 | AL209: 0 | AM209: 0 | AN209: 0
A210: 11 | AJ210: 0 | AK210: 0 | AL210: 0 | AM210: 0 | AN210: 0
A211: 12 | AJ211: 0 | AK211: 0 | AL211: 0 | AM211: 0 | AN211: 0
AJ212: =SUM(AJ200:AJ211) -> 216 | AN212: =SUM(AN200:AN211) -> 30
C216: Ст. мастер | AH216: Гавриш В. В.

Sheet Табель-расчёт
A1: Бригадный табель-расчёт | AN1: Ма- кет | AP1: В. з. | AR1: Цех | AT1: Уч. | AV1: По бригаде | BA1: Бр. № | BD1: Пр. | BF1: Мес. | BH1: Т. с. | BJ1: Коэффициенты распределения | BY1: % прем. | CD1: Разница
BJ2: Нормо-час | BQ2: сумма | BU2: =CD34 ->  | BY2: =SUM(BU4) -> 3941.14 | CD2: =BU2-CD34 -> 
A3: за | O3: январь | U3: 20 | X3: 24 | Z3: г. | AR3: 9 | AT3: 1 | BA3: И Т О Г О | BJ3: Фактич. отр. вр. | BN3: Тарифный заработок | BU3: Сумма премии | BY3: Сдельная зарплата | CF3: Коэф. расчета | CG3: чел. в бригаде | CI3: Дата начала работ | CJ3: 2024-01-01
A4: Фамилия бригадира : | S4: ЭМР. Заказ 529 | BJ4: =SUM(AT8:AW33) -> 64.8 | BN4: =SUM(BJ8:BL33) -> 11898.86 | BU4: =SUM(BS8:BX33) -> 3941.14 | BY4: =CD34 ->  | CD4: =SUM(BF8:BG33)-CG4 -> 2.53 | CE4: =SUM(CD8-BJ8) -> 9575.28 | CI4: Дата окончан. работ | CJ4: 2024-01-31
A5: Фамилия, имя, отчество | O5: Отработано часов по числам месяца | AX5: Состав бригады | BH5: За час | BJ5: За отраб. время | BM5: Нор- часы | BO5: Факт. отраб. | BS5: В. о. | BV5: 01 | BY5: В.о. | CG5: =CI34/CG4 ->  | CI5: Шаг | CJ5: 1
BY6: зак. (ст)
O7: =CJ3 -> 2024-01-01 | P7: =IF(O7<=$CJ$4,O7+$CJ$5,"") -> 2024-01-02 | Q7: =IF(O7<=$CJ$4,P7+$CJ$5,"") -> 2024-01-03 | R7: =IF(O7<=$CJ$4,Q7+$CJ$5,"") -> 2024-01-04 | S7: =IF(O7<=$CJ$4,R7+$CJ$5,"") -> 2024-01-05 | T7: =IF(O7<=$CJ$4,S7+$CJ$5,"") -> 2024-01-06 | U7: =IF(O7<=$CJ$4,T7+$CJ$5,"") -> 2024-01-07 | V7: =IF(S7<=$CJ$4,U7+$CJ$5,"") -> 2024-01-08 | W7: =IF(V7<=$CJ$4,V7+$CJ$5,"") -> 2024-01-09 | X7: =IF(U7<=$CJ$4,W7+$CJ$5,"") -> 2024-01-10 | Y7: =IF(X7<=$CJ$4,X7+$CJ$5,"") -> 2024-01-11 | Z7: =IF(W7<=$CJ$4,Y7+$CJ$5,"") -> 2024-01-12 | AA7: =IF(Z7<=$CJ$4,Z7+$CJ$5,"") -> 2024-01-13 | AB7: =IF(Y7<=$CJ$4,AA7+$CJ$5,"") -> 2024-01-14 | AC7: =IF(AB7<=$CJ$4,AB7+$CJ$5,"") -> 2024-01-15 | AD7: =IF(AA7<=$CJ$4,AC7+$CJ$5,"") -> 2024-01-16 | AE7: =IF(AD7<=$CJ$4,AD7+$CJ$5,"") -> 2024-01-17 | AF7: =IF(AC7<=$CJ$4,AE7+$CJ$5,"") -> 2024-01-18 | AG7: =IF(AF7<=$CJ$4,AF7+$CJ$5,"") -> 2024-01-19 | AH7: =IF(AE7<=$CJ$4,AG7+$CJ$5,"") -> 2024-01-20 | AI7: =IF(AH7<=$CJ$4,AH7+$CJ$5,"") -> 2024-01-21 | AJ7: =IF(AG7<=$CJ$4,AI7+$CJ$5,"") -> 2024-01-22 | AK7: =IF(AJ7<=$CJ$4,AJ7+$CJ$5,"") -> 2024-01-23 | AL7: =IF(AI7<=$CJ$4,AK7+$CJ$5,"") -> 2024-01-24 | AM7: =IF(AL7<=$CJ$4,AL7+$CJ$5,"") -> 2024-01-25 | AN7: =IF(AK7<=$CJ$4,AM7+$CJ$5,"") -> 2024-01-26 | AO7: =IF(AN7<=$CJ$4,AN7+$CJ$5,"") -> 2024-01-27 | AP7: =IF(AM7<=$CJ$4,AO7+$CJ$5,"") -> 2024-01-28 | AQ7: =IF(AP7<$CJ$4,AP7+$CJ$5,"") -> 2024-01-29 | AR7: =IF(AQ7<$CJ$4,AQ7+$CJ$5,"") -> 2024-01-30 | AS7: =IF(AR7<$CJ$4,AR7+$CJ$5,"") -> 2024-01-31 | AT7: ИТОГО | AX7: катег. | AZ7: таб. № | BD7: разр. | BF7: КТУ | BO7: д н и | BQ7: ч а с | BS7: ПРЕМИЯ | BY7: СУММА | CC7: =текст(O7;"ДД.ММ.ГГ") | CD7: Хотелось бы… | CE7: Разница | CF7: Тариф/зак | CG7: Тариф/цех | CH7: Распред. приработка | CI7: Расч. КТУ | CJ7: Расч. ККТ
A8: =IF(AZ8=0," ",VLOOKUP(AZ8,'Список рабочих'!A$1:B$260,2,0)) -> Байдин А. А. | N8: ур. св. | O8: =INDEX(Январь!$A:$AN,MATCH($AZ8,Январь!$D:$D,0),MATCH(VALUE(ExtractDate(O$7)),Январь!$A$2:$AI$2,0)) -> 0 | P8: =INDEX(Январь!$A:$AN,MATCH($AZ8,Январь!$D:$D,0),MATCH(VALUE(ExtractDate(P$7)),Январь!$A$2:$AI$2,0)) -> 0 | Q8: =INDEX(Январь!$A:$AN,MATCH($AZ8,Январь!$D:$D,0),MATCH(VALUE(ExtractDate(Q$7)),Январь!$A$2:$AI$2,0)) -> 0 | R8: =INDEX(Январь!$A:$AN,MATCH($AZ8,Январь!$D:$D,0),MATCH(VALUE(ExtractDate(R$7)),Январь!$A$2:$AI$2,0)) -> 0 | S8: =INDEX(Январь!$A:$AN,MATCH($AZ8,Январь!$D:$D,0),MATCH(VALUE(ExtractDate(S$7)),Январь!$A$2:$AI$2,0)) -> 0 | T8: =INDEX(Январь!$A:$AN,MATCH($AZ8,Январь!$D:$D,0),MATCH(VALUE(ExtractDate(T$7)),Январь!$A$2:$AI$2,0)) -> 0 | U8: =INDEX(Январь!$A:$AN,MATCH($AZ8,Январь!$D:$D,0),MATCH(VALUE(ExtractDate(U$7)),Январь!$A$2:$AI$2,0)) -> 0 | V8: =INDEX(Январь!$A:$AN,MATCH($AZ8,Январь!$D:$D,0),MATCH(VALUE(ExtractDate(V$7)),Январь!$A$2:$AI$2,0)) -> 0 | W8: =INDEX(Январь!$A:$AN,MATCH($AZ8,Январь!$D:$D,0),MATCH(VALUE(ExtractDate(W$7)),Январь!$A$2:$AI$2,0)) -> 7.2 | X8: =INDEX(Январь!$A:$AN,MATCH($AZ8,Январь!$D:$D,0),MATCH(VALUE(ExtractDate(X$7)),Январь!$A$2:$AI$2,0)) -> 7.2 | Y8: =INDEX(Январь!$A:$AN,MATCH($AZ8,Январь!$D:$D,0),MATCH(VALUE(ExtractDate(Y$7)),Январь!$A$2:$AI$2,0)) -> 7.2 | Z8: =INDEX(Январь!$A:$AN,MATCH($AZ8,Январь!$D:$D,0),MATCH(VALUE(ExtractDate(Z$7)),Январь!$A$2:$AI$2,0)) -> 7.2 | AA8: =INDEX(Январь!$A:$AN,MATCH($AZ8,Январь!$D:$D,0),MATCH(VALUE(ExtractDate(AA$7)),Январь!$A$2:$AI$2,0)) -> 0 | AB8: =INDEX(Январь!$A:$AN,MATCH($AZ8,Январь!$D:$D,0),MATCH(VALUE(ExtractDate(AB$7)),Январь!$A$2:$AI$2,0)) -> 0 | AC8: =INDEX(Январь!$A:$AN,MATCH($AZ8,Январь!$D:$D,0),MATCH(VALUE(ExtractDate(AC$7)),Январь!$A$2:$AI$2,0)) -> 7.2 | AD8: =INDEX(Январь!$A:$AN,MATCH($AZ8,Январь!$D:$D,0),MATCH(VALUE(ExtractDate(AD$7)),Январь!$A$2:$AI$2,0)) -> 0 | AE8: =INDEX(Январь!$A:$AN,MATCH($AZ8,Январь!$D:$D,0),MATCH(VALUE(ExtractDate(AE$7)),Январь!$A$2:$AI$2,0)) -> 0 | AF8: =INDEX(Январь!$A:$AN,MATCH($AZ8,Январь!$D:$D,0),MATCH(VALUE(ExtractDate(AF$7)),Январь!$A$2:$AI$2,0)) -> 0 | AG8: =INDEX(Январь!$A:$AN,MATCH($AZ8,Январь!$D:$D,0),MATCH(VALUE(ExtractDate(AG$7)),Январь!$A$2:$AI$2,0)) -> 0 | AH8: =INDEX(Январь!$A:$AN,MATCH($AZ8,Январь!$D:$D,0),MATCH(VALUE(ExtractDate(AH$7)),Январь!$A$2:$AI$2,0)) -> 0 | AI8: =INDEX(Январь!$A:$AN,MATCH($AZ8,Январь!$D:$D,0),MATCH(VALUE(ExtractDate(AI$7)),Январь!$A$2:$AI$2,0)) -> 0 | AJ8: =INDEX(Январь!$A:$AN,MATCH($AZ8,Январь!$D:$D,0),MATCH(VALUE(ExtractDate(AJ$7)),Январь!$A$2:$AI$2,0)) -> 0 | AK8: =INDEX(Январь!$A:$AN,MATCH($AZ8,Январь!$D:$D,0),MATCH(VALUE(ExtractDate(AK$7)),Январь!$A$2:$AI$2,0)) -> 0 | AL8: =INDEX(Январь!$A:$AN,MATCH($AZ8,Январь!$D:$D,0),MATCH(VALUE(ExtractDate(AL$7)),Январь!$A$2:$AI$2,0)) -> 0 | AM8: =INDEX(Январь!$A:$AN,MATCH($AZ8,Январь!$D:$D,0),MATCH(VALUE(ExtractDate(AM$7)),Январь!$A$2:$AI$2,0)) -> 0 | AN8: =INDEX(Январь!$A:$AN,MATCH($AZ8,Январь!$D:$D,0),MATCH(VALUE(ExtractDate(AN$7)),Январь!$A$2:$AI$2,0)) -> 0 | AO8: =INDEX(Январь!$A:$AN,MATCH($AZ8,Январь!$D:$D,0),MATCH(VALUE(ExtractDate(AO$7)),Январь!$A$2:$AI$2,0)) -> 0 | AP8: =INDEX(Январь!$A:$AN,MATCH($AZ8,Январь!$D:$D,0),MATCH(VALUE(ExtractDate(AP$7)),Январь!$A$2:$AI$2,0)) -> 0 | AQ8: =INDEX(Январь!$A:$AN,MATCH($AZ8,Январь!$D:$D,0),MATCH(VALUE(ExtractDate(AQ$7)),Январь!$A$2:$AI$2,0)) -> 0 | AR8: =INDEX(Январь!$A:$AN,MATCH($AZ8,Январь!$D:$D,0),MATCH(VALUE(ExtractDate(AR$7)),Январь!$A$2:$AI$2,0)) -> 0 | AS8: =INDEX(Январь!$A:$AN,MATCH($AZ8,Январь!$D:$D,0),MATCH(VALUE(ExtractDate(AS$7)),Январь!$A$2:$AI$2,0)) -> 0 | AT8: =SUM(O8:AS8) -> 36 | AZ8: 006167 | BD8: =IF(AZ8=0," ",VLOOKUP(AZ8,'Список рабочих'!A$1:C$260,3,0)) -> 3 | BF8: =IF(BJ8=" "," ",ROUND(BY8/BJ8,2)) -> 2.53 | BH8: =IF(AX8=0,CF8,CG8) -> 174.02 | BJ8: =IF(AT8=0," ",ROUND(AT8*BH8,2)) -> 6264.72 | BO8: =IF(AT8=0," ",(31-COUNTBLANK(O8:AS8))) -> 31 | BQ8: =IF(AT8=0," ",AT8) -> 36 | BS8: =IF(BJ8=" "," ",CD8-BJ8) -> 9575.28 | BY8: =IF(BJ8=" "," ",BJ8*CJ8) -> 15840 | CC8: =ExtractDate(O7) -> 1 | CD8: =SUM(440*BQ8) -> 15840 | CE8: =SUM(BS8) -> 9575.28 | CF8: =IF(BD8=0," ",IF(BD8=1,'[1]Тарифные ставки'!B$2,IF(BD8=2,'[1]Тарифные ставки'!B$3,IF(BD8=3,'[1]Тарифные ставки'!B$4,IF(BD8=4,'[1]Тарифные ставки'!B$5,IF(BD8=5,'[1]Тарифные ставки'!B$6,IF(BD8=6,'[1]Тарифные ставки'!B$7,"-"))))))) -> 174.02 | CG8: =IF(BD8=0," ",IF(BD8=1,'[1]Тарифные ставки'!C$2,IF(BD8=2,'[1]Тарифные ставки'!C$3,IF(BD8=3,'[1]Тарифные ставки'!C$4,IF(BD8=4,'[1]Тарифные ставки'!C$5,IF(BD8=5,'[1]Тарифные ставки'!C$6,IF(BD8=6,'[1]Тарифные ставки'!C$7,"-"))))))) -> 144.99 | CH8: =IF(BJ8=" ",0,ROUND(BF8*BJ8,2)) -> 15849.74 | CI8: =IF(BJ8=" ",0,(CD8-BJ8)/BJ8/CF$4) ->  | CJ8: =IF(BJ8=" ",0,CD8/BJ8) -> 2.528445006
A9: =IF(AZ9=0," ",VLOOKUP(AZ9,'Список рабочих'!A$1:B$260,2,0)) ->  | N9: ур. св. | AT9: =SUM(O9:AS9) -> 0 | BD9: =IF(AZ9=0," ",VLOOKUP(AZ9,'Список рабочих'!A$1:C$260,3,0)) ->  | BF9: =IF(BJ9=" "," ",ROUND(BY9/BJ9,2)) ->  | BH9: =IF(AX9=0,CF9,CG9) -> - | BS9: =IF(BJ9=" "," ",CD9-BJ9) ->  | BY9: =IF(BJ9=" "," ",BJ9*CJ9) ->  | CD9: =SUM(470*BQ9) ->  | CE9: =SUM(BS9) -> 0 | CF9: =IF(BD9=0," ",IF(BD9=1,'[1]Тарифные ставки'!B$2,IF(BD9=2,'[1]Тарифные ставки'!B$3,IF(BD9=3,'[1]Тарифные ставки'!B$4,IF(BD9=4,'[1]Тарифные ставки'!B$5,IF(BD9=5,'[1]Тарифные ставки'!B$6,IF(BD9=6,'[1]Тарифные ставки'!B$7,"-"))))))) -> - | CG9: =IF(BD9=0," ",IF(BD9=1,'[1]Тарифные ставки'!C$2,IF(BD9=2,'[1]Тарифные ставки'!C$3,IF(BD9=3,'[1]Тарифные ставки'!C$4,IF(BD9=4,'[1]Тарифные ставки'!C$5,IF(BD9=5,'[1]Тарифные ставки'!C$6,IF(BD9=6,'[1]Тарифные ставки'!C$7,"-"))))))) -> - | CH9: 0 | CI9: 0 | CJ9: 0
A10: Вараксин П. А. | N10: ур. св. | O10: =INDEX(Январь!$A:$AN,MATCH($AZ10,Январь!$D:$D,0),MATCH(VALUE(ExtractDate(O$7)),Январь!$A$2:$AI$2,0)) -> 0 | P10: =INDEX(Январь!$A:$AN,MATCH($AZ10,Январь!$D:$D,0),MATCH(VALUE(ExtractDate(P$7)),Январь!$A$2:$AI$2,0)) -> 0 | Q10: =INDEX(Январь!$A:$AN,MATCH($AZ10,Январь!$D:$D,0),MATCH(VALUE(ExtractDate(Q$7)),Январь!$A$2:$AI$2,0)) -> 0 | R10: =INDEX(Январь!$A:$AN,MATCH($AZ10,Январь!$D:$D,0),MATCH(VALUE(ExtractDate(R$7)),Январь!$A$2:$AI$2,0)) -> 0 | S10: =INDEX(Январь!$A:$AN,MATCH($AZ10,Январь!$D:$D,0),MATCH(VALUE(ExtractDate(S$7)),Январь!$A$2:$AI$2,0)) -> 0 | T10: =INDEX(Январь!$A:$AN,MATCH($AZ10,Январь!$D:$D,0),MATCH(VALUE(ExtractDate(T$7)),Январь!$A$2:$AI$2,0)) -> 0 | U10: =INDEX(Январь!$A:$AN,MATCH($AZ10,Январь!$D:$D,0),MATCH(VALUE(ExtractDate(U$7)),Январь!$A$2:$AI$2,0)) -> 0 | V10: =INDEX(Январь!$A:$AN,MATCH($AZ10,Январь!$D:$D,0),MATCH(VALUE(ExtractDate(V$7)),Январь!$A$2:$AI$2,0)) -> 0 | W10: =INDEX(Январь!$A:$AN,MATCH($AZ10,Январь!$D:$D,0),MATCH(VALUE(ExtractDate(W$7)),Январь!$A$2:$AI$2,0)) -> 7.2 | X10: =INDEX(Январь!$A:$AN,MATCH($AZ10,Январь!$D:$D,0),MATCH(VALUE(ExtractDate(X$7)),Январь!$A$2:$AI$2,0)) -> 7.2 | Y10: =INDEX(Январь!$A:$AN,MATCH($AZ10,Январь!$D:$D,0),MATCH(VALUE(ExtractDate(Y$7)),Январь!$A$2:$AI$2,0)) -> 7.2 | Z10: =INDEX(Январь!$A:$AN,MATCH($AZ10,Январь!$D:$D,0),MATCH(VALUE(ExtractDate(Z$7)),Январь!$A$2:$AI$2,0)) -> 7.2 | AA10: =INDEX(Январь!$A:$AN,MATCH($AZ10,Январь!$D:$D,0),MATCH(VALUE(ExtractDate(AA$7)),Январь!$A$2:$AI$2,0)) -> 0 | AB10: =INDEX(Январь!$A:$AN,MATCH($AZ10,Январь!$D:$D,0),MATCH(VALUE(ExtractDate(AB$7)),Январь!$A$2:$AI$2,0)) -> 0 | AC10: =INDEX(Январь!$A:$AN,MATCH($AZ10,Январь!$D:$D,0),MATCH(VALUE(ExtractDate(AC$7)),Январь!$A$2:$AI$2,0)) -> 0 | AD10: =INDEX(Январь!$A:$AN,MATCH($AZ10,Январь!$D:$D,0),MATCH(VALUE(ExtractDate(AD$7)),Январь!$A$2:$AI$2,0)) -> 0 | AE10: =INDEX(Январь!$A:$AN,MATCH($AZ10,Январь!$D:$D,0),MATCH(VALUE(ExtractDate(AE$7)),Январь!$A$2:$AI$2,0)) -> 0 | AF10: =INDEX(Январь!$A:$AN,MATCH($AZ10,Январь!$D:$D,0),MATCH(VALUE(ExtractDate(AF$7)),Январь!$A$2:$AI$2,0)) -> 0 | AG10: =INDEX(Январь!$A:$AN,MATCH($AZ10,Январь!$D:$D,0),MATCH(VALUE(ExtractDate(AG$7)),Январь!$A$2:$AI$2,0)) -> 0 | AH10: =INDEX(Январь!$A:$AN,MATCH($AZ10,Январь!$D:$D,0),MATCH(VALUE(ExtractDate(AH$7)),Январь!$A$2:$AI$2,0)) -> 0 | AI10: =INDEX(Январь!$A:$AN,MATCH($AZ10,Январь!$D:$D,0),MATCH(VALUE(ExtractDate(AI$7)),Январь!$A$2:$AI$2,0)) -> 0 | AJ10: =INDEX(Январь!$A:$AN,MATCH($AZ10,Январь!$D:$D,0),MATCH(VALUE(ExtractDate(AJ$7)),Январь!$A$2:$AI$2,0)) -> 0 | AK10: =INDEX(Январь!$A:$AN,MATCH($AZ10,Январь!$D:$D,0),MATCH(VALUE(ExtractDate(AK$7)),Январь!$A$2:$AI$2,0)) -> 0 | AL10: =INDEX(Январь!$A:$AN,MATCH($AZ10,Январь!$D:$D,0),MATCH(VALUE(ExtractDate(AL$7)),Январь!$A$2:$AI$2,0)) -> 0 | AM10: =INDEX(Январь!$A:$AN,MATCH($AZ10,Январь!$D:$D,0),MATCH(VALUE(ExtractDate(AM$7)),Январь!$A$2:$AI$2,0)) -> 0 | AN10: =INDEX(Январь!$A:$AN,MATCH($AZ10,Январь!$D:$D,0),MATCH(VALUE(ExtractDate(AN$7)),Январь!$A$2:$AI$2,0)) -> 0 | AO10: =INDEX(Январь!$A:$AN,MATCH($AZ10,Январь!$D:$D,0),MATCH(VALUE(ExtractDate(AO$7)),Январь!$A$2:$AI$2,0)) -> 0 | AP10: =INDEX(Январь!$A:$AN,MATCH($AZ10,Январь!$D:$D,0),MATCH(VALUE(ExtractDate(AP$7)),Январь!$A$2:$AI$2,0)) -> 0 | AQ10: =INDEX(Январь!$A:$AN,MATCH($AZ10,Январь!$D:$D,0),MATCH(VALUE(ExtractDate(AQ$7)),Январь!$A$2:$AI$2,0)) -> 0 | AR10: =INDEX(Январь!$A:$AN,MATCH($AZ10,Январь!$D:$D,0),MATCH(VALUE(ExtractDate(AR$7)),Январь!$A$2:$AI$2,0)) -> 0 | AS10: =INDEX(Январь!$A:$AN,MATCH($AZ10,Январь!$D:$D,0),MATCH(VALUE(ExtractDate(AS$7)),Январь!$A$2:$AI$2,0)) -> 0 | AT10: =SUM(O10:AS10) -> 28.8 | AZ10: 08271 | BD10: =IF(AZ10=0," ",VLOOKUP(AZ10,'Список рабочих'!A$1:C$260,3,0)) -> 4 | BF10: 0 | BH10: 195.63 | BJ10: 5634.14 | BO10: 31 | BQ10: 28.8 | BS10: =IF(BJ10=" "," ",CD10-BJ10) -> -5634.14 | BY10: =IF(BJ10=" "," ",BJ10*CJ10) -> 0 | CE10: -5634.14 | CF10: =IF(BD10=0," ",IF(BD10=1,'[1]Тарифные ставки'!B$2,IF(BD10=2,'[1]Тарифные ставки'!B$3,IF(BD10=3,'[1]Тарифные ставки'!B$4,IF(BD10=4,'[1]Тарифные ставки'!B$5,IF(BD10=5,'[1]Тарифные ставки'!B$6,IF(BD10=6,'[1]Тарифные ставки'!B$7,"-"))))))) -> 195.63 | CG10: =IF(BD10=0," ",IF(BD10=1,'[1]Тарифные ставки'!C$2,IF(BD10=2,'[1]Тарифные ставки'!C$3,IF(BD10=3,'[1]Тарифные ставки'!C$4,IF(BD10=4,'[1]Тарифные ставки'!C$5,IF(BD10=5,'[1]Тарифные ставки'!C$6,IF(BD10=6,'[1]Тарифные ставки'!C$7,"-"))))))) -> 163 | CH10: 0 | CJ10: 0
A11: =IF(AZ11=0," ",VLOOKUP(AZ11,'Список рабочих'!A$1:B$260,2,0)) ->  | N11: ур. св. | AT11: 0 | BD11: =IF(AZ11=0," ",VLOOKUP(AZ11,'Список рабочих'!A$1:C$260,3,0)) ->  | BH11: - | BS11: =IF(BJ11=" "," ",CD11-BJ11) ->  | BY11: =IF(BJ11=" "," ",BJ11*CJ11) ->  | CE11: 0 | CF11: =IF(BD11=0," ",IF(BD11=1,'[1]Тарифные ставки'!B$2,IF(BD11=2,'[1]Тарифные ставки'!B$3,IF(BD11=3,'[1]Тарифные ставки'!B$4,IF(BD11=4,'[1]Тарифные ставки'!B$5,IF(BD11=5,'[1]Тарифные ставки'!B$6,IF(BD11=6,'[1]Тарифные ставки'!B$7,"-"))))))) -> - | CG11: =IF(BD11=0," ",IF(BD11=1,'[1]Тарифные ставки'!C$2,IF(BD11=2,'[1]Тарифные ставки'!C$3,IF(BD11=3,'[1]Тарифные ставки'!C$4,IF(BD11=4,'[1]Тарифные ставки'!C$5,IF(BD11=5,'[1]Тарифные ставки'!C$6,IF(BD11=6,'[1]Тарифные ставки'!C$7,"-"))))))) -> - | CH11: 0 | CI11: 0 | CJ11: 0
A12: =IF(AZ12=0," ",VLOOKUP(AZ12,'Список рабочих'!A$1:B$260,2,0)) ->  | N12: ур. св. | AT12: 0 | BD12: =IF(AZ12=0," ",VLOOKUP(AZ12,'Список рабочих'!A$1:C$260,3,0)) ->  | BH12: - | BS12: =IF(BJ12=" "," ",CD12-BJ12) ->  | BY12: =IF(BJ12=" "," ",BJ12*CJ12) ->  | CE12: 0 | CF12: =IF(BD12=0," ",IF(BD12=1,'[1]Тарифные ставки'!B$2,IF(BD12=2,'[1]Тарифные ставки'!B$3,IF(BD12=3,'[1]Тарифные ставки'!B$4,IF(BD12=4,'[1]Тарифные ставки'!B$5,IF(BD12=5,'[1]Тарифные ставки'!B$6,IF(BD12=6,'[1]Тарифные ставки'!B$7,"-"))))))) -> - | CG12: =IF(BD12=0," ",IF(BD12=1,'[1]Тарифные ставки'!C$2,IF(BD12=2,'[1]Тарифные ставки'!C$3,IF(BD12=3,'[1]Тарифные ставки'!C$4,IF(BD12=4,'[1]Тарифные ставки'!C$5,IF(BD12=5,'[1]Тарифные ставки'!C$6,IF(BD12=6,'[1]Тарифные ставки'!C$7,"-"))))))) -> - | CH12: 0 | CI12: 0 | CJ12: 0
A13: =IF(AZ13=0," ",VLOOKUP(AZ13,'Список рабочих'!A$1:B$260,2,0)) ->  | N13: ур. св. | AT13: 0 | BD13: =IF(AZ13=0," ",VLOOKUP(AZ13,'Список рабочих'!A$1:C$260,3,0)) ->  | BH13: - | BS13: =IF(BJ13=" "," ",CD13-BJ13) ->  | BY13: =IF(BJ13=" "," ",BJ13*CJ13) ->  | CE13: 0 | CF13: =IF(BD13=0," ",IF(BD13=1,'[1]Тарифные ставки'!B$2,IF(BD13=2,'[1]Тарифные ставки'!B$3,IF(BD13=3,'[1]Тарифные ставки'!B$4,IF(BD13=4,'[1]Тарифные ставки'!B$5,IF(BD13=5,'[1]Тарифные ставки'!B$6,IF(BD13=6,'[1]Тарифные ставки'!B$7,"-"))))))) -> - | CG13: =IF(BD13=0," ",IF(BD13=1,'[1]Тарифные ставки'!C$2,IF(BD13=2,'[1]Тарифные ставки'!C$3,IF(BD13=3,'[1]Тарифные ставки'!C$4,IF(BD13=4,'[1]Тарифные ставки'!C$5,IF(BD13=5,'[1]Тарифные ставки'!C$6,IF(BD13=6,'[1]Тарифные ставки'!C$7,"-"))))))) -> - | CH13: 0 | CI13: 0 | CJ13: 0
A14: =IF(AZ14=0," ",VLOOKUP(AZ14,'Список рабочих'!A$1:B$260,2,0)) ->  | N14: ур. св. | AT14: 0 | BD14: =IF(AZ14=0," ",VLOOKUP(AZ14,'Список рабочих'!A$1:C$260,3,0)) ->  | BH14: - | CE14: 0 | CF14: =IF(BD14=0," ",IF(BD14=1,'[1]Тарифные ставки'!B$2,IF(BD14=2,'[1]Тарифные ставки'!B$3,IF(BD14=3,'[1]Тарифные ставки'!B$4,IF(BD14=4,'[1]Тарифные ставки'!B$5,IF(BD14=5,'[1]Тарифные ставки'!B$6,IF(BD14=6,'[1]Тарифные ставки'!B$7,"-"))))))) -> - | CG14: =IF(BD14=0," ",IF(BD14=1,'[1]Тарифные ставки'!C$2,IF(BD14=2,'[1]Тарифные ставки'!C$3,IF(BD14=3,'[1]Тарифные ставки'!C$4,IF(BD14=4,'[1]Тарифные ставки'!C$5,IF(BD14=5,'[1]Тарифные ставки'!C$6,IF(BD14=6,'[1]Тарифные ставки'!C$7,"-"))))))) -> - | CH14: 0 | CI14: 0 | CJ14: 0
A15: =IF(AZ15=0," ",VLOOKUP(AZ15,'Список рабочих'!A$1:B$260,2,0)) ->  | N15: ур. св. | AT15: =SUM(O15:AS15) -> 0 | BD15: =IF(AZ15=0," ",VLOOKUP(AZ15,'Список рабочих'!A$1:C$260,3,0)) ->  | BH15: - | CE15: 0 | CF15: =IF(BD15=0," ",IF(BD15=1,'[1]Тарифные ставки'!B$2,IF(BD15=2,'[1]Тарифные ставки'!B$3,IF(BD15=3,'[1]Тарифные ставки'!B$4,IF(BD15=4,'[1]Тарифные ставки'!B$5,IF(BD15=5,'[1]Тарифные ставки'!B$6,IF(BD15=6,'[1]Тарифные ставки'!B$7,"-"))))))) -> - | CG15: =IF(BD15=0," ",IF(BD15=1,'[1]Тарифные ставки'!C$2,IF(BD15=2,'[1]Тарифные ставки'!C$3,IF(BD15=3,'[1]Тарифные ставки'!C$4,IF(BD15=4,'[1]Тарифные ставки'!C$5,IF(BD15=5,'[1]Тарифные ставки'!C$6,IF(BD15=6,'[1]Тарифные ставки'!C$7,"-"))))))) -> - | CH15: 0 | CI15: 0 | CJ15: 0
A16: =IF(AZ16=0," ",VLOOKUP(AZ16,'Список рабочих'!A$1:B$260,2,0)) ->  | N16: ур. св. | AT16: 0 | BD16: =IF(AZ16=0," ",VLOOKUP(AZ16,'Список рабочих'!A$1:C$260,3,0)) ->  | BH16: - | CE16: 0 | CF16: =IF(BD16=0," ",IF(BD16=1,'[1]Тарифные ставки'!B$2,IF(BD16=2,'[1]Тарифные ставки'!B$3,IF(BD16=3,'[1]Тарифные ставки'!B$4,IF(BD16=4,'[1]Тарифные ставки'!B$5,IF(BD16=5,'[1]Тарифные ставки'!B$6,IF(BD16=6,'[1]Тарифные ставки'!B$7,"-"))))))) -> - | CG16: =IF(BD16=0," ",IF(BD16=1,'[1]Тарифные ставки'!C$2,IF(BD16=2,'[1]Тарифные ставки'!C$3,IF(BD16=3,'[1]Тарифные ставки'!C$4,IF(BD16=4,'[1]Тарифные ставки'!C$5,IF(BD16=5,'[1]Тарифные ставки'!C$6,IF(BD16=6,'[1]Тарифные ставки'!C$7,"-"))))))) -> - | CH16: 0 | CI16: 0 | CJ16: 0
A17: =IF(AZ17=0," ",VLOOKUP(AZ17,'Список рабочих'!A$1:B$260,2,0)) ->  | N17: ур. св. | AT17: 0 | BD17: =IF(AZ17=0," ",VLOOKUP(AZ17,'Список рабочих'!A$1:C$260,3,0)) ->  | BH17: - | CE17: 0 | CF17: =IF(BD17=0," ",IF(BD17=1,'[1]Тарифные ставки'!B$2,IF(BD17=2,'[1]Тарифные ставки'!B$3,IF(BD17=3,'[1]Тарифные ставки'!B$4,IF(BD17=4,'[1]Тарифные ставки'!B$5,IF(BD17=5,'[1]Тарифные ставки'!B$6,IF(BD17=6,'[1]Тарифные ставки'!B$7,"-"))))))) -> - | CG17: =IF(BD17=0," ",IF(BD17=1,'[1]Тарифные ставки'!C$2,IF(BD17=2,'[1]Тарифные ставки'!C$3,IF(BD17=3,'[1]Тарифные ставки'!C$4,IF(BD17=4,'[1]Тарифные ставки'!C$5,IF(BD17=5,'[1]Тарифные ставки'!C$6,IF(BD17=6,'[1]Тарифные ставки'!C$7,"-"))))))) -> - | CH17: 0 | CI17: 0 | CJ17: 0
A18: =IF(AZ18=0," ",VLOOKUP(AZ18,'Список рабочих'!A$1:B$260,2,0)) ->  | N18: ур. св. | AT18: 0 | BD18: =IF(AZ18=0," ",VLOOKUP(AZ18,'Список рабочих'!A$1:C$260,3,0)) ->  | BH18: - | CE18: 0 | CF18: =IF(BD18=0," ",IF(BD18=1,'[1]Тарифные ставки'!B$2,IF(BD18=2,'[1]Тарифные ставки'!B$3,IF(BD18=3,'[1]Тарифные ставки'!B$4,IF(BD18=4,'[1]Тарифные ставки'!B$5,IF(BD18=5,'[1]Тарифные ставки'!B$6,IF(BD18=6,'[1]Тарифные ставки'!B$7,"-"))))))) -> - | CG18: =IF(BD18=0," ",IF(BD18=1,'[1]Тарифные ставки'!C$2,IF(BD18=2,'[1]Тарифные ставки'!C$3,IF(BD18=3,'[1]Тарифные ставки'!C$4,IF(BD18=4,'[1]Тарифные ставки'!C$5,IF(BD18=5,'[1]Тарифные ставки'!C$6,IF(BD18=6,'[1]Тарифные ставки'!C$7,"-"))))))) -> - | CH18: 0 | CI18: 0 | CJ18: 0
A19: =IF(AZ19=0," ",VLOOKUP(AZ19,'Список рабочих'!A$1:B$260,2,0)) ->  | N19: ур. св. | AT19: 0 | BD19: =IF(AZ19=0," ",VLOOKUP(AZ19,'Список рабочих'!A$1:C$260,3,0)) ->  | BH19: - | CE19: 0 | CF19: =IF(BD19=0," ",IF(BD19=1,'[1]Тарифные ставки'!B$2,IF(BD19=2,'[1]Тарифные ставки'!B$3,IF(BD19=3,'[1]Тарифные ставки'!B$4,IF(BD19=4,'[1]Тарифные ставки'!B$5,IF(BD19=5,'[1]Тарифные ставки'!B$6,IF(BD19=6,'[1]Тарифные ставки'!B$7,"-"))))))) -> - | CG19: =IF(BD19=0," ",IF(BD19=1,'[1]Тарифные ставки'!C$2,IF(BD19=2,'[1]Тарифные ставки'!C$3,IF(BD19=3,'[1]Тарифные ставки'!C$4,IF(BD19=4,'[1]Тарифные ставки'!C$5,IF(BD19=5,'[1]Тарифные ставки'!C$6,IF(BD19=6,'[1]Тарифные ставки'!C$7,"-"))))))) -> - | CH19: 0 | CI19: 0 | CJ19: 0
A20: =IF(AZ20=0," ",VLOOKUP(AZ20,'Список рабочих'!A$1:B$260,2,0)) ->  | N20: ур. св. | AT20: 0 | BD20: =IF(AZ20=0," ",VLOOKUP(AZ20,'Список рабочих'!A$1:C$260,3,0)) ->  | BH20: - | CE20: 0 | CF20: =IF(BD20=0," ",IF(BD20=1,'[1]Тарифные ставки'!B$2,IF(BD20=2,'[1]Тарифные ставки'!B$3,IF(BD20=3,'[1]Тарифные ставки'!B$4,IF(BD20=4,'[1]Тарифные ставки'!B$5,IF(BD20=5,'[1]Тарифные ставки'!B$6,IF(BD20=6,'[1]Тарифные ставки'!B$7,"-"))))))) -> - | CG20: =IF(BD20=0," ",IF(BD20=1,'[1]Тарифные ставки'!C$2,IF(BD20=2,'[1]Тарифные ставки'!C$3,IF(BD20=3,'[1]Тарифные ставки'!C$4,IF(BD20=4,'[1]Тарифные ставки'!C$5,IF(BD20=5,'[1]Тарифные ставки'!C$6,IF(BD20=6,'[1]Тарифные ставки'!C$7,"-"))))))) -> - | CH20: 0 | CI20: 0 | CJ20: 0
A21: =IF(AZ21=0," ",VLOOKUP(AZ21,'Список рабочих'!A$1:B$260,2,0)) ->  | N21: ур. св. | AT21: 0 | BD21: =IF(AZ21=0," ",VLOOKUP(AZ21,'Список рабочих'!A$1:C$260,3,0)) ->  | BH21: - | CE21: 0 | CF21: =IF(BD21=0," ",IF(BD21=1,'[1]Тарифные ставки'!B$2,IF(BD21=2,'[1]Тарифные ставки'!B$3,IF(BD21=3,'[1]Тарифные ставки'!B$4,IF(BD21=4,'[1]Тарифные ставки'!B$5,IF(BD21=5,'[1]Тарифные ставки'!B$6,IF(BD21=6,'[1]Тарифные ставки'!B$7,"-"))))))) -> - | CG21: =IF(BD21=0," ",IF(BD21=1,'[1]Тарифные ставки'!C$2,IF(BD21=2,'[1]Тарифные ставки'!C$3,IF(BD21=3,'[1]Тарифные ставки'!C$4,IF(BD21=4,'[1]Тарифные ставки'!C$5,IF(BD21=5,'[1]Тарифные ставки'!C$6,IF(BD21=6,'[1]Тарифные ставки'!C$7,"-"))))))) -> - | CH21: 0 | CI21: 0 | CJ21: 0
A22: =IF(AZ22=0," ",VLOOKUP(AZ22,'Список рабочих'!A$1:B$260,2,0)) ->  | N22: ур. св. | AT22: 0 | BD22: =IF(AZ22=0," ",VLOOKUP(AZ22,'Список рабочих'!A$1:C$260,3,0)) ->  | BH22: - | CE22: 0 | CF22: =IF(BD22=0," ",IF(BD22=1,'[1]Тарифные ставки'!B$2,IF(BD22=2,'[1]Тарифные ставки'!B$3,IF(BD22=3,'[1]Тарифные ставки'!B$4,IF(BD22=4,'[1]Тарифные ставки'!B$5,IF(BD22=5,'[1]Тарифные ставки'!B$6,IF(BD22=6,'[1]Тарифные ставки'!B$7,"-"))))))) -> - | CG22: =IF(BD22=0," ",IF(BD22=1,'[1]Тарифные ставки'!C$2,IF(BD22=2,'[1]Тарифные ставки'!C$3,IF(BD22=3,'[1]Тарифные ставки'!C$4,IF(BD22=4,'[1]Тарифные ставки'!C$5,IF(BD22=5,'[1]Тарифные ставки'!C$6,IF(BD22=6,'[1]Тарифные ставки'!C$7,"-"))))))) -> - | CH22: 0 | CI22: 0 | CJ22: 0
A23: =IF(AZ23=0," ",VLOOKUP(AZ23,'Список рабочих'!A$1:B$260,2,0)) ->  | N23: ур. св. | AT23: 0 | BD23: =IF(AZ23=0," ",VLOOKUP(AZ23,'Список рабочих'!A$1:C$260,3,0)) ->  | BH23: - | CE23: 0 | CF23: =IF(BD23=0," ",IF(BD23=1,'[1]Тарифные ставки'!B$2,IF(BD23=2,'[1]Тарифные ставки'!B$3,IF(BD23=3,'[1]Тарифные ставки'!B$4,IF(BD23=4,'[1]Тарифные ставки'!B$5,IF(BD23=5,'[1]Тарифные ставки'!B$6,IF(BD23=6,'[1]Тарифные ставки'!B$7,"-"))))))) -> - | CG23: =IF(BD23=0," ",IF(BD23=1,'[1]Тарифные ставки'!C$2,IF(BD23=2,'[1]Тарифные ставки'!C$3,IF(BD23=3,'[1]Тарифные ставки'!C$4,IF(BD23=4,'[1]Тарифные ставки'!C$5,IF(BD23=5,'[1]Тарифные ставки'!C$6,IF(BD23=6,'[1]Тарифные ставки'!C$7,"-"))))))) -> - | CH23: 0 | CI23: 0 | CJ23: 0
A24: =IF(AZ24=0," ",VLOOKUP(AZ24,'Список рабочих'!A$1:B$260,2,0)) ->  | N24: ур. св. | AT24: =SUM(O24:AS24) -> 0 | BD24: =IF(AZ24=0," ",VLOOKUP(AZ24,'Список рабочих'!A$1:C$260,3,0)) ->  | BH24: =IF(AX24=0,CF24,CG24) -> - | BJ24: =IF(AT24=0," ",ROUND(AT24*BH24,2)) ->  | BO24: =IF(AT24=0," ",(31-COUNTBLANK(O24:AS24))) ->  | BQ24: =IF(AT24=0," ",AT24) ->  | CE24: 0 | CF24: =IF(BD24=0," ",IF(BD24=1,'[1]Тарифные ставки'!B$2,IF(BD24=2,'[1]Тарифные ставки'!B$3,IF(BD24=3,'[1]Тарифные ставки'!B$4,IF(BD24=4,'[1]Тарифные ставки'!B$5,IF(BD24=5,'[1]Тарифные ставки'!B$6,IF(BD24=6,'[1]Тарифные ставки'!B$7,"-"))))))) -> - | CG24: =IF(BD24=0," ",IF(BD24=1,'[1]Тарифные ставки'!C$2,IF(BD24=2,'[1]Тарифные ставки'!C$3,IF(BD24=3,'[1]Тарифные ставки'!C$4,IF(BD24=4,'[1]Тарифные ставки'!C$5,IF(BD24=5,'[1]Тарифные ставки'!C$6,IF(BD24=6,'[1]Тарифные ставки'!C$7,"-"))))))) -> - | CH24: =IF(BJ24=" ",0,ROUND(BF24*BJ24,2)) -> 0 | CI24: =IF(BJ24=" ",0,(CD24-BJ24)/BJ24/CF$4) -> 0 | CJ24: =IF(BJ24=" ",0,CD24/BJ24) -> 0
A25: =IF(AZ25=0," ",VLOOKUP(AZ25,'Список рабочих'!A$1:B$260,2,0)) ->  | N25: ур. св. | AT25: 0 | BD25: =IF(AZ25=0," ",VLOOKUP(AZ25,'Список рабочих'!A$1:C$260,3,0)) ->  | BH25: - | CE25: 0 | CF25: =IF(BD25=0," ",IF(BD25=1,'[1]Тарифные ставки'!B$2,IF(BD25=2,'[1]Тарифные ставки'!B$3,IF(BD25=3,'[1]Тарифные ставки'!B$4,IF(BD25=4,'[1]Тарифные ставки'!B$5,IF(BD25=5,'[1]Тарифные ставки'!B$6,IF(BD25=6,'[1]Тарифные ставки'!B$7,"-"))))))) -> - | CG25: =IF(BD25=0," ",IF(BD25=1,'[1]Тарифные ставки'!C$2,IF(BD25=2,'[1]Тарифные ставки'!C$3,IF(BD25=3,'[1]Тарифные ставки'!C$4,IF(BD25=4,'[1]Тарифные ставки'!C$5,IF(BD25=5,'[1]Тарифные ставки'!C$6,IF(BD25=6,'[1]Тарифные ставки'!C$7,"-"))))))) -> - | CH25: 0 | CI25: 0 | CJ25: 0
A26: =IF(AZ26=0," ",VLOOKUP(AZ26,'Список рабочих'!A$1:B$260,2,0)) ->  | N26: ур. св. | AT26: 0 | BD26: =IF(AZ26=0," ",VLOOKUP(AZ26,'Список рабочих'!A$1:C$260,3,0)) ->  | BH26: - | CE26: 0 | CF26: =IF(BD26=0," ",IF(BD26=1,'[1]Тарифные ставки'!B$2,IF(BD26=2,'[1]Тарифные ставки'!B$3,IF(BD26=3,'[1]Тарифные ставки'!B$4,IF(BD26=4,'[1]Тарифные ставки'!B$5,IF(BD26=5,'[1]Тарифные ставки'!B$6,IF(BD26=6,'[1]Тарифные ставки'!B$7,"-"))))))) -> - | CG26: =IF(BD26=0," ",IF(BD26=1,'[1]Тарифные ставки'!C$2,IF(BD26=2,'[1]Тарифные ставки'!C$3,IF(BD26=3,'[1]Тарифные ставки'!C$4,IF(BD26=4,'[1]Тарифные ставки'!C$5,IF(BD26=5,'[1]Тарифные ставки'!C$6,IF(BD26=6,'[1]Тарифные ставки'!C$7,"-"))))))) -> - | CH26: 0 | CI26: 0 | CJ26: 0
A27: =IF(AZ27=0," ",VLOOKUP(AZ27,'Список рабочих'!A$1:B$260,2,0)) ->  | N27: ур. св. | AT27: 0 | BD27: =IF(AZ27=0," ",VLOOKUP(AZ27,'Список рабочих'!A$1:C$260,3,0)) ->  | BH27: - | CE27: 0 | CF27: =IF(BD27=0," ",IF(BD27=1,'[1]Тарифные ставки'!B$2,IF(BD27=2,'[1]Тарифные ставки'!B$3,IF(BD27=3,'[1]Тарифные ставки'!B$4,IF(BD27=4,'[1]Тарифные ставки'!B$5,IF(BD27=5,'[1]Тарифные ставки'!B$6,IF(BD27=6,'[1]Тарифные ставки'!B$7,"-"))))))) -> - | CG27: =IF(BD27=0," ",IF(BD27=1,'[1]Тарифные ставки'!C$2,IF(BD27=2,'[1]Тарифные ставки'!C$3,IF(BD27=3,'[1]Тарифные ставки'!C$4,IF(BD27=4,'[1]Тарифные ставки'!C$5,IF(BD27=5,'[1]Тарифные ставки'!C$6,IF(BD27=6,'[1]Тарифные ставки'!C$7,"-"))))))) -> - | CH27: 0 | CI27: 0 | CJ27: 0
A28: =IF(AZ28=0," ",VLOOKUP(AZ28,'Список рабочих'!A$1:B$260,2,0)) ->  | N28: ур. св. | AT28: 0 | BD28: =IF(AZ28=0," ",VLOOKUP(AZ28,'Список рабочих'!A$1:C$260,3,0)) ->  | BH28: - | CE28: 0 | CF28: =IF(BD28=0," ",IF(BD28=1,'[1]Тарифные ставки'!B$2,IF(BD28=2,'[1]Тарифные ставки'!B$3,IF(BD28=3,'[1]Тарифные ставки'!B$4,IF(BD28=4,'[1]Тарифные ставки'!B$5,IF(BD28=5,'[1]Тарифные ставки'!B$6,IF(BD28=6,'[1]Тарифные ставки'!B$7,"-"))))))) -> - | CG28: =IF(BD28=0," ",IF(BD28=1,'[1]Тарифные ставки'!C$2,IF(BD28=2,'[1]Тарифные ставки'!C$3,IF(BD28=3,'[1]Тарифные ставки'!C$4,IF(BD28=4,'[1]Тарифные ставки'!C$5,IF(BD28=5,'[1]Тарифные ставки'!C$6,IF(BD28=6,'[1]Тарифные ставки'!C$7,"-"))))))) -> - | CH28: 0 | CI28: 0 | CJ28: 0
A29: =IF(AZ29=0," ",VLOOKUP(AZ29,'Список рабочих'!A$1:B$260,2,0)) ->  | N29: ур. св. | AT29: 0 | BD29: =IF(AZ29=0," ",VLOOKUP(AZ29,'Список рабочих'!A$1:C$260,3,0)) ->  | BH29: - | CE29: 0 | CF29: =IF(BD29=0," ",IF(BD29=1,'[1]Тарифные ставки'!B$2,IF(BD29=2,'[1]Тарифные ставки'!B$3,IF(BD29=3,'[1]Тарифные ставки'!B$4,IF(BD29=4,'[1]Тарифные ставки'!B$5,IF(BD29=5,'[1]Тарифные ставки'!B$6,IF(BD29=6,'[1]Тарифные ставки'!B$7,"-"))))))) -> - | CG29: =IF(BD29=0," ",IF(BD29=1,'[1]Тарифные ставки'!C$2,IF(BD29=2,'[1]Тарифные ставки'!C$3,IF(BD29=3,'[1]Тарифные ставки'!C$4,IF(BD29=4,'[1]Тарифные ставки'!C$5,IF(BD29=5,'[1]Тарифные ставки'!C$6,IF(BD29=6,'[1]Тарифные ставки'!C$7,"-"))))))) -> - | CH29: 0 | CI29: 0 | CJ29: 0
A30: =IF(AZ30=0," ",VLOOKUP(AZ30,'Список рабочих'!A$1:B$260,2,0)) ->  | N30: ур. св. | AT30: 0 | BD30: =IF(AZ30=0," ",VLOOKUP(AZ30,'Список рабочих'!A$1:C$260,3,0)) ->  | BH30: - | CE30: 0 | CF30: =IF(BD30=0," ",IF(BD30=1,'[1]Тарифные ставки'!B$2,IF(BD30=2,'[1]Тарифные ставки'!B$3,IF(BD30=3,'[1]Тарифные ставки'!B$4,IF(BD30=4,'[1]Тарифные ставки'!B$5,IF(BD30=5,'[1]Тарифные ставки'!B$6,IF(BD30=6,'[1]Тарифные ставки'!B$7,"-"))))))) -> - | CG30: =IF(BD30=0," ",IF(BD30=1,'[1]Тарифные ставки'!C$2,IF(BD30=2,'[1]Тарифные ставки'!C$3,IF(BD30=3,'[1]Тарифные ставки'!C$4,IF(BD30=4,'[1]Тарифные ставки'!C$5,IF(BD30=5,'[1]Тарифные ставки'!C$6,IF(BD30=6,'[1]Тарифные ставки'!C$7,"-"))))))) -> - | CH30: 0 | CI30: 0 | CJ30: 0
A31: =IF(AZ31=0," ",VLOOKUP(AZ31,'Список рабочих'!A$1:B$260,2,0)) ->  | N31: ур. св. | AT31: 0 | BD31: =IF(AZ31=0," ",VLOOKUP(AZ31,'Список рабочих'!A$1:C$260,3,0)) ->  | BH31: - | CE31: 0 | CF31: =IF(BD31=0," ",IF(BD31=1,'[1]Тарифные ставки'!B$2,IF(BD31=2,'[1]Тарифные ставки'!B$3,IF(BD31=3,'[1]Тарифные ставки'!B$4,IF(BD31=4,'[1]Тарифные ставки'!B$5,IF(BD31=5,'[1]Тарифные ставки'!B$6,IF(BD31=6,'[1]Тарифные ставки'!B$7,"-"))))))) -> - | CG31: =IF(BD31=0," ",IF(BD31=1,'[1]Тарифные ставки'!C$2,IF(BD31=2,'[1]Тарифные ставки'!C$3,IF(BD31=3,'[1]Тарифные ставки'!C$4,IF(BD31=4,'[1]Тарифные ставки'!C$5,IF(BD31=5,'[1]Тарифные ставки'!C$6,IF(BD31=6,'[1]Тарифные ставки'!C$7,"-"))))))) -> - | CH31: 0 | CI31: 0 | CJ31: 0
A32: =IF(AZ32=0," ",VLOOKUP(AZ32,'Список рабочих'!A$1:B$260,2,0)) ->  | N32: ур. св. | AT32: 0 | BD32: =IF(AZ32=0," ",VLOOKUP(AZ32,'Список рабочих'!A$1:C$260,3,0)) ->  | BH32: - | CE32: 0 | CF32: =IF(BD32=0," ",IF(BD32=1,'[1]Тарифные ставки'!B$2,IF(BD32=2,'[1]Тарифные ставки'!B$3,IF(BD32=3,'[1]Тарифные ставки'!B$4,IF(BD32=4,'[1]Тарифные ставки'!B$5,IF(BD32=5,'[1]Тарифные ставки'!B$6,IF(BD32=6,'[1]Тарифные ставки'!B$7,"-"))))))) -> - | CG32: =IF(BD32=0," ",IF(BD32=1,'[1]Тарифные ставки'!C$2,IF(BD32=2,'[1]Тарифные ставки'!C$3,IF(BD32=3,'[1]Тарифные ставки'!C$4,IF(BD32=4,'[1]Тарифные ставки'!C$5,IF(BD32=5,'[1]Тарифные ставки'!C$6,IF(BD32=6,'[1]Тарифные ставки'!C$7,"-"))))))) -> - | CH32: 0 | CI32: 0 | CJ32: 0
A33: =IF(AZ33=0," ",VLOOKUP(AZ33,'Список рабочих'!A$1:B$260,2,0)) ->  | N33: ур. св. | AT33: 0 | BD33: =IF(AZ33=0," ",VLOOKUP(AZ33,'Список рабочих'!A$1:C$260,3,0)) ->  | BH33: - | CE33: 0 | CF33: =IF(BD33=0," ",IF(BD33=1,'[1]Тарифные ставки'!B$2,IF(BD33=2,'[1]Тарифные ставки'!B$3,IF(BD33=3,'[1]Тарифные ставки'!B$4,IF(BD33=4,'[1]Тарифные ставки'!B$5,IF(BD33=5,'[1]Тарифные ставки'!B$6,IF(BD33=6,'[1]Тарифные ставки'!B$7,"-"))))))) -> - | CG33: =IF(BD33=0," ",IF(BD33=1,'[1]Тарифные ставки'!C$2,IF(BD33=2,'[1]Тарифные ставки'!C$3,IF(BD33=3,'[1]Тарифные ставки'!C$4,IF(BD33=4,'[1]Тарифные ставки'!C$5,IF(BD33=5,'[1]Тарифные ставки'!C$6,IF(BD33=6,'[1]Тарифные ставки'!C$7,"-"))))))) -> - | CH33: 0 | CI33: 0 | CJ33: 0
AY34: Мастер | CD34: =SUM(CD8:CD33) ->  | CE34: =SUM(CE8:CE33) -> 3941.14 | CH34: =SUM(CH8:CH33) -> 15849.74 | CI34: =SUM(CI8:CI33) -> 
A35: Менеджер по персоналу: | T35: Свечинская Е.А, | AB35: Ст. мастер | AY35: Зам. Директора по производству | BT35: Байков Ю. В.
AY36: Директор | BT36: Новиков П. А.
Z40: =SUM(BY4/BJ4) -> 
S41: 5221700
